{"text_format":"1","workbook":"xlsx","n_sheets":4,"sheets":["Sverigeranking","Regler","Miniorranking","Seriespelsranking"],"not_rendered":{"charts":0,"images":0,"macros":1,"external_links":0,"defined_names":5,"comments":0,"pivot_tables":0},"unopened":[],"bounds":{"document_bytes":16777216,"sheet_cells":100000,"rows_first":2000,"rows_last":500,"rows_between":2000,"halvings":0,"cell_chars":16384,"cell_head_chars":4096},"cells_cut":0,"cells_raw":0,"read":"whole","date_system":"1900"}

{"sheet":"Sverigeranking","index":0,"n_rows":220,"n_cols":148,"rows_kept":220,"cut":false,"hidden":false,"merged":[]}
[null,"Svenska Hästskokastarförbundets Sverigeranking",null,null,null,null,null,null,null,null,null,null,null,null,null,null,null,null,null,null,null,null,null,"Antal kastare som deltagit i samtliga tävlingar senaste 12 månaderna:",{"$f":"COUNTIF(F5:F199,15)","v":3},null,null,null,null,null,null,"Antal starter senaste 12 månaderna föruton DM:",{"$f":"SUM(I2:AA2)+(AI1)-(M2+R2+X2+Y2)","v":838},null,{"$f":"Miniorranking!$AC$1","v":9}]
[null,"SLUTSTÄLLNING",null,null,null,null,null,null,{"$f":"COUNT(I5:I220)","v":0},{"$f":"COUNT(J5:J220)","v":78},74,75,38,80,22,20,87,39,63,71,68,64,0,32,49,69,58]
[null,"Säsong 2018 / 2019",null,null,null,null,null,null,{"$f":"IF(SUM(I5:I400)>100,1,\"\")","v":""},1,1,1,1,1,1,1,1,1,1,1,1,1,"",1,1,1,1,null,null,null,null,"Snitt / tävling förutom DM :",{"$f":"SUM(AG1/13)","v":64.461538461538467}]
["Plac.","Kastare ","Klubb","Rankingpoäng",null,"Antal tävlingar","Snitt per serie",null,"Växjö Open","Björkenäs Open","Utomhus-SM Dag 1","Utomhus-SM Dag 2","Utomhus Smålandsmästaren","Carlskrona Cup","Gotland Open","Cementa open","Dynapac Open","Blekinge-DM Ute","Åseda Open","Höstskon Nybro","Novemberkampen","Inomhus-SM",null,"Inomhus Smålandsmästaren ","Blekinge DM inne","Värendspokalen","Tingsryds Open","Antal arrangerade tävlingar","Ej medräknat resultat","Ej medräknat resultat","Ej medräknat resultat",null,null,null,null,null,null,null,null,null,null,null,null,null,null,null,null,null,null,null,null,null,null,null,null,null,null,null,null,null,1,2,3,4,5,6,7,8,9,10,11,12,13,14,15,16,"ej medräknad",null,null,"missade tävlingar"]
[{"$f":"IF(BF5>1,AG5&\" (\"&AF5&\")\",AG5&\" (\"&AH5&\")\")","v":"1 (1)"},"Kent Sundahl","Carlskrona",{"$f":"SUM(BI5:BU5)","v":4623},null,{"$f":"COUNT(I5:AA5)","v":13},{"$f":"SUM((CD5)/(F5*2))","v":177.80769230769232},null,null,300,396,384,null,424,null,null,385,264,407,457,267,298,null,null,418,369,254,{"$f":"SUM($I$3:$AA$3)","v":17},{"$f":"BY5","v":"-"},{"$f":"BZ5","v":"-"},{"$f":"CA5","v":"-"},1,1,{"$f":"IF(F5>1,ROW(1:1),\"-\")","v":1},1,null,null,{"$f":"COUNT($I$3,I5,H5)","v":0},{"$f":"COUNT($J$3,J5,I5)","v":2},{"$f":"COUNT($K$3,K5,J5)","v":3},{"$f":"COUNT($L$3,L5,K5)","v":3},{"$f":"COUNT($M$3,M5,L5)","v":2},{"$f":"COUNT($N$3,N5,M5)","v":2},{"$f":"COUNT($O$3,O5,N5)","v":2},{"$f":"COUNT($P$3,P5,O5)","v":1},{"$f":"COUNT($Q$3,Q5,P5)","v":2},{"$f":"COUNT($R$3,R5,Q5)","v":3},{"$f":"COUNT($S$3,S5,R5)","v":3},{"$f":"COUNT($T$3,T5,S5)","v":3},{"$f":"COUNT($U$3,U5,T5)","v":3},{"$f":"COUNT($V$3,V5,U5)","v":3},{"$f":"COUNT($W$3,W5,V5)","v":1},{"$f":"COUNT($X$3,X5,W5)","v":1},{"$f":"COUNT($Y$3,Y5,X5)","v":2},{"$f":"COUNT($Z$3,Z5,Y5)","v":3},{"$f":"COUNT($AA$3,AA5,Z5)","v":3},null,{"$f":"IF(H5=\"x\",1,2)","v":2},null,null,{"$f":"IF($F5>0,LARGE($I5:$AA5,1),\"\")","v":457},{"$f":"IF($F5>1,LARGE($I5:$AA5,2),\"\")","v":424},{"$f":"IF($F5>2,LARGE($I5:$AA5,3),\"\")","v":418},{"$f":"IF($F5>3,LARGE($I5:$AA5,4),\"\")","v":407},{"$f":"IF($F5>4,LARGE($I5:$AA5,5),\"\")","v":396},{"$f":"IF($F5>5,LARGE($I5:$AA5,6),\"\")","v":385},{"$f":"IF($F5>6,LARGE($I5:$AA5,7),\"\")","v":384},{"$f":"IF($F5>7,LARGE($I5:$AA5,8),\"\")","v":369},{"$f":"IF($F5>8,LARGE($I5:$AA5,9),\"\")","v":300},{"$f":"IF($F5>9,LARGE($I5:$AA5,10),\"\")","v":298},{"$f":"IF($F5>10,LARGE($I5:$AA5,11),\"\")","v":267},{"$f":"IF($F5>11,LARGE($I5:$AA5,12),\"\")","v":264},{"$f":"IF($F5>12,LARGE($I5:$AA5,13),\"\")","v":254},{"$f":"IF($F5>13,LARGE($I5:$AA5,14),\"\")","v":""},{"$f":"IF($F5>14,LARGE($I5:$AA5,15),\"\")","v":""},{"$f":"IF($F5>15,LARGE($I5:$AA5,16),\"\")","v":""},{"$f":"IF($F5>13,LARGE($I5:$AA5,14),\"-\")","v":"-"},{"$f":"IF($F5>14,LARGE($I5:$AA5,15),\"-\")","v":"-"},{"$f":"IF($F5>15,LARGE($I5:$AA5,16),\"-\")","v":"-"},{"$f":"SUM(AB5-F5)-2","v":2},null,{"$f":"SUM(BI5:BX5)","v":4623},null,null,null,null,null,null,null,null,null,null,null,null,null,null,null,null,null,null,null,null,null,null,null,null,null,null,null,null,null,null,null,null,null,null,null,null,null,null,null,null,null,null,null,null,null,null,null,null,null,null,null,null,null,null,null,null,null,null,null,null,null,null,1,null,{"$f":"IF(BF5>=1,AG5,\"\")","v":1},{"$f":"IF(BF5>1,\"(\"&AF5&\")\",\"(\"&AH5&\")\")","v":"(1)"}]
[{"$f":"IF(BF6>1,AG6&\" (\"&AF6&\")\",AG6&\" (\"&AH6&\")\")","v":"2 (2)"},"Sandor Bodi","Växjö",4227,null,11,192.13636363636363,null,null,402,358,401,422,null,null,null,399,null,453,422,222,280,null,397,null,471,null,17,"-","-","-",2,{"$f":"IF(D6<D5,AI6,AG5)","v":2},2,2,null,null,0,2,3,3,3,2,1,1,2,2,2,3,3,3,1,2,2,2,2,null,2,null,null,{"$f":"IF($F6>0,LARGE($I6:$AA6,1),\"\")","v":471},{"$f":"IF($F6>1,LARGE($I6:$AA6,2),\"\")","v":453},{"$f":"IF($F6>2,LARGE($I6:$AA6,3),\"\")","v":422},{"$f":"IF($F6>3,LARGE($I6:$AA6,4),\"\")","v":422},{"$f":"IF($F6>4,LARGE($I6:$AA6,5),\"\")","v":402},{"$f":"IF($F6>5,LARGE($I6:$AA6,6),\"\")","v":401},{"$f":"IF($F6>6,LARGE($I6:$AA6,7),\"\")","v":399},{"$f":"IF($F6>7,LARGE($I6:$AA6,8),\"\")","v":397},{"$f":"IF($F6>8,LARGE($I6:$AA6,9),\"\")","v":358},{"$f":"IF($F6>9,LARGE($I6:$AA6,10),\"\")","v":280},{"$f":"IF($F6>10,LARGE($I6:$AA6,11),\"\")","v":222},{"$f":"IF($F6>11,LARGE($I6:$AA6,12),\"\")","v":""},{"$f":"IF($F6>12,LARGE($I6:$AA6,13),\"\")","v":""},{"$f":"IF($F6>13,LARGE($I6:$AA6,14),\"\")","v":""},{"$f":"IF($F6>14,LARGE($I6:$AA6,15),\"\")","v":""},{"$f":"IF($F6>15,LARGE($I6:$AA6,16),\"\")","v":""},{"$f":"IF($F6>13,LARGE($I6:$AA6,14),\"-\")","v":"-"},{"$f":"IF($F6>14,LARGE($I6:$AA6,15),\"-\")","v":"-"},{"$f":"IF($F6>15,LARGE($I6:$AA6,16),\"-\")","v":"-"},{"$f":"SUM(AB6-F6)-2","v":4},null,4227,null,null,null,null,null,null,null,null,null,null,null,null,null,null,null,null,null,null,null,null,null,null,null,null,null,null,null,null,null,null,null,null,null,null,null,null,null,null,null,null,null,null,null,null,null,null,null,null,null,null,null,null,null,null,null,null,null,null,null,null,null,null,2,null,2,"(2)"]
["3 (3)","Ingvar Eriksson","Carlskrona",4204,null,13,161.69230769230768,null,null,293,335,307,null,422,null,null,334,244,370,320,226,273,null,null,418,338,324,17,"-","-","-",3,3,3,3,null,null,0,2,3,3,2,2,2,1,2,3,3,3,3,3,1,1,2,3,3,null,2,null,null,{"$f":"IF($F7>0,LARGE($I7:$AA7,1),\"\")","v":422},{"$f":"IF($F7>1,LARGE($I7:$AA7,2),\"\")","v":418},{"$f":"IF($F7>2,LARGE($I7:$AA7,3),\"\")","v":370},{"$f":"IF($F7>3,LARGE($I7:$AA7,4),\"\")","v":338},{"$f":"IF($F7>4,LARGE($I7:$AA7,5),\"\")","v":335},{"$f":"IF($F7>5,LARGE($I7:$AA7,6),\"\")","v":334},{"$f":"IF($F7>6,LARGE($I7:$AA7,7),\"\")","v":324},{"$f":"IF($F7>7,LARGE($I7:$AA7,8),\"\")","v":320},{"$f":"IF($F7>8,LARGE($I7:$AA7,9),\"\")","v":307},{"$f":"IF($F7>9,LARGE($I7:$AA7,10),\"\")","v":293},{"$f":"IF($F7>10,LARGE($I7:$AA7,11),\"\")","v":273},{"$f":"IF($F7>11,LARGE($I7:$AA7,12),\"\")","v":244},{"$f":"IF($F7>12,LARGE($I7:$AA7,13),\"\")","v":226},"","","","-","-","-",2,null,4204,null,null,null,null,null,null,null,null,null,null,null,null,null,null,null,null,null,null,null,null,null,null,null,null,null,null,null,null,null,null,null,null,null,null,null,null,null,null,null,null,null,null,null,null,null,null,null,null,null,null,null,null,null,null,null,null,null,null,null,null,null,null,3,null,3,"(3)"]
["4 (4)","Gert Karlsson","Korpen Åseda",4085,null,15,152.1,null,null,334,241,298,380,365,237,262,339,null,277,365,252,249,null,303,null,370,291,17,241,237,"-",4,4,4,4,null,null,0,2,3,3,3,3,3,3,3,2,2,3,3,3,1,2,2,2,3,null,2,null,null,{"$f":"IF($F8>0,LARGE($I8:$AA8,1),\"\")","v":380},{"$f":"IF($F8>1,LARGE($I8:$AA8,2),\"\")","v":370},{"$f":"IF($F8>2,LARGE($I8:$AA8,3),\"\")","v":365},{"$f":"IF($F8>3,LARGE($I8:$AA8,4),\"\")","v":365},{"$f":"IF($F8>4,LARGE($I8:$AA8,5),\"\")","v":339},{"$f":"IF($F8>5,LARGE($I8:$AA8,6),\"\")","v":334},{"$f":"IF($F8>6,LARGE($I8:$AA8,7),\"\")","v":303},{"$f":"IF($F8>7,LARGE($I8:$AA8,8),\"\")","v":298},{"$f":"IF($F8>8,LARGE($I8:$AA8,9),\"\")","v":291},{"$f":"IF($F8>9,LARGE($I8:$AA8,10),\"\")","v":277},{"$f":"IF($F8>10,LARGE($I8:$AA8,11),\"\")","v":262},{"$f":"IF($F8>11,LARGE($I8:$AA8,12),\"\")","v":252},{"$f":"IF($F8>12,LARGE($I8:$AA8,13),\"\")","v":249},{"$f":"IF($F8>13,LARGE($I8:$AA8,14),\"\")","v":241},{"$f":"IF($F8>14,LARGE($I8:$AA8,15),\"\")","v":237},"",241,237,"-",0,null,4563,null,null,null,null,null,null,null,null,null,null,null,null,null,null,null,null,null,null,null,null,null,null,null,null,null,null,null,null,null,null,null,null,null,null,null,null,null,null,null,null,null,null,null,null,null,null,null,null,null,null,null,null,null,null,null,null,null,null,null,null,null,null,4,null,4,"(4)"]
["5 (5)","Leo Andersson","Carlskrona",3823,null,14,143.82142857142858,null,null,220,248,280,null,311,267,398,356,null,299,308,239,204,null,null,345,308,244,17,204,"-","-",5,5,5,5,null,null,0,2,3,3,2,2,3,3,3,2,2,3,3,3,1,1,2,3,3,null,2,null,null,{"$f":"IF($F9>0,LARGE($I9:$AA9,1),\"\")","v":398},{"$f":"IF($F9>1,LARGE($I9:$AA9,2),\"\")","v":356},{"$f":"IF($F9>2,LARGE($I9:$AA9,3),\"\")","v":345},{"$f":"IF($F9>3,LARGE($I9:$AA9,4),\"\")","v":311},{"$f":"IF($F9>4,LARGE($I9:$AA9,5),\"\")","v":308},{"$f":"IF($F9>5,LARGE($I9:$AA9,6),\"\")","v":308},{"$f":"IF($F9>6,LARGE($I9:$AA9,7),\"\")","v":299},{"$f":"IF($F9>7,LARGE($I9:$AA9,8),\"\")","v":280},{"$f":"IF($F9>8,LARGE($I9:$AA9,9),\"\")","v":267},{"$f":"IF($F9>9,LARGE($I9:$AA9,10),\"\")","v":248},{"$f":"IF($F9>10,LARGE($I9:$AA9,11),\"\")","v":244},{"$f":"IF($F9>11,LARGE($I9:$AA9,12),\"\")","v":239},{"$f":"IF($F9>12,LARGE($I9:$AA9,13),\"\")","v":220},{"$f":"IF($F9>13,LARGE($I9:$AA9,14),\"\")","v":204},{"$f":"IF($F9>14,LARGE($I9:$AA9,15),\"\")","v":""},"",204,"-","-",1,null,4027,null,null,null,null,null,null,null,null,null,null,null,null,null,null,null,null,null,null,null,null,null,null,null,null,null,null,null,null,null,null,null,null,null,null,null,null,null,null,null,null,null,null,null,null,null,null,null,null,null,null,null,null,null,null,null,null,null,null,null,null,null,null,5,null,5,"(5)"]
["6 (6)","Gebriela Kostantinos","Korpen Åseda",3717,null,12,154.875,null,null,296,326,347,365,294,null,null,275,null,371,373,192,null,null,279,null,302,297,17,"-","-","-",6,6,6,6,null,null,0,2,3,3,3,3,2,1,2,2,2,3,3,2,0,2,2,2,3,null,2,null,null,{"$f":"IF($F10>0,LARGE($I10:$AA10,1),\"\")","v":373},{"$f":"IF($F10>1,LARGE($I10:$AA10,2),\"\")","v":371},{"$f":"IF($F10>2,LARGE($I10:$AA10,3),\"\")","v":365},{"$f":"IF($F10>3,LARGE($I10:$AA10,4),\"\")","v":347},{"$f":"IF($F10>4,LARGE($I10:$AA10,5),\"\")","v":326},{"$f":"IF($F10>5,LARGE($I10:$AA10,6),\"\")","v":302},{"$f":"IF($F10>6,LARGE($I10:$AA10,7),\"\")","v":297},{"$f":"IF($F10>7,LARGE($I10:$AA10,8),\"\")","v":296},{"$f":"IF($F10>8,LARGE($I10:$AA10,9),\"\")","v":294},{"$f":"IF($F10>9,LARGE($I10:$AA10,10),\"\")","v":279},{"$f":"IF($F10>10,LARGE($I10:$AA10,11),\"\")","v":275},{"$f":"IF($F10>11,LARGE($I10:$AA10,12),\"\")","v":192},{"$f":"IF($F10>12,LARGE($I10:$AA10,13),\"\")","v":""},{"$f":"IF($F10>13,LARGE($I10:$AA10,14),\"\")","v":""},{"$f":"IF($F10>14,LARGE($I10:$AA10,15),\"\")","v":""},"","-","-","-",3,null,3717,null,null,null,null,null,null,null,null,null,null,null,null,null,null,null,null,null,null,null,null,null,null,null,null,null,null,null,null,null,null,null,null,null,null,null,null,null,null,null,null,null,null,null,null,null,null,null,null,null,null,null,null,null,null,null,null,null,null,null,null,null,null,6,null,6,"(6)"]
["7 (7)","Matz Karlsson","Korpen Åseda",3705,null,12,154.375,null,null,351,306,328,334,345,null,null,269,null,372,null,139,268,null,333,null,362,298,17,"-","-","-",7,7,7,7,null,null,0,2,3,3,3,3,2,1,2,2,2,2,2,3,1,2,2,2,3,null,2,null,null,372,362,351,345,334,333,328,306,298,269,268,139,"","","","","-","-","-",3,null,3705,null,null,null,null,null,null,null,null,null,null,null,null,null,null,null,null,null,null,null,null,null,null,null,null,null,null,null,null,null,null,null,null,null,null,null,null,null,null,null,null,null,null,null,null,null,null,null,null,null,null,null,null,null,null,null,null,null,null,null,null,null,null,7,null,7,"(7)"]
["8 (8)","Peter Olsson","Dynapac ",3559,null,13,136.88461538461539,null,null,296,228,256,null,342,null,null,191,307,246,261,197,351,null,null,285,318,281,17,"-","-","-",8,8,8,8,null,null,0,2,3,3,2,2,2,1,2,3,3,3,3,3,1,1,2,3,3,null,2,null,null,351,342,318,307,296,285,281,261,256,246,228,197,191,"","","","-","-","-",2,null,3559,null,null,null,null,null,null,null,null,null,null,null,null,null,null,null,null,null,null,null,null,null,null,null,null,null,null,null,null,null,null,null,null,null,null,null,null,null,null,null,null,null,null,null,null,null,null,null,null,null,null,null,null,null,null,null,null,null,null,null,null,null,null,8,null,8,"(8)"]
["9 (9)","Maire Johansson","Växjö",3377,null,13,129.88461538461539,null,null,203,231,305,257,319,null,null,243,null,344,302,144,189,null,278,null,340,222,17,"-","-","-",9,9,9,9,null,null,0,2,3,3,3,3,2,1,2,2,2,3,3,3,1,2,2,2,3,null,2,null,null,344,340,319,305,302,278,257,243,231,222,203,189,144,"","","","-","-","-",2,null,3377,null,null,null,null,null,null,null,null,null,null,null,null,null,null,null,null,null,null,null,null,null,null,null,null,null,null,null,null,null,null,null,null,null,null,null,null,null,null,null,null,null,null,null,null,null,null,null,null,null,null,null,null,null,null,null,null,null,null,null,null,null,null,9,null,9,"(9)"]
["10 (14)","Mattias Gneupel","Sibbamåla",3370,null,13,129.61538461538461,null,null,236,213,213,null,206,null,null,277,277,330,247,180,273,null,null,377,292,249,17,"-","-","-",14,10,10,10,null,null,0,2,3,3,2,2,2,1,2,3,3,3,3,3,1,1,2,3,3,null,2,null,null,377,330,292,277,277,273,249,247,236,213,213,206,180,"","","","-","-","-",2,null,3370,null,null,null,null,null,null,null,null,null,null,null,null,null,null,null,null,null,null,null,null,null,null,null,null,null,null,null,null,null,null,null,null,null,null,null,null,null,null,null,null,null,null,null,null,null,null,null,null,null,null,null,null,null,null,null,null,null,null,null,null,null,null,10,null,10,"(14)"]
["11 (18)","Magnus Israelsson","Sibbamåla",3254,null,13,125.15384615384616,null,null,231,305,237,null,276,null,null,181,239,229,248,101,291,null,null,280,321,315,17,"-","-","-",18,11,11,11,null,null,0,2,3,3,2,2,2,1,2,3,3,3,3,3,1,1,2,3,3,null,2,null,null,321,315,305,291,280,276,248,239,237,231,229,181,101,"","","","-","-","-",2,null,3254,null,null,null,null,null,null,null,null,null,null,null,null,null,null,null,null,null,null,null,null,null,null,null,null,null,null,null,null,null,null,null,null,null,null,null,null,null,null,null,null,null,null,null,null,null,null,null,null,null,null,null,null,null,null,null,null,null,null,null,null,null,null,11,null,11,"(18)"]
["12 (11)","Tobias Gneupel","Sibbamåla",3228,null,9,179.33333333333334,null,null,318,361,279,null,468,null,null,212,396,402,null,null,null,null,null,405,387,null,17,"-","-","-",11,12,12,12,null,null,0,2,3,3,2,2,2,1,2,3,3,2,1,1,0,1,2,3,2,null,2,null,null,468,405,402,396,387,361,318,279,212,"","","","","","","","-","-","-",6,null,3228,null,null,null,null,null,null,null,null,null,null,null,null,null,null,null,null,null,null,null,null,null,null,null,null,null,null,null,null,null,null,null,null,null,null,null,null,null,null,null,null,null,null,null,null,null,null,null,null,null,null,null,null,null,null,null,null,null,null,null,null,null,null,12,null,12,"(11)"]
["13 (16)","Göran Olofsson","Korpen Nybro",3091,null,13,118.88461538461539,null,null,227,275,247,282,250,null,null,246,null,220,181,188,215,null,249,null,280,231,17,"-","-","-",16,13,13,13,null,null,0,2,3,3,3,3,2,1,2,2,2,3,3,3,1,2,2,2,3,null,2,null,null,282,280,275,250,249,247,246,231,227,220,215,188,181,"","","","-","-","-",2,null,3091,null,null,null,null,null,null,null,null,null,null,null,null,null,null,null,null,null,null,null,null,null,null,null,null,null,null,null,null,null,null,null,null,null,null,null,null,null,null,null,null,null,null,null,null,null,null,null,null,null,null,null,null,null,null,null,null,null,null,null,null,null,null,13,null,13,"(16)"]
["14 (12)","Joel Sundahl","Carlskrona",3074,null,11,139.72727272727272,null,null,209,221,249,null,284,null,null,null,290,281,null,341,270,null,null,308,288,333,17,"-","-","-",12,14,14,14,null,null,0,2,3,3,2,2,2,1,1,2,3,2,2,3,1,1,2,3,3,null,2,null,null,341,333,308,290,288,284,281,270,249,221,209,"","","","","","-","-","-",4,null,3074,null,null,null,null,null,null,null,null,null,null,null,null,null,null,null,null,null,null,null,null,null,null,null,null,null,null,null,null,null,null,null,null,null,null,null,null,null,null,null,null,null,null,null,null,null,null,null,null,null,null,null,null,null,null,null,null,null,null,null,null,null,null,14,null,14,"(12)"]
["15 (10)","Lasse Brincner","Värends Hsk",3073,null,12,128.04166666666666,null,null,302,185,289,203,327,278,198,210,null,298,290,221,null,null,272,null,null,null,17,"-","-","-",10,15,15,15,null,null,0,2,3,3,3,3,3,3,3,2,2,3,3,2,0,2,2,1,1,null,2,null,null,327,302,298,290,289,278,272,221,210,203,198,185,"","","","","-","-","-",3,null,3073,null,null,null,null,null,null,null,null,null,null,null,null,null,null,null,null,null,null,null,null,null,null,null,null,null,null,null,null,null,null,null,null,null,null,null,null,null,null,null,null,null,null,null,null,null,null,null,null,null,null,null,null,null,null,null,null,null,null,null,null,null,null,15,null,15,"(10)"]
["16 (13)","Christer Blomgren","Lanternan",2922,null,12,121.75,null,null,234,301,285,null,292,null,null,195,263,251,224,195,252,null,null,257,173,null,17,"-","-","-",13,16,16,16,null,null,0,2,3,3,2,2,2,1,2,3,3,3,3,3,1,1,2,3,2,null,2,null,null,301,292,285,263,257,252,251,234,224,195,195,173,"","","","","-","-","-",3,null,2922,null,null,null,null,null,null,null,null,null,null,null,null,null,null,null,null,null,null,null,null,null,null,null,null,null,null,null,null,null,null,null,null,null,null,null,null,null,null,null,null,null,null,null,null,null,null,null,null,null,null,null,null,null,null,null,null,null,null,null,null,null,null,16,null,16,"(13)"]
["17 (17)","Dan Hallstan","Växjö",2896,null,15,104.9,null,null,123,189,238,234,222,250,198,128,null,212,244,162,222,null,276,null,281,168,17,128,123,"-",17,17,17,17,null,null,0,2,3,3,3,3,3,3,3,2,2,3,3,3,1,2,2,2,3,null,2,null,null,281,276,250,244,238,234,222,222,212,198,189,168,162,128,123,"",128,123,"-",0,null,3147,null,null,null,null,null,null,null,null,null,null,null,null,null,null,null,null,null,null,null,null,null,null,null,null,null,null,null,null,null,null,null,null,null,null,null,null,null,null,null,null,null,null,null,null,null,null,null,null,null,null,null,null,null,null,null,null,null,null,null,null,null,null,17,null,17,"(17)"]
["18 (15)","Olle Ottosson","Dynapac ",2885,null,9,160.27777777777777,null,null,250,289,289,null,404,null,null,245,285,379,393,351,null,null,null,null,null,null,17,"-","-","-",15,18,18,18,null,null,0,2,3,3,2,2,2,1,2,3,3,3,3,2,0,1,1,1,1,null,2,null,null,404,393,379,351,289,289,285,250,245,"","","","","","","","-","-","-",6,null,2885,null,null,null,null,null,null,null,null,null,null,null,null,null,null,null,null,null,null,null,null,null,null,null,null,null,null,null,null,null,null,null,null,null,null,null,null,null,null,null,null,null,null,null,null,null,null,null,null,null,null,null,null,null,null,null,null,null,null,null,null,null,null,18,null,18,"(15)"]
["19 (19)","Ingegerd Pettersson","Lanternan",2833,null,13,108.96153846153847,null,null,197,271,276,null,164,null,null,229,279,216,197,221,180,null,null,199,185,219,17,"-","-","-",19,19,19,19,null,null,0,2,3,3,2,2,2,1,2,3,3,3,3,3,1,1,2,3,3,null,2,null,null,279,276,271,229,221,219,216,199,197,197,185,180,164,"","","","-","-","-",2,null,2833,null,null,null,null,null,null,null,null,null,null,null,null,null,null,null,null,null,null,null,null,null,null,null,null,null,null,null,null,null,null,null,null,null,null,null,null,null,null,null,null,null,null,null,null,null,null,null,null,null,null,null,null,null,null,null,null,null,null,null,null,null,null,19,null,19,"(19)"]
["20 (20)","Anita Fabbeke","Dynapac ",2723,null,12,113.45833333333333,null,null,229,278,253,null,224,null,null,181,156,null,195,171,283,null,null,230,333,190,17,"-","-","-",20,20,20,20,null,null,0,2,3,3,2,2,2,1,2,3,2,2,3,3,1,1,2,3,3,null,2,null,null,333,283,278,253,230,229,224,195,190,181,171,156,"","","","","-","-","-",3,null,2723,null,null,null,null,null,null,null,null,null,null,null,null,null,null,null,null,null,null,null,null,null,null,null,null,null,null,null,null,null,null,null,null,null,null,null,null,null,null,null,null,null,null,null,null,null,null,null,null,null,null,null,null,null,null,null,null,null,null,null,null,null,null,20,null,20,"(20)"]
["21 (22)","Tomas Lindahl","Korpen Åseda",2661,null,13,102.34615384615384,null,null,174,200,262,223,298,166,195,150,null,268,165,179,null,null,203,null,null,178,17,"-","-","-",22,21,21,21,null,null,0,2,3,3,3,3,3,3,3,2,2,3,3,2,0,2,2,1,2,null,2,null,null,298,268,262,223,203,200,195,179,178,174,166,165,150,"","","","-","-","-",2,null,2661,null,null,null,null,null,null,null,null,null,null,null,null,null,null,null,null,null,null,null,null,null,null,null,null,null,null,null,null,null,null,null,null,null,null,null,null,null,null,null,null,null,null,null,null,null,null,null,null,null,null,null,null,null,null,null,null,null,null,null,null,null,null,21,null,21,"(22)"]
["22 (23)","Carina Gneupel","Sibbamåla",2656,null,11,120.72727272727273,null,null,101,306,260,null,315,null,null,244,297,255,170,238,217,null,null,253,null,null,17,"-","-","-",23,22,22,22,null,null,0,2,3,3,2,2,2,1,2,3,3,3,3,3,1,1,2,2,1,null,2,null,null,315,306,297,260,255,253,244,238,217,170,101,"","","","","","-","-","-",4,null,2656,null,null,null,null,null,null,null,null,null,null,null,null,null,null,null,null,null,null,null,null,null,null,null,null,null,null,null,null,null,null,null,null,null,null,null,null,null,null,null,null,null,null,null,null,null,null,null,null,null,null,null,null,null,null,null,null,null,null,null,null,null,null,22,null,22,"(23)"]
["23 (21)","Anders Johansson","Dynapac ",2617,null,11,118.95454545454545,null,null,265,278,213,null,257,null,null,210,290,null,131,228,230,null,null,289,null,226,17,"-","-","-",21,23,23,23,null,null,0,2,3,3,2,2,2,1,2,3,2,2,3,3,1,1,2,2,2,null,2,null,null,290,289,278,265,257,230,228,226,213,210,131,"","","","","","-","-","-",4,null,2617,null,null,null,null,null,null,null,null,null,null,null,null,null,null,null,null,null,null,null,null,null,null,null,null,null,null,null,null,null,null,null,null,null,null,null,null,null,null,null,null,null,null,null,null,null,null,null,null,null,null,null,null,null,null,null,null,null,null,null,null,null,null,23,null,23,"(21)"]
["23 (24)","Hathaichonlanee Phaengphui","Växjö Hsk",2617,null,10,130.85,null,null,null,null,202,250,328,null,null,227,null,222,230,198,259,null,339,null,362,null,17,"-","-","-",24,23,24,24,null,null,0,1,1,2,3,3,2,1,2,2,2,3,3,3,1,2,2,2,2,null,2,null,null,362,339,328,259,250,230,227,222,202,198,"","","","","","","-","-","-",5,null,2617,null,null,null,null,null,null,null,null,null,null,null,null,null,null,null,null,null,null,null,null,null,null,null,null,null,null,null,null,null,null,null,null,null,null,null,null,null,null,null,null,null,null,null,null,null,null,null,null,null,null,null,null,null,null,null,null,null,null,null,null,null,null,24,null,23,"(24)"]
["25 (28)","Berndt Pettersson","Lanternan",2615,null,13,100.57692307692308,null,null,207,259,128,null,209,null,null,164,177,207,208,162,227,null,null,205,180,282,17,"-","-","-",28,25,25,25,null,null,0,2,3,3,2,2,2,1,2,3,3,3,3,3,1,1,2,3,3,null,2,null,null,282,259,227,209,208,207,207,205,180,177,164,162,128,"","","","-","-","-",2,null,2615,null,null,null,null,null,null,null,null,null,null,null,null,null,null,null,null,null,null,null,null,null,null,null,null,null,null,null,null,null,null,null,null,null,null,null,null,null,null,null,null,null,null,null,null,null,null,null,null,null,null,null,null,null,null,null,null,null,null,null,null,null,null,25,null,25,"(28)"]
["26 (32)","Ronny Lundberg","Lanternan",2547,null,12,106.125,null,null,226,248,218,null,191,null,null,227,200,229,226,170,null,null,null,197,154,261,17,"-","-","-",32,26,26,26,null,null,0,2,3,3,2,2,2,1,2,3,3,3,3,2,0,1,2,3,3,null,2,null,null,261,248,229,227,226,226,218,200,197,191,170,154,"","","","","-","-","-",3,null,2547,null,null,null,null,null,null,null,null,null,null,null,null,null,null,null,null,null,null,null,null,null,null,null,null,null,null,null,null,null,null,null,null,null,null,null,null,null,null,null,null,null,null,null,null,null,null,null,null,null,null,null,null,null,null,null,null,null,null,null,null,null,null,26,null,26,"(32)"]
["27 (25)","Jan Petersson","Lanternan",2544,null,13,97.84615384615384,null,null,205,251,202,null,210,null,null,187,259,170,212,161,196,null,null,205,140,146,17,"-","-","-",25,27,27,27,null,null,0,2,3,3,2,2,2,1,2,3,3,3,3,3,1,1,2,3,3,null,2,null,null,259,251,212,210,205,205,202,196,187,170,161,146,140,"","","","-","-","-",2,null,2544,null,null,null,null,null,null,null,null,null,null,null,null,null,null,null,null,null,null,null,null,null,null,null,null,null,null,null,null,null,null,null,null,null,null,null,null,null,null,null,null,null,null,null,null,null,null,null,null,null,null,null,null,null,null,null,null,null,null,null,null,null,null,27,null,27,"(25)"]
["28 (33)","Alf Svensson","Korpen Åseda",2539,null,13,97.65384615384616,null,null,149,181,183,207,150,null,null,276,null,302,240,151,177,null,194,null,106,223,17,"-","-","-",33,28,28,28,null,null,0,2,3,3,3,3,2,1,2,2,2,3,3,3,1,2,2,2,3,null,2,null,null,302,276,240,223,207,194,183,181,177,151,150,149,106,"","","","-","-","-",2,null,2539,null,null,null,null,null,null,null,null,null,null,null,null,null,null,null,null,null,null,null,null,null,null,null,null,null,null,null,null,null,null,null,null,null,null,null,null,null,null,null,null,null,null,null,null,null,null,null,null,null,null,null,null,null,null,null,null,null,null,null,null,null,null,28,null,28,"(33)"]
["29 (34)","Bengt Fabbeke","Dynapac ",2501,null,12,104.20833333333333,null,null,164,241,180,null,228,null,null,210,147,null,213,142,221,null,null,229,238,288,17,"-","-","-",34,29,29,29,null,null,0,2,3,3,2,2,2,1,2,3,2,2,3,3,1,1,2,3,3,null,2,null,null,288,241,238,229,228,221,213,210,180,164,147,142,"","","","","-","-","-",3,null,2501,null,null,null,null,null,null,null,null,null,null,null,null,null,null,null,null,null,null,null,null,null,null,null,null,null,null,null,null,null,null,null,null,null,null,null,null,null,null,null,null,null,null,null,null,null,null,null,null,null,null,null,null,null,null,null,null,null,null,null,null,null,null,29,null,29,"(34)"]
["30 (31)","Bo Petersson","Korpen Nybro",2490,null,11,113.18181818181819,null,null,null,223,237,241,245,null,null,178,null,299,212,139,195,null,262,null,259,null,17,"-","-","-",31,30,30,30,null,null,0,1,2,3,3,3,2,1,2,2,2,3,3,3,1,2,2,2,2,null,2,null,null,299,262,259,245,241,237,223,212,195,178,139,"","","","","","-","-","-",4,null,2490,null,null,null,null,null,null,null,null,null,null,null,null,null,null,null,null,null,null,null,null,null,null,null,null,null,null,null,null,null,null,null,null,null,null,null,null,null,null,null,null,null,null,null,null,null,null,null,null,null,null,null,null,null,null,null,null,null,null,null,null,null,null,30,null,30,"(31)"]
["31 (29)","Nathalie Sundahl","Carlskrona",2474,null,12,103.08333333333333,null,null,125,218,244,null,267,null,null,208,277,205,null,162,124,null,null,220,209,215,17,"-","-","-",29,31,31,31,null,null,0,2,3,3,2,2,2,1,2,3,3,2,2,3,1,1,2,3,3,null,2,null,null,277,267,244,220,218,215,209,208,205,162,125,124,"","","","","-","-","-",3,null,2474,null,null,null,null,null,null,null,null,null,null,null,null,null,null,null,null,null,null,null,null,null,null,null,null,null,null,null,null,null,null,null,null,null,null,null,null,null,null,null,null,null,null,null,null,null,null,null,null,null,null,null,null,null,null,null,null,null,null,null,null,null,null,31,null,31,"(29)"]
["32 (36)","Peter Edlund","Dynapac ",2450,null,10,122.5,null,null,224,244,367,null,291,null,null,170,262,null,null,211,270,null,null,252,null,159,17,"-","-","-",36,32,32,32,null,null,0,2,3,3,2,2,2,1,2,3,2,1,2,3,1,1,2,2,2,null,2,null,null,367,291,270,262,252,244,224,211,170,159,"","","","","","","-","-","-",5,null,2450,null,null,null,null,null,null,null,null,null,null,null,null,null,null,null,null,null,null,null,null,null,null,null,null,null,null,null,null,null,null,null,null,null,null,null,null,null,null,null,null,null,null,null,null,null,null,null,null,null,null,null,null,null,null,null,null,null,null,null,null,null,null,32,null,32,"(36)"]
["33 (27)","Kerstin Svensson","Växjö Hsk",2439,null,15,90.7,null,null,159,170,158,224,176,173,163,185,null,181,193,247,162,null,211,null,195,124,17,158,124,"-",27,33,33,33,null,null,{"$f":"COUNT($I$3,I37,H37)","v":0},{"$f":"COUNT($J$3,J37,I37)","v":2},{"$f":"COUNT($K$3,K37,J37)","v":3},{"$f":"COUNT($L$3,L37,K37)","v":3},{"$f":"COUNT($M$3,M37,L37)","v":3},{"$f":"COUNT($N$3,N37,M37)","v":3},{"$f":"COUNT($O$3,O37,N37)","v":3},{"$f":"COUNT($P$3,P37,O37)","v":3},{"$f":"COUNT($Q$3,Q37,P37)","v":3},{"$f":"COUNT($R$3,R37,Q37)","v":2},{"$f":"COUNT($S$3,S37,R37)","v":2},{"$f":"COUNT($T$3,T37,S37)","v":3},{"$f":"COUNT($U$3,U37,T37)","v":3},{"$f":"COUNT($V$3,V37,U37)","v":3},{"$f":"COUNT($W$3,W37,V37)","v":1},{"$f":"COUNT($X$3,X37,W37)","v":2},{"$f":"COUNT($Y$3,Y37,X37)","v":2},{"$f":"COUNT($Z$3,Z37,Y37)","v":2},{"$f":"COUNT($AA$3,AA37,Z37)","v":3},null,{"$f":"IF(H37=\"x\",1,2)","v":2},null,null,247,224,211,195,193,185,181,176,173,170,163,162,159,158,124,"",158,124,"-",0,null,2721,null,null,null,null,null,null,null,null,null,null,null,null,null,null,null,null,null,null,null,null,null,null,null,null,null,null,null,null,null,null,null,null,null,null,null,null,null,null,null,null,null,null,null,null,null,null,null,null,null,null,null,null,null,null,null,null,null,null,null,null,null,null,33,null,{"$f":"IF(BF37>=1,AG37,\"\")","v":33},"(27)"]
["34 (30)","Nils-Åke Hansson","Korpen Nybro",2412,null,13,92.769230769230774,null,null,214,192,191,217,143,null,null,149,null,195,171,164,214,null,201,null,212,149,17,"-","-","-",30,{"$f":"IF(D38<D37,AI38,AG37)","v":34},34,34,null,null,0,2,3,3,3,3,2,1,2,2,2,3,3,3,1,2,2,2,3,null,2,null,null,217,214,214,212,201,195,192,191,171,164,149,149,143,"","","","-","-","-",2,null,2412,null,null,null,null,null,null,null,null,null,null,null,null,null,null,null,null,null,null,null,null,null,null,null,null,null,null,null,null,null,null,null,null,null,null,null,null,null,null,null,null,null,null,null,null,null,null,null,null,null,null,null,null,null,null,null,null,null,null,null,null,null,null,34,null,34,"(30)"]
["35 (26)","Roy Dahlén","Dynapac ",2353,null,10,117.65,null,null,301,232,294,null,null,null,null,null,351,235,225,129,236,null,null,221,null,129,17,"-","-","-",26,35,35,35,null,null,0,2,3,3,2,1,1,1,1,2,3,3,3,3,1,1,2,2,2,null,2,null,null,351,301,294,236,235,232,225,221,129,129,"","","","","","","-","-","-",5,null,2353,null,null,null,null,null,null,null,null,null,null,null,null,null,null,null,null,null,null,null,null,null,null,null,null,null,null,null,null,null,null,null,null,null,null,null,null,null,null,null,null,null,null,null,null,null,null,null,null,null,null,null,null,null,null,null,null,null,null,null,null,null,null,35,null,35,"(26)"]
["36 (41)","Göran Mårtensson","Jämjö Hsk",2258,null,10,112.9,null,null,184,225,190,null,250,null,null,219,247,null,null,null,226,null,null,204,265,248,17,"-","-","-",41,36,36,36,null,null,0,2,3,3,2,2,2,1,2,3,2,1,1,2,1,1,2,3,3,null,2,null,null,265,250,248,247,226,225,219,204,190,184,"","","","","","","-","-","-",5,null,2258,null,null,null,null,null,null,null,null,null,null,null,null,null,null,null,null,null,null,null,null,null,null,null,null,null,null,null,null,null,null,null,null,null,null,null,null,null,null,null,null,null,null,null,null,null,null,null,null,null,null,null,null,null,null,null,null,null,null,null,null,null,null,36,null,36,"(41)"]
["37 (38)","Yamolada Damnoegam","Växjö Hsk",2237,null,12,93.208333333333329,null,null,100,148,176,203,187,null,null,176,null,196,162,155,272,null,216,null,246,null,17,"-","-","-",38,37,37,37,null,null,0,2,3,3,3,3,2,1,2,2,2,3,3,3,1,2,2,2,2,null,2,null,null,272,246,216,203,196,187,176,176,162,155,148,100,"","","","","-","-","-",3,null,2237,null,null,null,null,null,null,null,null,null,null,null,null,null,null,null,null,null,null,null,null,null,null,null,null,null,null,null,null,null,null,null,null,null,null,null,null,null,null,null,null,null,null,null,null,null,null,null,null,null,null,null,null,null,null,null,null,null,null,null,null,null,null,37,null,37,"(38)"]
["38 (40)","Ewa Malmqvist","Jämjö Hsk",2178,null,10,108.9,null,null,null,216,200,null,244,null,null,246,196,206,null,null,152,null,null,286,172,260,17,"-","-","-",40,38,38,38,null,null,0,1,2,3,2,2,2,1,2,3,3,2,1,2,1,1,2,3,3,null,2,null,null,286,260,246,244,216,206,200,196,172,152,"","","","","","","-","-","-",5,null,2178,null,null,null,null,null,null,null,null,null,null,null,null,null,null,null,null,null,null,null,null,null,null,null,null,null,null,null,null,null,null,null,null,null,null,null,null,null,null,null,null,null,null,null,null,null,null,null,null,null,null,null,null,null,null,null,null,null,null,null,null,null,null,38,null,38,"(40)"]
["39 (43)","Åke Bergqvist","Tingsryd",2175,null,11,98.86363636363636,null,null,168,159,358,186,246,null,null,null,null,162,237,84,181,null,null,null,204,190,17,"-","-","-",43,39,39,39,null,null,0,2,3,3,3,3,2,1,1,1,2,3,3,3,1,1,1,2,3,null,2,null,null,358,246,237,204,190,186,181,168,162,159,84,"","","","","","-","-","-",4,null,2175,null,null,null,null,null,null,null,null,null,null,null,null,null,null,null,null,null,null,null,null,null,null,null,null,null,null,null,null,null,null,null,null,null,null,null,null,null,null,null,null,null,null,null,null,null,null,null,null,null,null,null,null,null,null,null,null,null,null,null,null,null,null,39,null,39,"(43)"]
["40 (37)","Johan Johansson","Tingsryd",2171,null,7,155.07142857142858,null,null,null,375,305,291,null,null,null,null,null,null,306,282,320,null,null,null,null,292,17,"-","-","-",37,40,40,40,null,null,0,1,2,3,3,2,1,1,1,1,1,2,3,3,1,1,1,1,2,null,2,null,null,375,320,306,305,292,291,282,"","","","","","","","","","-","-","-",8,null,2171,null,null,null,null,null,null,null,null,null,null,null,null,null,null,null,null,null,null,null,null,null,null,null,null,null,null,null,null,null,null,null,null,null,null,null,null,null,null,null,null,null,null,null,null,null,null,null,null,null,null,null,null,null,null,null,null,null,null,null,null,null,null,40,null,40,"(37)"]
["41 (42)","Marianne Karlsson","Jämjö Hsk",2107,null,9,117.05555555555556,null,null,207,207,254,null,289,null,null,253,183,241,null,null,null,null,null,null,230,243,17,"-","-","-",42,41,41,41,null,null,0,2,3,3,2,2,2,1,2,3,3,2,1,1,0,1,1,2,3,null,2,null,null,289,254,253,243,241,230,207,207,183,"","","","","","","","-","-","-",6,null,2107,null,null,null,null,null,null,null,null,null,null,null,null,null,null,null,null,null,null,null,null,null,null,null,null,null,null,null,null,null,null,null,null,null,null,null,null,null,null,null,null,null,null,null,null,null,null,null,null,null,null,null,null,null,null,null,null,null,null,null,null,null,null,41,null,41,"(42)"]
["42 (35)","Dan Madayang","Korpen Åseda",2060,null,8,128.75,null,null,213,331,266,195,262,null,null,null,null,307,188,null,null,null,298,null,null,null,17,"-","-","-",35,42,42,42,null,null,0,2,3,3,3,3,2,1,1,1,2,3,2,1,0,2,2,1,1,null,2,null,null,331,307,298,266,262,213,195,188,"","","","","","","","","-","-","-",7,null,2060,null,null,null,null,null,null,null,null,null,null,null,null,null,null,null,null,null,null,null,null,null,null,null,null,null,null,null,null,null,null,null,null,null,null,null,null,null,null,null,null,null,null,null,null,null,null,null,null,null,null,null,null,null,null,null,null,null,null,null,null,null,null,42,null,42,"(35)"]
["43 (45)","Sune Olsson","Korpen Nybro",2019,null,10,100.95,null,null,null,267,204,null,231,null,null,159,null,173,193,145,245,null,null,null,172,230,17,"-","-","-",45,43,43,43,null,null,0,1,2,3,2,2,2,1,2,2,2,3,3,3,1,1,1,2,3,null,2,null,null,267,245,231,230,204,193,173,172,159,145,"","","","","","","-","-","-",5,null,2019,null,null,null,null,null,null,null,null,null,null,null,null,null,null,null,null,null,null,null,null,null,null,null,null,null,null,null,null,null,null,null,null,null,null,null,null,null,null,null,null,null,null,null,null,null,null,null,null,null,null,null,null,null,null,null,null,null,null,null,null,null,null,43,null,43,"(45)"]
["44 (39)","Stefan Tollstam","Dynapac ",2009,null,10,100.45,null,null,167,197,150,null,273,null,null,185,209,149,223,183,null,null,null,273,null,null,17,"-","-","-",39,44,44,44,null,null,0,2,3,3,2,2,2,1,2,3,3,3,3,2,0,1,2,2,1,null,2,null,null,273,273,223,209,197,185,183,167,150,149,"","","","","","","-","-","-",5,null,2009,null,null,null,null,null,null,null,null,null,null,null,null,null,null,null,null,null,null,null,null,null,null,null,null,null,null,null,null,null,null,null,null,null,null,null,null,null,null,null,null,null,null,null,null,null,null,null,null,null,null,null,null,null,null,null,null,null,null,null,null,null,null,44,null,44,"(39)"]
["45 (46)","Klara Larsson","Värends Hsk",1947,null,11,88.5,null,null,185,183,205,234,146,null,null,98,null,96,215,205,171,null,null,null,null,209,17,"-","-","-",46,45,45,45,null,null,0,2,3,3,3,3,2,1,2,2,2,3,3,3,1,1,1,1,2,null,2,null,null,234,215,209,205,205,185,183,171,146,98,96,"","","","","","-","-","-",4,null,1947,null,null,null,null,null,null,null,null,null,null,null,null,null,null,null,null,null,null,null,null,null,null,null,null,null,null,null,null,null,null,null,null,null,null,null,null,null,null,null,null,null,null,null,null,null,null,null,null,null,null,null,null,null,null,null,null,null,null,null,null,null,null,45,null,45,"(46)"]
["46 (47)","Leif Sundahl","Carlskrona",1928,null,10,96.4,null,null,196,166,228,null,207,null,null,123,362,null,198,111,null,null,null,185,152,null,17,"-","-","-",47,46,46,46,null,null,0,2,3,3,2,2,2,1,2,3,2,2,3,2,0,1,2,3,2,null,2,null,null,362,228,207,198,196,185,166,152,123,111,"","","","","","","-","-","-",5,null,1928,null,null,null,null,null,null,null,null,null,null,null,null,null,null,null,null,null,null,null,null,null,null,null,null,null,null,null,null,null,null,null,null,null,null,null,null,null,null,null,null,null,null,null,null,null,null,null,null,null,null,null,null,null,null,null,null,null,null,null,null,null,null,46,null,46,"(47)"]
["47 (44)","Bengt Andersson","Växjö Hsk",1875,null,10,93.75,null,null,211,201,148,185,199,null,null,211,null,null,140,null,169,null,236,null,175,null,17,"-","-","-",44,47,47,47,null,null,0,2,3,3,3,3,2,1,2,2,1,2,2,2,1,2,2,2,2,null,2,null,null,236,211,211,201,199,185,175,169,148,140,"","","","","","","-","-","-",5,null,1875,null,null,null,null,null,null,null,null,null,null,null,null,null,null,null,null,null,null,null,null,null,null,null,null,null,null,null,null,null,null,null,null,null,null,null,null,null,null,null,null,null,null,null,null,null,null,null,null,null,null,null,null,null,null,null,null,null,null,null,null,null,null,47,null,47,"(44)"]
["48 (49)","Bernt Olsson","Jämjö Hsk",1772,null,10,88.6,null,null,null,180,172,null,155,null,null,178,234,188,null,null,135,null,null,159,208,163,17,"-","-","-",49,48,48,48,null,null,0,1,2,3,2,2,2,1,2,3,3,2,1,2,1,1,2,3,3,null,2,null,null,234,208,188,180,178,172,163,159,155,135,"","","","","","","-","-","-",5,null,1772,null,null,null,null,null,null,null,null,null,null,null,null,null,null,null,null,null,null,null,null,null,null,null,null,null,null,null,null,null,null,null,null,null,null,null,null,null,null,null,null,null,null,null,null,null,null,null,null,null,null,null,null,null,null,null,null,null,null,null,null,null,null,48,null,48,"(49)"]
["49 (51)","Maj-Britt Jarl","Växjö",1736,null,7,124,null,null,null,null,null,230,314,null,null,224,null,232,254,185,null,null,null,null,null,297,17,"-","-","-",51,49,49,49,null,null,0,1,1,1,2,3,2,1,2,2,2,3,3,2,0,1,1,1,2,null,2,null,null,314,297,254,232,230,224,185,"","","","","","","","","","-","-","-",8,null,1736,null,null,null,null,null,null,null,null,null,null,null,null,null,null,null,null,null,null,null,null,null,null,null,null,null,null,null,null,null,null,null,null,null,null,null,null,null,null,null,null,null,null,null,null,null,null,null,null,null,null,null,null,null,null,null,null,null,null,null,null,null,null,49,null,49,"(51)"]
["50 (53)","Martin Antic","Värends Hsk",1705,null,10,85.25,null,null,null,131,151,250,221,null,null,120,null,186,null,130,null,null,185,null,152,179,17,"-","-","-",53,50,50,50,null,null,0,1,2,3,3,3,2,1,2,2,2,2,2,2,0,2,2,2,3,null,2,null,null,250,221,186,185,179,152,151,131,130,120,"","","","","","","-","-","-",5,null,1705,null,null,null,null,null,null,null,null,null,null,null,null,null,null,null,null,null,null,null,null,null,null,null,null,null,null,null,null,null,null,null,null,null,null,null,null,null,null,null,null,null,null,null,null,null,null,null,null,null,null,null,null,null,null,null,null,null,null,null,null,null,null,50,null,50,"(53)"]
["51 (52)","Anne-Marie Larsson","Tingsryd",1683,null,9,93.5,null,null,126,185,225,null,210,null,null,null,null,177,125,null,224,null,null,null,202,209,17,"-","-","-",52,51,51,51,null,null,0,2,3,3,2,2,2,1,1,1,2,3,2,2,1,1,1,2,3,null,2,null,null,225,224,210,209,202,185,177,126,125,"","","","","","","","-","-","-",6,null,1683,null,null,null,null,null,null,null,null,null,null,null,null,null,null,null,null,null,null,null,null,null,null,null,null,null,null,null,null,null,null,null,null,null,null,null,null,null,null,null,null,null,null,null,null,null,null,null,null,null,null,null,null,null,null,null,null,null,null,null,null,null,null,51,null,51,"(52)"]
["52 (50)","Anders Karlsson","Värends Hsk",1667,null,10,83.35,null,null,82,null,null,null,233,92,137,147,null,325,193,111,159,null,null,null,188,null,17,"-","-","-",50,52,52,52,null,null,0,2,2,1,1,2,3,3,3,2,2,3,3,3,1,1,1,2,2,null,2,null,null,325,233,193,188,159,147,137,111,92,82,"","","","","","","-","-","-",5,null,1667,null,null,null,null,null,null,null,null,null,null,null,null,null,null,null,null,null,null,null,null,null,null,null,null,null,null,null,null,null,null,null,null,null,null,null,null,null,null,null,null,null,null,null,null,null,null,null,null,null,null,null,null,null,null,null,null,null,null,null,null,null,null,52,null,52,"(50)"]
["53 (54)","Lars-Åke Karlsson","Jämjö Hsk",1614,null,10,80.7,null,null,115,140,162,null,183,null,null,149,155,141,null,null,201,null,null,null,206,162,17,"-","-","-",54,53,53,53,null,null,0,2,3,3,2,2,2,1,2,3,3,2,1,2,1,1,1,2,3,null,2,null,null,206,201,183,162,162,155,149,141,140,115,"","","","","","","-","-","-",5,null,1614,null,null,null,null,null,null,null,null,null,null,null,null,null,null,null,null,null,null,null,null,null,null,null,null,null,null,null,null,null,null,null,null,null,null,null,null,null,null,null,null,null,null,null,null,null,null,null,null,null,null,null,null,null,null,null,null,null,null,null,null,null,null,53,null,53,"(54)"]
["54 (48)","Bela Bodi","Växjö",1588,null,10,79.400000000000006,null,null,108,165,137,182,null,null,null,null,null,148,183,113,178,null,192,null,182,null,17,"-","-","-",48,54,54,54,null,null,0,2,3,3,3,2,1,1,1,1,2,3,3,3,1,2,2,2,2,null,2,null,null,192,183,182,182,178,165,148,137,113,108,"","","","","","","-","-","-",5,null,1588,null,null,null,null,null,null,null,null,null,null,null,null,null,null,null,null,null,null,null,null,null,null,null,null,null,null,null,null,null,null,null,null,null,null,null,null,null,null,null,null,null,null,null,null,null,null,null,null,null,null,null,null,null,null,null,null,null,null,null,null,null,null,54,null,54,"(48)"]
["55 (55)","Thomas Dahl","Växjö",1561,null,12,65.041666666666671,null,null,119,184,203,120,122,null,null,127,null,102,115,102,129,null,138,null,100,null,17,"-","-","-",55,55,55,55,null,null,0,2,3,3,3,3,2,1,2,2,2,3,3,3,1,2,2,2,2,null,2,null,null,203,184,138,129,127,122,120,119,115,102,102,100,"","","","","-","-","-",3,null,1561,null,null,null,null,null,null,null,null,null,null,null,null,null,null,null,null,null,null,null,null,null,null,null,null,null,null,null,null,null,null,null,null,null,null,null,null,null,null,null,null,null,null,null,null,null,null,null,null,null,null,null,null,null,null,null,null,null,null,null,null,null,null,55,null,55,"(55)"]
["56 (57)","Alf Johansson","Värends Hsk",1525,null,13,58.653846153846153,null,null,130,104,75,209,123,null,null,85,null,169,110,130,44,null,161,null,76,109,17,"-","-","-",57,56,56,56,null,null,0,2,3,3,3,3,2,1,2,2,2,3,3,3,1,2,2,2,3,null,2,null,null,209,169,161,130,130,123,110,109,104,85,76,75,44,"","","","-","-","-",2,null,1525,null,null,null,null,null,null,null,null,null,null,null,null,null,null,null,null,null,null,null,null,null,null,null,null,null,null,null,null,null,null,null,null,null,null,null,null,null,null,null,null,null,null,null,null,null,null,null,null,null,null,null,null,null,null,null,null,null,null,null,null,null,null,56,null,56,"(57)"]
["57 (60)","Gilbert Pettersson","Lanternan",1507,null,7,107.64285714285714,null,null,191,null,234,null,207,null,null,null,234,null,253,95,null,null,null,293,null,null,17,"-","-","-",60,57,57,57,null,null,0,2,2,2,2,2,2,1,1,2,2,2,3,2,0,1,2,2,1,null,2,null,null,293,253,234,234,207,191,95,"","","","","","","","","","-","-","-",8,null,1507,null,null,null,null,null,null,null,null,null,null,null,null,null,null,null,null,null,null,null,null,null,null,null,null,null,null,null,null,null,null,null,null,null,null,null,null,null,null,null,null,null,null,null,null,null,null,null,null,null,null,null,null,null,null,null,null,null,null,null,null,null,null,57,null,57,"(60)"]
["58 (59)","Lisbeth Nygaard-Karlsson","Tingsryd",1472,null,6,122.66666666666667,null,null,214,284,206,null,null,null,null,null,null,null,308,null,241,null,null,null,null,219,17,"-","-","-",59,58,58,58,null,null,0,2,3,3,2,1,1,1,1,1,1,2,2,2,1,1,1,1,2,null,2,null,null,308,284,241,219,214,206,"","","","","","","","","","","-","-","-",9,null,1472,null,null,null,null,null,null,null,null,null,null,null,null,null,null,null,null,null,null,null,null,null,null,null,null,null,null,null,null,null,null,null,null,null,null,null,null,null,null,null,null,null,null,null,null,null,null,null,null,null,null,null,null,null,null,null,null,null,null,null,null,null,null,58,null,58,"(59)"]
["59 (61)","Sandra Widlund","Växjö Hsk",1434,null,6,119.5,null,null,null,null,null,null,220,null,null,null,null,null,176,158,292,null,237,null,351,null,17,"-","-","-",61,59,59,59,null,null,0,1,1,1,1,2,2,1,1,1,1,2,3,3,1,2,2,2,2,null,2,null,null,351,292,237,220,176,158,"","","","","","","","","","","-","-","-",9,null,1434,null,null,null,null,null,null,null,null,null,null,null,null,null,null,null,null,null,null,null,null,null,null,null,null,null,null,null,null,null,null,null,null,null,null,null,null,null,null,null,null,null,null,null,null,null,null,null,null,null,null,null,null,null,null,null,null,null,null,null,null,null,null,59,null,59,"(61)"]
["60 (56)","Roland Sjöstrand","Hsk Tingzås",1430,null,11,65,null,null,116,118,100,null,182,100,166,120,null,140,98,135,null,null,null,null,155,null,17,"-","-","-",56,60,60,60,null,null,0,2,3,3,2,2,3,3,3,2,2,3,3,2,0,1,1,2,2,null,2,null,null,182,166,155,140,135,120,118,116,100,100,98,"","","","","","-","-","-",4,null,1430,null,null,null,null,null,null,null,null,null,null,null,null,null,null,null,null,null,null,null,null,null,null,null,null,null,null,null,null,null,null,null,null,null,null,null,null,null,null,null,null,null,null,null,null,null,null,null,null,null,null,null,null,null,null,null,null,null,null,null,null,null,null,60,null,60,"(56)"]
["61 (63)","Mikael Grönskog","Sibbamåla",1396,null,8,87.25,null,null,132,null,null,null,225,null,null,169,null,null,180,133,145,null,null,188,224,null,17,"-","-","-",63,61,61,61,null,null,0,2,2,1,1,2,2,1,2,2,1,2,3,3,1,1,2,3,2,null,2,null,null,225,224,188,180,169,145,133,132,"","","","","","","","","-","-","-",7,null,1396,null,null,null,null,null,null,null,null,null,null,null,null,null,null,null,null,null,null,null,null,null,null,null,null,null,null,null,null,null,null,null,null,null,null,null,null,null,null,null,null,null,null,null,null,null,null,null,null,null,null,null,null,null,null,null,null,null,null,null,null,null,null,61,null,61,"(63)"]
["62 (64)","Lukas Bern","Dynapac ",1390,null,6,115.83333333333333,null,null,194,null,216,null,null,null,null,255,null,null,207,202,null,null,null,null,316,null,17,"-","-","-",64,62,62,62,null,null,0,2,2,2,2,1,1,1,2,2,1,2,3,2,0,1,1,2,2,null,2,null,null,316,255,216,207,202,194,"","","","","","","","","","","-","-","-",9,null,1390,null,null,null,null,null,null,null,null,null,null,null,null,null,null,null,null,null,null,null,null,null,null,null,null,null,null,null,null,null,null,null,null,null,null,null,null,null,null,null,null,null,null,null,null,null,null,null,null,null,null,null,null,null,null,null,null,null,null,null,null,null,null,62,null,62,"(64)"]
["63 (65)","Louise Tollstam","Dynapac ",1384,null,7,98.857142857142861,null,null,216,153,270,null,263,null,null,166,103,null,null,null,null,null,null,213,null,null,17,"-","-","-",65,63,63,63,null,null,0,2,3,3,2,2,2,1,2,3,2,1,1,1,0,1,2,2,1,null,2,null,null,270,263,216,213,166,153,103,"","","","","","","","","","-","-","-",8,null,1384,null,null,null,null,null,null,null,null,null,null,null,null,null,null,null,null,null,null,null,null,null,null,null,null,null,null,null,null,null,null,null,null,null,null,null,null,null,null,null,null,null,null,null,null,null,null,null,null,null,null,null,null,null,null,null,null,null,null,null,null,null,null,63,null,63,"(65)"]
["64 (66)","Lennart Karlsson","Tingsryd",1358,null,6,113.16666666666667,null,null,220,261,231,null,null,null,null,null,null,null,218,null,190,null,null,null,null,238,17,"-","-","-",66,64,64,64,null,null,0,2,3,3,2,1,1,1,1,1,1,2,2,2,1,1,1,1,2,null,2,null,null,261,238,231,220,218,190,"","","","","","","","","","","-","-","-",9,null,1358,null,null,null,null,null,null,null,null,null,null,null,null,null,null,null,null,null,null,null,null,null,null,null,null,null,null,null,null,null,null,null,null,null,null,null,null,null,null,null,null,null,null,null,null,null,null,null,null,null,null,null,null,null,null,null,null,null,null,null,null,null,null,64,null,64,"(66)"]
[{"$f":"IF(BF69>1,AG69&\" (\"&AF69&\")\",AG69&\" (\"&AH69&\")\")","v":"65 (67)"},"Karin Gullbrand","Värends Hsk",{"$f":"SUM(BI69:BU69)","v":1295},null,{"$f":"COUNT(I69:AA69)","v":11},{"$f":"SUM((CD69)/(F69*2))","v":58.863636363636367},null,null,134,187,133,106,91,65,119,154,null,117,null,null,null,null,103,null,null,86,{"$f":"SUM($I$3:$AA$3)","v":17},{"$f":"BY69","v":"-"},{"$f":"BZ69","v":"-"},{"$f":"CA69","v":"-"},67,65,{"$f":"IF(F69>1,ROW(65:65),\"-\")","v":65},65,null,null,{"$f":"COUNT($I$3,I69,H69)","v":0},{"$f":"COUNT($J$3,J69,I69)","v":2},{"$f":"COUNT($K$3,K69,J69)","v":3},{"$f":"COUNT($L$3,L69,K69)","v":3},{"$f":"COUNT($M$3,M69,L69)","v":3},{"$f":"COUNT($N$3,N69,M69)","v":3},{"$f":"COUNT($O$3,O69,N69)","v":3},{"$f":"COUNT($P$3,P69,O69)","v":3},{"$f":"COUNT($Q$3,Q69,P69)","v":3},{"$f":"COUNT($R$3,R69,Q69)","v":2},{"$f":"COUNT($S$3,S69,R69)","v":2},{"$f":"COUNT($T$3,T69,S69)","v":2},{"$f":"COUNT($U$3,U69,T69)","v":1},{"$f":"COUNT($V$3,V69,U69)","v":1},{"$f":"COUNT($W$3,W69,V69)","v":0},{"$f":"COUNT($X$3,X69,W69)","v":2},{"$f":"COUNT($Y$3,Y69,X69)","v":2},{"$f":"COUNT($Z$3,Z69,Y69)","v":1},{"$f":"COUNT($AA$3,AA69,Z69)","v":2},null,{"$f":"IF(H69=\"x\",1,2)","v":2},null,null,187,154,134,133,119,117,106,103,91,86,65,"","","","","","-","-","-",4,null,{"$f":"SUM(BI69:BX69)","v":1295},null,null,null,null,null,null,null,null,null,null,null,null,null,null,null,null,null,null,null,null,null,null,null,null,null,null,null,null,null,null,null,null,null,null,null,null,null,null,null,null,null,null,null,null,null,null,null,null,null,null,null,null,null,null,null,null,null,null,null,null,null,null,65,null,{"$f":"IF(BF69>=1,AG69,\"\")","v":65},{"$f":"IF(BF69>1,\"(\"&AF69&\")\",\"(\"&AH69&\")\")","v":"(67)"}]
["66 (58)","Christian Balsiger","Värends Hsk",1280,null,6,106.66666666666667,null,null,null,250,237,173,null,null,null,243,null,null,null,null,null,null,217,null,160,null,17,"-","-","-",58,{"$f":"IF(D70<D69,AI70,AG69)","v":66},66,66,null,null,0,1,2,3,3,2,1,1,2,2,1,1,1,1,0,2,2,2,2,null,2,null,null,{"$f":"IF($F70>0,LARGE($I70:$AA70,1),\"\")","v":250},{"$f":"IF($F70>1,LARGE($I70:$AA70,2),\"\")","v":243},{"$f":"IF($F70>2,LARGE($I70:$AA70,3),\"\")","v":237},{"$f":"IF($F70>3,LARGE($I70:$AA70,4),\"\")","v":217},{"$f":"IF($F70>4,LARGE($I70:$AA70,5),\"\")","v":173},{"$f":"IF($F70>5,LARGE($I70:$AA70,6),\"\")","v":160},{"$f":"IF($F70>6,LARGE($I70:$AA70,7),\"\")","v":""},{"$f":"IF($F70>7,LARGE($I70:$AA70,8),\"\")","v":""},{"$f":"IF($F70>8,LARGE($I70:$AA70,9),\"\")","v":""},{"$f":"IF($F70>9,LARGE($I70:$AA70,10),\"\")","v":""},{"$f":"IF($F70>10,LARGE($I70:$AA70,11),\"\")","v":""},{"$f":"IF($F70>11,LARGE($I70:$AA70,12),\"\")","v":""},{"$f":"IF($F70>12,LARGE($I70:$AA70,13),\"\")","v":""},{"$f":"IF($F70>13,LARGE($I70:$AA70,14),\"\")","v":""},{"$f":"IF($F70>14,LARGE($I70:$AA70,15),\"\")","v":""},{"$f":"IF($F70>15,LARGE($I70:$AA70,16),\"\")","v":""},{"$f":"IF($F70>13,LARGE($I70:$AA70,14),\"-\")","v":"-"},{"$f":"IF($F70>14,LARGE($I70:$AA70,15),\"-\")","v":"-"},{"$f":"IF($F70>15,LARGE($I70:$AA70,16),\"-\")","v":"-"},{"$f":"SUM(AB70-F70)-2","v":9},null,1280,null,null,null,null,null,null,null,null,null,null,null,null,null,null,null,null,null,null,null,null,null,null,null,null,null,null,null,null,null,null,null,null,null,null,null,null,null,null,null,null,null,null,null,null,null,null,null,null,null,null,null,null,null,null,null,null,null,null,null,null,null,null,66,null,66,"(58)"]
["67 (71)","Solveig Axelsson","Alvesta",1278,null,9,71,null,null,null,null,null,128,null,146,67,null,null,null,149,122,133,null,183,null,140,210,17,"-","-","-",71,67,67,67,null,null,0,1,1,1,2,2,2,3,2,1,1,2,3,3,1,2,2,2,3,null,2,null,null,210,183,149,146,140,133,128,122,67,"","","","","","","","-","-","-",6,null,1278,null,null,null,null,null,null,null,null,null,null,null,null,null,null,null,null,null,null,null,null,null,null,null,null,null,null,null,null,null,null,null,null,null,null,null,null,null,null,null,null,null,null,null,null,null,null,null,null,null,null,null,null,null,null,null,null,null,null,null,null,null,null,67,null,67,"(71)"]
["68 (68)","Elin Olsson","Dynapac ",1264,null,7,90.285714285714292,null,null,115,null,173,null,217,null,null,148,172,null,null,null,170,null,null,269,null,null,17,"-","-","-",68,68,68,68,null,null,0,2,2,2,2,2,2,1,2,3,2,1,1,2,1,1,2,2,1,null,2,null,null,269,217,173,172,170,148,115,"","","","","","","","","","-","-","-",8,null,1264,null,null,null,null,null,null,null,null,null,null,null,null,null,null,null,null,null,null,null,null,null,null,null,null,null,null,null,null,null,null,null,null,null,null,null,null,null,null,null,null,null,null,null,null,null,null,null,null,null,null,null,null,null,null,null,null,null,null,null,null,null,null,68,null,68,"(68)"]
["69 (69)","Irené Pettersson","Lanternan",1252,null,9,69.555555555555557,null,null,101,null,null,null,170,null,null,92,84,143,151,null,147,null,null,181,183,null,17,"-","-","-",69,69,69,69,null,null,0,2,2,1,1,2,2,1,2,3,3,3,2,2,1,1,2,3,2,null,2,null,null,183,181,170,151,147,143,101,92,84,"","","","","","","","-","-","-",6,null,1252,null,null,null,null,null,null,null,null,null,null,null,null,null,null,null,null,null,null,null,null,null,null,null,null,null,null,null,null,null,null,null,null,null,null,null,null,null,null,null,null,null,null,null,null,null,null,null,null,null,null,null,null,null,null,null,null,null,null,null,null,null,null,69,null,69,"(69)"]
["70 (73)","Daniel Mårtensson","Jämjö Hsk",1081,null,7,77.214285714285708,null,null,174,null,null,null,null,null,null,185,102,null,null,null,158,null,null,190,108,164,17,"-","-","-",73,70,70,70,null,null,0,2,2,1,1,1,1,1,2,3,2,1,1,2,1,1,2,3,3,null,2,null,null,190,185,174,164,158,108,102,"","","","","","","","","","-","-","-",8,null,1081,null,null,null,null,null,null,null,null,null,null,null,null,null,null,null,null,null,null,null,null,null,null,null,null,null,null,null,null,null,null,null,null,null,null,null,null,null,null,null,null,null,null,null,null,null,null,null,null,null,null,null,null,null,null,null,null,null,null,null,null,null,null,70,null,70,"(73)"]
["71 (62)","Mathias Karlberg","Jämjö Hsk",1070,null,4,133.75,null,null,200,250,null,null,269,null,null,null,null,null,null,null,null,null,null,351,null,null,17,"-","-","-",62,71,71,71,null,null,0,2,3,2,1,2,2,1,1,1,1,1,1,1,0,1,2,2,1,null,2,null,null,351,269,250,200,"","","","","","","","","","","","","-","-","-",11,null,1070,null,null,null,null,null,null,null,null,null,null,null,null,null,null,null,null,null,null,null,null,null,null,null,null,null,null,null,null,null,null,null,null,null,null,null,null,null,null,null,null,null,null,null,null,null,null,null,null,null,null,null,null,null,null,null,null,null,null,null,null,null,null,71,null,71,"(62)"]
["72 (74)","Per-Olof Johansson","Dynapac ",1031,null,5,103.1,null,null,null,191,null,null,239,null,null,202,207,192,null,null,null,null,null,null,null,null,17,"-","-","-",74,72,72,72,null,null,0,1,2,2,1,2,2,1,2,3,3,2,1,1,0,1,1,1,1,null,2,null,null,239,207,202,192,191,"","","","","","","","","","","","-","-","-",10,null,1031,null,null,null,null,null,null,null,null,null,null,null,null,null,null,null,null,null,null,null,null,null,null,null,null,null,null,null,null,null,null,null,null,null,null,null,null,null,null,null,null,null,null,null,null,null,null,null,null,null,null,null,null,null,null,null,null,null,null,null,null,null,null,72,null,72,"(74)"]
["73 (75)","Christer Brincner","Värends Hsk",1017,null,6,84.75,null,null,null,null,null,204,null,200,156,null,null,180,null,110,null,null,null,null,167,null,17,"-","-","-",75,73,73,73,null,null,0,1,1,1,2,2,2,3,2,1,2,2,2,2,0,1,1,2,2,null,2,null,null,204,200,180,167,156,110,"","","","","","","","","","","-","-","-",9,null,1017,null,null,null,null,null,null,null,null,null,null,null,null,null,null,null,null,null,null,null,null,null,null,null,null,null,null,null,null,null,null,null,null,null,null,null,null,null,null,null,null,null,null,null,null,null,null,null,null,null,null,null,null,null,null,null,null,null,null,null,null,null,null,73,null,73,"(75)"]
["74 (76)","Fredrik Lundin","Lanternan",1006,null,4,125.75,null,null,195,null,null,null,null,null,null,188,null,null,null,null,null,null,null,347,276,null,17,"-","-","-",76,74,74,74,null,null,0,2,2,1,1,1,1,1,2,2,1,1,1,1,0,1,2,3,2,null,2,null,null,347,276,195,188,"","","","","","","","","","","","","-","-","-",11,null,1006,null,null,null,null,null,null,null,null,null,null,null,null,null,null,null,null,null,null,null,null,null,null,null,null,null,null,null,null,null,null,null,null,null,null,null,null,null,null,null,null,null,null,null,null,null,null,null,null,null,null,null,null,null,null,null,null,null,null,null,null,null,null,74,null,74,"(76)"]
["75 (70)","Mattias Olsson","Dynapac ",980,null,4,122.5,null,null,null,192,281,null,null,null,null,264,null,null,null,null,null,null,null,243,null,null,17,"-","-","-",70,75,75,75,null,null,0,1,2,3,2,1,1,1,2,2,1,1,1,1,0,1,2,2,1,null,2,null,null,281,264,243,192,"","","","","","","","","","","","","-","-","-",11,null,980,null,null,null,null,null,null,null,null,null,null,null,null,null,null,null,null,null,null,null,null,null,null,null,null,null,null,null,null,null,null,null,null,null,null,null,null,null,null,null,null,null,null,null,null,null,null,null,null,null,null,null,null,null,null,null,null,null,null,null,null,null,null,75,null,75,"(70)"]
["76 (78)","Ulrika Rydell","Värends Hsk",928,null,6,77.333333333333329,null,null,null,113,171,null,162,null,null,null,null,null,198,null,null,null,128,null,156,null,17,"-","-","-",78,76,76,76,null,null,0,1,2,3,2,2,2,1,1,1,1,2,2,1,0,2,2,2,2,null,2,null,null,198,171,162,156,128,113,"","","","","","","","","","","-","-","-",9,null,928,null,null,null,null,null,null,null,null,null,null,null,null,null,null,null,null,null,null,null,null,null,null,null,null,null,null,null,null,null,null,null,null,null,null,null,null,null,null,null,null,null,null,null,null,null,null,null,null,null,null,null,null,null,null,null,null,null,null,null,null,null,null,76,null,76,"(78)"]
["77 (80)","Sebastian Israelsson","Sibbamåla",895,null,4,111.875,null,null,230,179,null,null,null,null,null,213,null,null,null,null,null,null,null,273,null,null,17,"-","-","-",80,77,77,77,null,null,0,2,3,2,1,1,1,1,2,2,1,1,1,1,0,1,2,2,1,null,2,null,null,273,230,213,179,"","","","","","","","","","","","","-","-","-",11,null,895,null,null,null,null,null,null,null,null,null,null,null,null,null,null,null,null,null,null,null,null,null,null,null,null,null,null,null,null,null,null,null,null,null,null,null,null,null,null,null,null,null,null,null,null,null,null,null,null,null,null,null,null,null,null,null,null,null,null,null,null,null,null,77,null,77,"(80)"]
["78 (93)","Bertil Westergren","Växjö Hsk",882,null,4,110.25,null,null,null,null,null,null,null,null,null,null,null,203,162,null,null,null,286,null,null,231,17,"-","-","-",93,78,78,78,null,null,0,1,1,1,1,1,1,1,1,1,2,3,2,1,0,2,2,1,2,null,2,null,null,286,231,203,162,"","","","","","","","","","","","","-","-","-",11,null,882,null,null,null,null,null,null,null,null,null,null,null,null,null,null,null,null,null,null,null,null,null,null,null,null,null,null,null,null,null,null,null,null,null,null,null,null,null,null,null,null,null,null,null,null,null,null,null,null,null,null,null,null,null,null,null,null,null,null,null,null,null,null,78,null,78,"(93)"]
["79 (72)","Lasse Nilsson","Värends Hsk",853,null,5,85.3,null,null,null,null,null,null,199,null,null,null,null,159,null,104,null,null,243,null,148,null,17,"-","-","-",72,79,79,79,null,null,0,1,1,1,1,2,2,1,1,1,2,2,2,2,0,2,2,2,2,null,2,null,null,243,199,159,148,104,"","","","","","","","","","","","-","-","-",10,null,853,null,null,null,null,null,null,null,null,null,null,null,null,null,null,null,null,null,null,null,null,null,null,null,null,null,null,null,null,null,null,null,null,null,null,null,null,null,null,null,null,null,null,null,null,null,null,null,null,null,null,null,null,null,null,null,null,null,null,null,null,null,null,79,null,79,"(72)"]
["80 (83)","Roland Andreasson","Lanternan",811,null,4,101.375,null,null,199,null,null,null,207,null,null,null,null,null,152,null,null,null,null,253,null,null,17,"-","-","-",83,80,80,80,null,null,0,2,2,1,1,2,2,1,1,1,1,2,2,1,0,1,2,2,1,null,2,null,null,253,207,199,152,"","","","","","","","","","","","","-","-","-",11,null,811,null,null,null,null,null,null,null,null,null,null,null,null,null,null,null,null,null,null,null,null,null,null,null,null,null,null,null,null,null,null,null,null,null,null,null,null,null,null,null,null,null,null,null,null,null,null,null,null,null,null,null,null,null,null,null,null,null,null,null,null,null,null,80,null,80,"(83)"]
["81 (89)","Maria Andersson","Team Småland Hsk",794,null,6,66.166666666666671,null,null,null,124,200,null,null,null,null,85,null,null,null,null,null,null,47,null,153,185,17,"-","-","-",89,81,81,81,null,null,0,1,2,3,2,1,1,1,2,2,1,1,1,1,0,2,2,2,3,null,2,null,null,200,185,153,124,85,47,"","","","","","","","","","","-","-","-",9,null,794,null,null,null,null,null,null,null,null,null,null,null,null,null,null,null,null,null,null,null,null,null,null,null,null,null,null,null,null,null,null,null,null,null,null,null,null,null,null,null,null,null,null,null,null,null,null,null,null,null,null,null,null,null,null,null,null,null,null,null,null,null,null,81,null,81,"(89)"]
["82 (77)","Hannah Karlberg","Jämjö Hsk",788,null,5,78.8,null,null,110,212,null,null,106,null,null,139,null,null,null,null,null,null,null,221,null,null,17,"-","-","-",77,82,82,82,null,null,0,2,3,2,1,2,2,1,2,2,1,1,1,1,0,1,2,2,1,null,2,null,null,221,212,139,110,106,"","","","","","","","","","","","-","-","-",10,null,788,null,null,null,null,null,null,null,null,null,null,null,null,null,null,null,null,null,null,null,null,null,null,null,null,null,null,null,null,null,null,null,null,null,null,null,null,null,null,null,null,null,null,null,null,null,null,null,null,null,null,null,null,null,null,null,null,null,null,null,null,null,null,82,null,82,"(77)"]
["83 (84)","Armin Sisic","Värends Hsk",784,null,2,196,null,null,null,null,null,null,null,null,null,null,null,null,null,null,null,null,412,null,372,null,17,"-","-","-",84,83,83,83,null,null,0,1,1,1,1,1,1,1,1,1,1,1,1,1,0,2,2,2,2,null,2,null,null,412,372,"","","","","","","","","","","","","","","-","-","-",13,null,784,null,null,null,null,null,null,null,null,null,null,null,null,null,null,null,null,null,null,null,null,null,null,null,null,null,null,null,null,null,null,null,null,null,null,null,null,null,null,null,null,null,null,null,null,null,null,null,null,null,null,null,null,null,null,null,null,null,null,null,null,null,null,83,null,83,"(84)"]
["84 (94)","Inge Skoglöv","Jämjö Hsk",782,null,4,97.75,null,null,null,null,null,null,null,null,null,null,null,null,null,null,183,null,null,183,259,157,17,"-","-","-",94,84,84,84,null,null,0,1,1,1,1,1,1,1,1,1,1,1,1,2,1,1,2,3,3,null,2,null,null,259,183,183,157,"","","","","","","","","","","","","-","-","-",11,null,782,null,null,null,null,null,null,null,null,null,null,null,null,null,null,null,null,null,null,null,null,null,null,null,null,null,null,null,null,null,null,null,null,null,null,null,null,null,null,null,null,null,null,null,null,null,null,null,null,null,null,null,null,null,null,null,null,null,null,null,null,null,null,84,null,84,"(94)"]
["85 (82)","Hans Johansson","Tingsryd",778,null,3,129.66666666666666,null,null,null,null,null,null,null,null,null,null,null,null,305,null,265,null,null,null,null,208,17,"-","-","-",82,85,85,85,null,null,0,1,1,1,1,1,1,1,1,1,1,2,2,2,1,1,1,1,2,null,2,null,null,305,265,208,"","","","","","","","","","","","","","-","-","-",12,null,778,null,null,null,null,null,null,null,null,null,null,null,null,null,null,null,null,null,null,null,null,null,null,null,null,null,null,null,null,null,null,null,null,null,null,null,null,null,null,null,null,null,null,null,null,null,null,null,null,null,null,null,null,null,null,null,null,null,null,null,null,null,null,85,null,85,"(82)"]
["86 (86)","Jonas Klarström","Team Småland Hsk",764,null,6,63.666666666666664,null,null,null,129,131,null,null,null,null,76,null,null,null,null,null,null,120,null,173,135,17,"-","-","-",86,86,86,86,null,null,0,1,2,3,2,1,1,1,2,2,1,1,1,1,0,2,2,2,3,null,2,null,null,173,135,131,129,120,76,"","","","","","","","","","","-","-","-",9,null,764,null,null,null,null,null,null,null,null,null,null,null,null,null,null,null,null,null,null,null,null,null,null,null,null,null,null,null,null,null,null,null,null,null,null,null,null,null,null,null,null,null,null,null,null,null,null,null,null,null,null,null,null,null,null,null,null,null,null,null,null,null,null,86,null,86,"(86)"]
["87 (85)","Lisbeth Blihd","Lanternan",763,null,5,76.3,null,null,109,null,null,null,194,null,null,99,140,null,null,null,null,null,null,221,null,null,17,"-","-","-",85,87,87,87,null,null,0,2,2,1,1,2,2,1,2,3,2,1,1,1,0,1,2,2,1,null,2,null,null,221,194,140,109,99,"","","","","","","","","","","","-","-","-",10,null,763,null,null,null,null,null,null,null,null,null,null,null,null,null,null,null,null,null,null,null,null,null,null,null,null,null,null,null,null,null,null,null,null,null,null,null,null,null,null,null,null,null,null,null,null,null,null,null,null,null,null,null,null,null,null,null,null,null,null,null,null,null,null,87,null,87,"(85)"]
["88 (88)","Morgan Atle","Dynapac ",715,null,5,71.5,null,null,128,77,167,null,null,null,null,null,178,null,null,null,null,null,null,165,null,null,17,"-","-","-",88,88,88,88,null,null,0,2,3,3,2,1,1,1,1,2,2,1,1,1,0,1,2,2,1,null,2,null,null,178,167,165,128,77,"","","","","","","","","","","","-","-","-",10,null,715,null,null,null,null,null,null,null,null,null,null,null,null,null,null,null,null,null,null,null,null,null,null,null,null,null,null,null,null,null,null,null,null,null,null,null,null,null,null,null,null,null,null,null,null,null,null,null,null,null,null,null,null,null,null,null,null,null,null,null,null,null,null,88,null,88,"(88)"]
["89 (90)","Stefan Olofsson","Korpen Nybro",698,null,3,116.33333333333333,null,null,null,null,null,238,null,null,null,null,null,null,244,null,null,null,216,null,null,null,17,"-","-","-",90,89,89,89,null,null,0,1,1,1,2,2,1,1,1,1,1,2,2,1,0,2,2,1,1,null,2,null,null,{"$f":"IF($F93>0,LARGE($I93:$AA93,1),\"\")","v":244},{"$f":"IF($F93>1,LARGE($I93:$AA93,2),\"\")","v":238},{"$f":"IF($F93>2,LARGE($I93:$AA93,3),\"\")","v":216},{"$f":"IF($F93>3,LARGE($I93:$AA93,4),\"\")","v":""},{"$f":"IF($F93>4,LARGE($I93:$AA93,5),\"\")","v":""},{"$f":"IF($F93>5,LARGE($I93:$AA93,6),\"\")","v":""},{"$f":"IF($F93>6,LARGE($I93:$AA93,7),\"\")","v":""},{"$f":"IF($F93>7,LARGE($I93:$AA93,8),\"\")","v":""},{"$f":"IF($F93>8,LARGE($I93:$AA93,9),\"\")","v":""},{"$f":"IF($F93>9,LARGE($I93:$AA93,10),\"\")","v":""},{"$f":"IF($F93>10,LARGE($I93:$AA93,11),\"\")","v":""},{"$f":"IF($F93>11,LARGE($I93:$AA93,12),\"\")","v":""},{"$f":"IF($F93>12,LARGE($I93:$AA93,13),\"\")","v":""},{"$f":"IF($F93>13,LARGE($I93:$AA93,14),\"\")","v":""},{"$f":"IF($F93>14,LARGE($I93:$AA93,15),\"\")","v":""},"","-","-","-",12,null,698,null,null,null,null,null,null,null,null,null,null,null,null,null,null,null,null,null,null,null,null,null,null,null,null,null,null,null,null,null,null,null,null,null,null,null,null,null,null,null,null,null,null,null,null,null,null,null,null,null,null,null,null,null,null,null,null,null,null,null,null,null,null,90,null,89,"(90)"]
["90 (87)","Stephan Gervide","Korpen Nybro",695,null,4,86.875,null,null,139,128,null,null,null,null,null,null,null,null,228,null,null,null,null,null,null,200,17,"-","-","-",87,90,90,90,null,null,0,2,3,2,1,1,1,1,1,1,1,2,2,1,0,1,1,1,2,null,2,null,null,228,200,139,128,"","","","","","","","","","","","","-","-","-",11,null,695,null,null,null,null,null,null,null,null,null,null,null,null,null,null,null,null,null,null,null,null,null,null,null,null,null,null,null,null,null,null,null,null,null,null,null,null,null,null,null,null,null,null,null,null,null,null,null,null,null,null,null,null,null,null,null,null,null,null,null,null,null,null,91,null,90,"(87)"]
["91 (79)","Gunnar Lundbeck","Tingsryd",693,null,4,86.625,null,null,null,null,null,null,185,null,null,null,null,196,161,151,null,null,null,null,null,null,17,"-","-","-",79,91,91,91,null,null,0,1,1,1,1,2,2,1,1,1,2,3,3,2,0,1,1,1,1,null,2,null,null,196,185,161,151,"","","","","","","","","","","","","-","-","-",11,null,693,null,null,null,null,null,null,null,null,null,null,null,null,null,null,null,null,null,null,null,null,null,null,null,null,null,null,null,null,null,null,null,null,null,null,null,null,null,null,null,null,null,null,null,null,null,null,null,null,null,null,null,null,null,null,null,null,null,null,null,null,null,null,92,null,91,"(79)"]
["92 (91)","Arne Blihd","Lanternan",687,null,6,57.25,null,null,107,null,null,null,146,null,null,82,141,null,81,null,null,null,null,130,null,null,17,"-","-","-",91,92,92,92,null,null,0,2,2,1,1,2,2,1,2,3,2,2,2,1,0,1,2,2,1,null,2,null,null,146,141,130,107,82,81,"","","","","","","","","","","-","-","-",9,null,687,null,null,null,null,null,null,null,null,null,null,null,null,null,null,null,null,null,null,null,null,null,null,null,null,null,null,null,null,null,null,null,null,null,null,null,null,null,null,null,null,null,null,null,null,null,null,null,null,null,null,null,null,null,null,null,null,null,null,null,null,null,null,93,null,92,"(91)"]
["93 (92)","Tommy Svensson","Värends Hsk",671,null,6,55.916666666666664,null,null,null,null,null,null,null,140,136,null,null,118,100,59,null,null,null,null,118,null,17,"-","-","-",92,93,93,93,null,null,0,1,1,1,1,1,2,3,2,1,2,3,3,2,0,1,1,2,2,null,2,null,null,140,136,118,118,100,59,"","","","","","","","","","","-","-","-",9,null,671,null,null,null,null,null,null,null,null,null,null,null,null,null,null,null,null,null,null,null,null,null,null,null,null,null,null,null,null,null,null,null,null,null,null,null,null,null,null,null,null,null,null,null,null,null,null,null,null,null,null,null,null,null,null,null,null,null,null,null,null,null,null,89,null,93,"(92)"]
["94 (81)","Mats Mårtensson","Jämjö Hsk",590,null,3,98.333333333333329,null,null,null,173,212,null,null,null,null,null,205,null,null,null,null,null,null,null,null,null,17,"-","-","-",81,94,94,94,null,null,0,1,2,3,2,1,1,1,1,2,2,1,1,1,0,1,1,1,1,null,2,null,null,212,205,173,"","","","","","","","","","","","","","-","-","-",12,null,590,null,null,null,null,null,null,null,null,null,null,null,null,null,null,null,null,null,null,null,null,null,null,null,null,null,null,null,null,null,null,null,null,null,null,null,null,null,null,null,null,null,null,null,null,null,null,null,null,null,null,null,null,null,null,null,null,null,null,null,null,null,null,94,null,94,"(81)"]
["95 (95)","Jörgen Holmqvist","Lessebo Hsk",534,null,2,133.5,null,null,null,null,null,null,null,null,null,309,null,null,null,225,null,null,null,null,null,null,17,"-","-","-",95,95,95,95,null,null,0,1,1,1,1,1,1,1,2,2,1,1,2,2,0,1,1,1,1,null,2,null,null,309,225,"","","","","","","","","","","","","","","-","-","-",13,null,534,null,null,null,null,null,null,null,null,null,null,null,null,null,null,null,null,null,null,null,null,null,null,null,null,null,null,null,null,null,null,null,null,null,null,null,null,null,null,null,null,null,null,null,null,null,null,null,null,null,null,null,null,null,null,null,null,null,null,null,null,null,null,95,null,95,"(95)"]
["95 (95)","Julius Gneupel","Sibbamåla",534,null,4,66.75,null,null,null,162,166,null,null,null,null,88,null,null,null,null,null,null,null,118,null,null,17,"-","-","-",95,95,96,96,null,null,0,1,2,3,2,1,1,1,2,2,1,1,1,1,0,1,2,2,1,null,2,null,null,166,162,118,88,"","","","","","","","","","","","","-","-","-",11,null,534,null,null,null,null,null,null,null,null,null,null,null,null,null,null,null,null,null,null,null,null,null,null,null,null,null,null,null,null,null,null,null,null,null,null,null,null,null,null,null,null,null,null,null,null,null,null,null,null,null,null,null,null,null,null,null,null,null,null,null,null,null,null,96,null,95,"(95)"]
["97 (97)","Lars Johanesson","Jämjö Hsk",514,null,4,64.25,null,null,null,null,null,null,126,null,null,null,null,null,null,null,119,null,null,122,147,null,17,"-","-","-",97,97,97,97,null,null,{"$f":"COUNT($I$3,I101,H101)","v":0},{"$f":"COUNT($J$3,J101,I101)","v":1},{"$f":"COUNT($K$3,K101,J101)","v":1},{"$f":"COUNT($L$3,L101,K101)","v":1},{"$f":"COUNT($M$3,M101,L101)","v":1},{"$f":"COUNT($N$3,N101,M101)","v":2},{"$f":"COUNT($O$3,O101,N101)","v":2},{"$f":"COUNT($P$3,P101,O101)","v":1},{"$f":"COUNT($Q$3,Q101,P101)","v":1},{"$f":"COUNT($R$3,R101,Q101)","v":1},{"$f":"COUNT($S$3,S101,R101)","v":1},{"$f":"COUNT($T$3,T101,S101)","v":1},{"$f":"COUNT($U$3,U101,T101)","v":1},{"$f":"COUNT($V$3,V101,U101)","v":2},{"$f":"COUNT($W$3,W101,V101)","v":1},{"$f":"COUNT($X$3,X101,W101)","v":1},{"$f":"COUNT($Y$3,Y101,X101)","v":2},{"$f":"COUNT($Z$3,Z101,Y101)","v":3},{"$f":"COUNT($AA$3,AA101,Z101)","v":2},null,{"$f":"IF(H101=\"x\",1,2)","v":2},null,null,147,126,122,119,"","","","","","","","","","","","","-","-","-",11,null,514,null,null,null,null,null,null,null,null,null,null,null,null,null,null,null,null,null,null,null,null,null,null,null,null,null,null,null,null,null,null,null,null,null,null,null,null,null,null,null,null,null,null,null,null,null,null,null,null,null,null,null,null,null,null,null,null,null,null,null,null,null,null,97,null,{"$f":"IF(BF101>=1,AG101,\"\")","v":97},"(97)"]
["98 (98)","Christer Lööv","Värends Hsk",513,null,2,128.25,null,null,null,null,null,null,null,null,null,null,null,null,null,null,223,null,null,null,290,null,17,"-","-","-",98,{"$f":"IF(D102<D101,AI102,AG101)","v":98},98,98,null,null,0,1,1,1,1,1,1,1,1,1,1,1,1,2,1,1,1,2,2,null,2,null,null,290,223,"","","","","","","","","","","","","","","-","-","-",13,null,513,null,null,null,null,null,null,null,null,null,null,null,null,null,null,null,null,null,null,null,null,null,null,null,null,null,null,null,null,null,null,null,null,null,null,null,null,null,null,null,null,null,null,null,null,null,null,null,null,null,null,null,null,null,null,null,null,null,null,null,null,null,null,98,null,98,"(98)"]
["99 (102)","Marcus Karlsson","Jämjö Hsk",506,null,3,84.333333333333329,null,null,101,null,null,null,null,null,null,199,null,null,null,null,null,null,null,null,null,206,17,"-","-","-",102,99,99,99,null,null,0,2,2,1,1,1,1,1,2,2,1,1,1,1,0,1,1,1,2,null,2,null,null,206,199,101,"","","","","","","","","","","","","","-","-","-",12,null,506,null,null,null,null,null,null,null,null,null,null,null,null,null,null,null,null,null,null,null,null,null,null,null,null,null,null,null,null,null,null,null,null,null,null,null,null,null,null,null,null,null,null,null,null,null,null,null,null,null,null,null,null,null,null,null,null,null,null,null,null,null,null,99,null,99,"(102)"]
["100 (100)","Björn Landberg","Vaxholm Hsk",502,null,2,125.5,null,null,null,null,null,null,null,null,null,null,null,null,null,null,222,null,null,null,280,null,17,"-","-","-",100,100,100,100,null,null,0,1,1,1,1,1,1,1,1,1,1,1,1,2,1,1,1,2,2,null,2,null,null,280,222,"","","","","","","","","","","","","","","-","-","-",13,null,502,null,null,null,null,null,null,null,null,null,null,null,null,null,null,null,null,null,null,null,null,null,null,null,null,null,null,null,null,null,null,null,null,null,null,null,null,null,null,null,null,null,null,null,null,null,null,null,null,null,null,null,null,null,null,null,null,null,null,null,null,null,null,100,null,100,"(100)"]
["101 (101)","Rolf Johannesson","Värends Hsk",499,null,4,62.375,null,null,null,null,null,136,null,null,null,null,null,null,88,140,135,null,null,null,null,null,17,"-","-","-",101,101,101,101,null,null,0,1,1,1,2,2,1,1,1,1,1,2,3,3,1,1,1,1,1,null,2,null,null,140,136,135,88,"","","","","","","","","","","","","-","-","-",11,null,499,null,null,null,null,null,null,null,null,null,null,null,null,null,null,null,null,null,null,null,null,null,null,null,null,null,null,null,null,null,null,null,null,null,null,null,null,null,null,null,null,null,null,null,null,null,null,null,null,null,null,null,null,null,null,null,null,null,null,null,null,null,null,101,null,101,"(101)"]
["102 (103)","Bo Fransson","Lessebo",472,null,2,118,null,null,null,null,null,null,null,null,null,276,null,null,null,196,null,null,null,null,null,null,17,"-","-","-",103,102,102,102,null,null,0,1,1,1,1,1,1,1,2,2,1,1,2,2,0,1,1,1,1,null,2,null,null,276,196,"","","","","","","","","","","","","","","-","-","-",13,null,472,null,null,null,null,null,null,null,null,null,null,null,null,null,null,null,null,null,null,null,null,null,null,null,null,null,null,null,null,null,null,null,null,null,null,null,null,null,null,null,null,null,null,null,null,null,null,null,null,null,null,null,null,null,null,null,null,null,null,null,null,null,null,103,null,102,"(103)"]
["103 (104)","Paul Karlsson","Lessebo",461,null,2,115.25,null,null,null,null,null,null,null,null,null,260,null,null,null,201,null,null,null,null,null,null,17,"-","-","-",104,103,103,103,null,null,0,1,1,1,1,1,1,1,2,2,1,1,2,2,0,1,1,1,1,null,2,null,null,260,201,"","","","","","","","","","","","","","","-","-","-",13,null,461,null,null,null,null,null,null,null,null,null,null,null,null,null,null,null,null,null,null,null,null,null,null,null,null,null,null,null,null,null,null,null,null,null,null,null,null,null,null,null,null,null,null,null,null,null,null,null,null,null,null,null,null,null,null,null,null,null,null,null,null,null,null,104,null,103,"(104)"]
["104 (105)","Björn Gabrielsson","Vaxholm Hsk",453,null,2,113.25,null,null,null,null,null,null,null,null,null,null,null,null,null,null,243,null,null,null,210,null,17,"-","-","-",105,104,104,104,null,null,0,1,1,1,1,1,1,1,1,1,1,1,1,2,1,1,1,2,2,null,2,null,null,243,210,"","","","","","","","","","","","","","","-","-","-",13,null,453,null,null,null,null,null,null,null,null,null,null,null,null,null,null,null,null,null,null,null,null,null,null,null,null,null,null,null,null,null,null,null,null,null,null,null,null,null,null,null,null,null,null,null,null,null,null,null,null,null,null,null,null,null,null,null,null,null,null,null,null,null,null,105,null,104,"(105)"]
["105 (106)","Kristian Jältsäter","Vaxholm Hsk",408,null,2,102,null,null,null,null,null,null,null,null,null,null,null,null,null,null,181,null,null,null,227,null,17,"-","-","-",106,105,105,105,null,null,0,1,1,1,1,1,1,1,1,1,1,1,1,2,1,1,1,2,2,null,2,null,null,227,181,"","","","","","","","","","","","","","","-","-","-",13,null,408,null,null,null,null,null,null,null,null,null,null,null,null,null,null,null,null,null,null,null,null,null,null,null,null,null,null,null,null,null,null,null,null,null,null,null,null,null,null,null,null,null,null,null,null,null,null,null,null,null,null,null,null,null,null,null,null,null,null,null,null,null,null,106,null,105,"(106)"]
["106 (107)","Anders Alriksson","Dynapac ",397,null,2,99.25,null,null,162,null,null,null,null,null,null,null,null,null,null,null,null,null,null,235,null,null,17,"-","-","-",107,106,106,106,null,null,0,2,2,1,1,1,1,1,1,1,1,1,1,1,0,1,2,2,1,null,2,null,null,235,162,"","","","","","","","","","","","","","","-","-","-",13,null,397,null,null,null,null,null,null,null,null,null,null,null,null,null,null,null,null,null,null,null,null,null,null,null,null,null,null,null,null,null,null,null,null,null,null,null,null,null,null,null,null,null,null,null,null,null,null,null,null,null,null,null,null,null,null,null,null,null,null,null,null,null,null,107,null,106,"(107)"]
["107 (108)","Kjell Åkesson","Lanternan",388,null,3,64.666666666666671,null,null,112,null,null,null,null,null,null,146,130,null,null,null,null,null,null,null,null,null,17,"-","-","-",108,107,107,107,null,null,0,2,2,1,1,1,1,1,2,3,2,1,1,1,0,1,1,1,1,null,2,null,null,146,130,112,"","","","","","","","","","","","","","-","-","-",12,null,388,null,null,null,null,null,null,null,null,null,null,null,null,null,null,null,null,null,null,null,null,null,null,null,null,null,null,null,null,null,null,null,null,null,null,null,null,null,null,null,null,null,null,null,null,null,null,null,null,null,null,null,null,null,null,null,null,null,null,null,null,null,null,108,null,107,"(108)"]
["108 (130)","Kerstin Petersen","Växjö Hsk",379,null,3,63.166666666666664,null,null,null,null,null,null,null,null,null,null,null,128,null,89,null,null,null,null,null,162,17,"-","-","-",130,108,108,108,null,null,0,1,1,1,1,1,1,1,1,1,2,2,2,2,0,1,1,1,2,null,2,null,null,162,128,89,"","","","","","","","","","","","","","-","-","-",12,null,379,null,null,null,null,null,null,null,null,null,null,null,null,null,null,null,null,null,null,null,null,null,null,null,null,null,null,null,null,null,null,null,null,null,null,null,null,null,null,null,null,null,null,null,null,null,null,null,null,null,null,null,null,null,null,null,null,null,null,null,null,null,null,102,null,108,"(130)"]
["109 (98)","Ulrika Strandahl","Växjö",377,null,2,94.25,null,null,174,null,null,203,null,null,null,null,null,null,null,null,null,null,null,null,null,null,17,"-","-","-",98,109,109,109,null,null,0,2,2,1,2,2,1,1,1,1,1,1,1,1,0,1,1,1,1,null,2,null,null,203,174,"","","","","","","","","","","","","","","-","-","-",13,null,377,null,null,null,null,null,null,null,null,null,null,null,null,null,null,null,null,null,null,null,null,null,null,null,null,null,null,null,null,null,null,null,null,null,null,null,null,null,null,null,null,null,null,null,null,null,null,null,null,null,null,null,null,null,null,null,null,null,null,null,null,null,null,109,null,109,"(98)"]
["110 (109)","Susanne Simonsson","Lanternan",374,null,3,62.333333333333336,null,null,103,null,null,null,152,null,null,null,null,null,119,null,null,null,null,null,null,null,17,"-","-","-",109,110,110,110,null,null,0,2,2,1,1,2,2,1,1,1,1,2,2,1,0,1,1,1,1,null,2,null,null,152,119,103,"","","","","","","","","","","","","","-","-","-",12,null,374,null,null,null,null,null,null,null,null,null,null,null,null,null,null,null,null,null,null,null,null,null,null,null,null,null,null,null,null,null,null,null,null,null,null,null,null,null,null,null,null,null,null,null,null,null,null,null,null,null,null,null,null,null,null,null,null,null,null,null,null,null,null,110,null,110,"(109)"]
["111 (111)","Janne Johansson","Tingsryd",368,null,2,92,null,null,null,null,null,null,218,null,null,null,null,null,150,null,null,null,null,null,null,null,17,"-","-","-",111,111,111,111,null,null,0,1,1,1,1,2,2,1,1,1,1,2,2,1,0,1,1,1,1,null,2,null,null,218,150,"","","","","","","","","","","","","","","-","-","-",13,null,368,null,null,null,null,null,null,null,null,null,null,null,null,null,null,null,null,null,null,null,null,null,null,null,null,null,null,null,null,null,null,null,null,null,null,null,null,null,null,null,null,null,null,null,null,null,null,null,null,null,null,null,null,null,null,null,null,null,null,null,null,null,null,116,null,111,"(111)"]
["112 (151)","Annika Milsten","Tingsryd",324,null,2,81,null,null,null,null,null,null,null,null,null,null,null,null,null,null,null,null,null,null,131,193,17,"-","-","-",151,112,112,112,null,null,0,1,1,1,1,1,1,1,1,1,1,1,1,1,0,1,1,2,3,null,2,null,null,193,131,"","","","","","","","","","","","","","","-","-","-",13,null,324,null,null,null,null,null,null,null,null,null,null,null,null,null,null,null,null,null,null,null,null,null,null,null,null,null,null,null,null,null,null,null,null,null,null,null,null,null,null,null,null,null,null,null,null,null,null,null,null,null,null,null,null,null,null,null,null,null,null,null,null,null,null,111,null,112,"(151)"]
["113 (113)","Michael Karlsson","Hsk Tingzås",320,null,2,80,null,null,null,null,null,null,null,null,null,135,null,null,185,null,null,null,null,null,null,null,17,"-","-","-",113,113,113,113,null,null,0,1,1,1,1,1,1,1,2,2,1,2,2,1,0,1,1,1,1,null,2,null,null,185,135,"","","","","","","","","","","","","","","-","-","-",13,null,320,null,null,null,null,null,null,null,null,null,null,null,null,null,null,null,null,null,null,null,null,null,null,null,null,null,null,null,null,null,null,null,null,null,null,null,null,null,null,null,null,null,null,null,null,null,null,null,null,null,null,null,null,null,null,null,null,null,null,null,null,null,null,112,null,113,"(113)"]
["113 (154)","Åke Bjaerregard","Tingsryd",320,null,2,80,null,null,null,null,null,null,null,null,null,null,null,null,null,null,130,null,null,null,null,190,17,"-","-","-",154,113,114,114,null,null,0,1,1,1,1,1,1,1,1,1,1,1,1,2,1,1,1,1,2,null,2,null,null,190,130,"","","","","","","","","","","","","","","-","-","-",13,null,320,null,null,null,null,null,null,null,null,null,null,null,null,null,null,null,null,null,null,null,null,null,null,null,null,null,null,null,null,null,null,null,null,null,null,null,null,null,null,null,null,null,null,null,null,null,null,null,null,null,null,null,null,null,null,null,null,null,null,null,null,null,null,114,null,113,"(154)"]
["115 (114)","Mimmi Hansson","Korpen Nybro",311,null,2,77.75,null,null,null,null,166,145,null,null,null,null,null,null,null,null,null,null,null,null,null,null,17,"-","-","-",114,115,115,115,null,null,0,1,1,2,3,2,1,1,1,1,1,1,1,1,0,1,1,1,1,null,2,null,null,166,145,"","","","","","","","","","","","","","","-","-","-",13,null,311,null,null,null,null,null,null,null,null,null,null,null,null,null,null,null,null,null,null,null,null,null,null,null,null,null,null,null,null,null,null,null,null,null,null,null,null,null,null,null,null,null,null,null,null,null,null,null,null,null,null,null,null,null,null,null,null,null,null,null,null,null,null,115,null,115,"(114)"]
["116 (142)","Joakim Strand","Korpen Åseda",304,null,2,76,null,null,null,null,null,null,null,null,null,null,null,165,null,null,139,null,null,null,null,null,17,"-","-","-",142,116,116,116,null,null,0,1,1,1,1,1,1,1,1,1,2,2,1,2,1,1,1,1,1,null,2,null,null,165,139,"","","","","","","","","","","","","","","-","-","-",13,null,304,null,null,null,null,null,null,null,null,null,null,null,null,null,null,null,null,null,null,null,null,null,null,null,null,null,null,null,null,null,null,null,null,null,null,null,null,null,null,null,null,null,null,null,null,null,null,null,null,null,null,null,null,null,null,null,null,null,null,null,null,null,null,117,null,116,"(142)"]
["117 (116)","Linnea Gneupel","Sibbamåla",296,null,2,74,null,null,130,null,null,null,null,null,null,166,null,null,null,null,null,null,null,null,null,null,17,"-","-","-",116,117,117,117,null,null,0,2,2,1,1,1,1,1,2,2,1,1,1,1,0,1,1,1,1,null,2,null,null,166,130,"","","","","","","","","","","","","","","-","-","-",13,null,296,null,null,null,null,null,null,null,null,null,null,null,null,null,null,null,null,null,null,null,null,null,null,null,null,null,null,null,null,null,null,null,null,null,null,null,null,null,null,null,null,null,null,null,null,null,null,null,null,null,null,null,null,null,null,null,null,null,null,null,null,null,null,118,null,117,"(116)"]
["118 (117)","Günter Irascho","Växjö Hsk",295,null,2,73.75,null,null,null,136,159,null,null,null,null,null,null,null,null,null,null,null,null,null,null,null,17,"-","-","-",117,118,118,118,null,null,0,1,2,3,2,1,1,1,1,1,1,1,1,1,0,1,1,1,1,null,2,null,null,159,136,"","","","","","","","","","","","","","","-","-","-",13,null,295,null,null,null,null,null,null,null,null,null,null,null,null,null,null,null,null,null,null,null,null,null,null,null,null,null,null,null,null,null,null,null,null,null,null,null,null,null,null,null,null,null,null,null,null,null,null,null,null,null,null,null,null,null,null,null,null,null,null,null,null,null,null,119,null,118,"(117)"]
["119 (110)","Hans Johansson","Korpen Nybro",285,null,4,35.625,null,null,93,64,10,null,null,null,null,null,null,null,118,null,null,null,null,null,null,null,17,"-","-","-",110,119,119,119,null,null,0,2,3,3,2,1,1,1,1,1,1,2,2,1,0,1,1,1,1,null,2,null,null,118,93,64,10,"","","","","","","","","","","","","-","-","-",11,null,285,null,null,null,null,null,null,null,null,null,null,null,null,null,null,null,null,null,null,null,null,null,null,null,null,null,null,null,null,null,null,null,null,null,null,null,null,null,null,null,null,null,null,null,null,null,null,null,null,null,null,null,null,null,null,null,null,null,null,null,null,null,null,120,null,119,"(110)"]
["120 (118)","Christina Holmberg","Tingsryd",271,null,1,135.5,null,null,null,null,null,271,null,null,null,null,null,null,null,null,null,null,null,null,null,null,17,"-","-","-",118,120,"-",120,null,null,0,1,1,1,2,2,1,1,1,1,1,1,1,1,0,1,1,1,1,null,2,null,null,271,"","","","","","","","","","","","","","","","-","-","-",14,null,271,null,null,null,null,null,null,null,null,null,null,null,null,null,null,null,null,null,null,null,null,null,null,null,null,null,null,null,null,null,null,null,null,null,null,null,null,null,null,null,null,null,null,null,null,null,null,null,null,null,null,null,null,null,null,null,null,null,null,null,null,null,null,121,null,120,"(118)"]
["121 (119)","Leif Ahlex","Lessebo",260,null,1,130,null,null,null,null,null,null,null,null,null,null,null,null,null,260,null,null,null,null,null,null,17,"-","-","-",119,121,"-",121,null,null,0,1,1,1,1,1,1,1,1,1,1,1,2,2,0,1,1,1,1,null,2,null,null,{"$f":"IF($F125>0,LARGE($I125:$AA125,1),\"\")","v":260},{"$f":"IF($F125>1,LARGE($I125:$AA125,2),\"\")","v":""},{"$f":"IF($F125>2,LARGE($I125:$AA125,3),\"\")","v":""},{"$f":"IF($F125>3,LARGE($I125:$AA125,4),\"\")","v":""},{"$f":"IF($F125>4,LARGE($I125:$AA125,5),\"\")","v":""},{"$f":"IF($F125>5,LARGE($I125:$AA125,6),\"\")","v":""},{"$f":"IF($F125>6,LARGE($I125:$AA125,7),\"\")","v":""},{"$f":"IF($F125>7,LARGE($I125:$AA125,8),\"\")","v":""},{"$f":"IF($F125>8,LARGE($I125:$AA125,9),\"\")","v":""},{"$f":"IF($F125>9,LARGE($I125:$AA125,10),\"\")","v":""},{"$f":"IF($F125>10,LARGE($I125:$AA125,11),\"\")","v":""},{"$f":"IF($F125>11,LARGE($I125:$AA125,12),\"\")","v":""},{"$f":"IF($F125>12,LARGE($I125:$AA125,13),\"\")","v":""},{"$f":"IF($F125>13,LARGE($I125:$AA125,14),\"\")","v":""},{"$f":"IF($F125>14,LARGE($I125:$AA125,15),\"\")","v":""},"","-","-","-",14,null,260,null,null,null,null,null,null,null,null,null,null,null,null,null,null,null,null,null,null,null,null,null,null,null,null,null,null,null,null,null,null,null,null,null,null,null,null,null,null,null,null,null,null,null,null,null,null,null,null,null,null,null,null,null,null,null,null,null,null,null,null,null,null,127,null,121,"(119)"]
["122 (120)","Bengt-Erik Holmberg","Tingsryd",257,null,1,128.5,null,null,null,null,null,257,null,null,null,null,null,null,null,null,null,null,null,null,null,null,17,"-","-","-",120,122,"-",122,null,null,0,1,1,1,2,2,1,1,1,1,1,1,1,1,0,1,1,1,1,null,2,null,null,257,"","","","","","","","","","","","","","","","-","-","-",14,null,257,null,null,null,null,null,null,null,null,null,null,null,null,null,null,null,null,null,null,null,null,null,null,null,null,null,null,null,null,null,null,null,null,null,null,null,null,null,null,null,null,null,null,null,null,null,null,null,null,null,null,null,null,null,null,null,null,null,null,null,null,null,null,122,null,122,"(120)"]
["123 (121)","Ivar Lindstedt","Cementa IF",245,null,2,61.25,null,null,null,null,null,null,null,78,167,null,null,null,null,null,null,null,null,null,null,null,17,"-","-","-",121,123,123,123,null,null,0,1,1,1,1,1,2,3,2,1,1,1,1,1,0,1,1,1,1,null,2,null,null,167,78,"","","","","","","","","","","","","","","-","-","-",13,null,245,null,null,null,null,null,null,null,null,null,null,null,null,null,null,null,null,null,null,null,null,null,null,null,null,null,null,null,null,null,null,null,null,null,null,null,null,null,null,null,null,null,null,null,null,null,null,null,null,null,null,null,null,null,null,null,null,null,null,null,null,null,null,123,null,123,"(121)"]
["124 (112)","Mikael Bodi","Växjö Hsk",241,null,2,60.25,null,null,48,null,null,193,null,null,null,null,null,null,null,null,null,null,null,null,null,null,17,"-","-","-",112,124,124,124,null,null,0,2,2,1,2,2,1,1,1,1,1,1,1,1,0,1,1,1,1,null,2,null,null,193,48,"","","","","","","","","","","","","","","-","-","-",13,null,241,null,null,null,null,null,null,null,null,null,null,null,null,null,null,null,null,null,null,null,null,null,null,null,null,null,null,null,null,null,null,null,null,null,null,null,null,null,null,null,null,null,null,null,null,null,null,null,null,null,null,null,null,null,null,null,null,null,null,null,null,null,null,124,null,124,"(112)"]
["125 (122)","Ingegärd Holmqvist","Lanternan",234,null,2,58.5,null,null,76,null,null,null,null,null,null,null,null,null,null,null,null,null,null,null,158,null,17,"-","-","-",122,125,125,125,null,null,0,2,2,1,1,1,1,1,1,1,1,1,1,1,0,1,1,2,2,null,2,null,null,158,76,"","","","","","","","","","","","","","","-","-","-",13,null,234,null,null,null,null,null,null,null,null,null,null,null,null,null,null,null,null,null,null,null,null,null,null,null,null,null,null,null,null,null,null,null,null,null,null,null,null,null,null,null,null,null,null,null,null,null,null,null,null,null,null,null,null,null,null,null,null,null,null,null,null,null,null,125,null,125,"(122)"]
["126 (123)","Christer Collin","Livsnjutarna",230,null,2,57.5,null,null,null,null,null,null,52,null,null,178,null,null,null,null,null,null,null,null,null,null,17,"-","-","-",123,126,126,126,null,null,0,1,1,1,1,2,2,1,2,2,1,1,1,1,0,1,1,1,1,null,2,null,null,178,52,"","","","","","","","","","","","","","","-","-","-",13,null,230,null,null,null,null,null,null,null,null,null,null,null,null,null,null,null,null,null,null,null,null,null,null,null,null,null,null,null,null,null,null,null,null,null,null,null,null,null,null,null,null,null,null,null,null,null,null,null,null,null,null,null,null,null,null,null,null,null,null,null,null,null,null,126,null,126,"(123)"]
["127 (124)","Solveig Brincner","Värends Hsk",223,null,4,27.875,null,null,null,null,null,113,null,38,10,null,null,null,62,null,null,null,null,null,null,null,17,"-","-","-",124,127,127,127,null,null,0,1,1,1,2,2,2,3,2,1,1,2,2,1,0,1,1,1,1,null,2,null,null,113,62,38,10,"","","","","","","","","","","","","-","-","-",11,null,223,null,null,null,null,null,null,null,null,null,null,null,null,null,null,null,null,null,null,null,null,null,null,null,null,null,null,null,null,null,null,null,null,null,null,null,null,null,null,null,null,null,null,null,null,null,null,null,null,null,null,null,null,null,null,null,null,null,null,null,null,null,null,113,null,127,"(124)"]
["128 (125)","Alexander Lundqvist","Alvesta",222,null,1,111,null,null,null,null,null,null,null,null,null,null,null,null,null,222,null,null,null,null,null,null,17,"-","-","-",125,128,"-",128,null,null,0,1,1,1,1,1,1,1,1,1,1,1,2,2,0,1,1,1,1,null,2,null,null,222,"","","","","","","","","","","","","","","","-","-","-",14,null,222,null,null,null,null,null,null,null,null,null,null,null,null,null,null,null,null,null,null,null,null,null,null,null,null,null,null,null,null,null,null,null,null,null,null,null,null,null,null,null,null,null,null,null,null,null,null,null,null,null,null,null,null,null,null,null,null,null,null,null,null,null,null,128,null,128,"(125)"]
[{"$f":"IF(BF133>1,AG133&\" (\"&AF133&\")\",AG133&\" (\"&AH133&\")\")","v":"129 (126)"},"Eva Åkesson","Lanternan",{"$f":"SUM(BI133:BU133)","v":220},null,{"$f":"COUNT(I133:AA133)","v":2},{"$f":"SUM((CD133)/(F133*2))","v":55},null,null,137,null,null,null,null,null,null,83,null,null,null,null,null,null,null,null,null,null,{"$f":"SUM($I$3:$AA$3)","v":17},{"$f":"BY133","v":"-"},{"$f":"BZ133","v":"-"},{"$f":"CA133","v":"-"},126,129,{"$f":"IF(F133>1,ROW(129:129),\"-\")","v":129},129,null,null,{"$f":"COUNT($I$3,I133,H133)","v":0},{"$f":"COUNT($J$3,J133,I133)","v":2},{"$f":"COUNT($K$3,K133,J133)","v":2},{"$f":"COUNT($L$3,L133,K133)","v":1},{"$f":"COUNT($M$3,M133,L133)","v":1},{"$f":"COUNT($N$3,N133,M133)","v":1},{"$f":"COUNT($O$3,O133,N133)","v":1},{"$f":"COUNT($P$3,P133,O133)","v":1},{"$f":"COUNT($Q$3,Q133,P133)","v":2},{"$f":"COUNT($R$3,R133,Q133)","v":2},{"$f":"COUNT($S$3,S133,R133)","v":1},{"$f":"COUNT($T$3,T133,S133)","v":1},{"$f":"COUNT($U$3,U133,T133)","v":1},{"$f":"COUNT($V$3,V133,U133)","v":1},{"$f":"COUNT($W$3,W133,V133)","v":0},{"$f":"COUNT($X$3,X133,W133)","v":1},{"$f":"COUNT($Y$3,Y133,X133)","v":1},{"$f":"COUNT($Z$3,Z133,Y133)","v":1},{"$f":"COUNT($AA$3,AA133,Z133)","v":1},null,{"$f":"IF(H133=\"x\",1,2)","v":2},null,null,137,83,"","","","","","","","","","","","","","","-","-","-",13,null,{"$f":"SUM(BI133:BX133)","v":220},null,null,null,null,null,null,null,null,null,null,null,null,null,null,null,null,null,null,null,null,null,null,null,null,null,null,null,null,null,null,null,null,null,null,null,null,null,null,null,null,null,null,null,null,null,null,null,null,null,null,null,null,null,null,null,null,null,null,null,null,null,null,129,null,{"$f":"IF(BF133>=1,AG133,\"\")","v":129},{"$f":"IF(BF133>1,\"(\"&AF133&\")\",\"(\"&AH133&\")\")","v":"(126)"}]
["130 (127)","Magnus Sundqvist","Hsk Tingzås",219,null,1,109.5,null,null,null,null,null,null,null,219,null,null,null,null,null,null,null,null,null,null,null,null,17,"-","-","-",127,{"$f":"IF(D134<D133,AI134,AG133)","v":130},"-",130,null,null,0,1,1,1,1,1,2,2,1,1,1,1,1,1,0,1,1,1,1,null,2,null,null,219,"","","","","","","","","","","","","","",{"$f":"IF($F134>15,LARGE($I134:$AA134,16),\"\")","v":""},{"$f":"IF($F134>13,LARGE($I134:$AA134,14),\"-\")","v":"-"},{"$f":"IF($F134>14,LARGE($I134:$AA134,15),\"-\")","v":"-"},{"$f":"IF($F134>15,LARGE($I134:$AA134,16),\"-\")","v":"-"},{"$f":"SUM(AB134-F134)-2","v":14},null,219,null,null,null,null,null,null,null,null,null,null,null,null,null,null,null,null,null,null,null,null,null,null,null,null,null,null,null,null,null,null,null,null,null,null,null,null,null,null,null,null,null,null,null,null,null,null,null,null,null,null,null,null,null,null,null,null,null,null,null,null,null,null,130,null,130,"(127)"]
["131 (128)","Per-Åke Södergren","Cementa IF",218,null,2,54.5,null,null,null,null,null,null,null,129,89,null,null,null,null,null,null,null,null,null,null,null,17,"-","-","-",128,131,131,131,null,null,0,1,1,1,1,1,2,3,2,1,1,1,1,1,0,1,1,1,1,null,2,null,null,129,89,"","","","","","","","","","","","","","","-","-","-",13,null,218,null,null,null,null,null,null,null,null,null,null,null,null,null,null,null,null,null,null,null,null,null,null,null,null,null,null,null,null,null,null,null,null,null,null,null,null,null,null,null,null,null,null,null,null,null,null,null,null,null,null,null,null,null,null,null,null,null,null,null,null,null,null,131,null,131,"(128)"]
["131 (128)","Andreas Gundersen","Vaxholm Hsk",218,null,1,109,null,null,null,null,null,null,null,null,null,null,null,null,null,null,null,null,null,null,218,null,17,"-","-","-",128,131,"-",132,null,null,0,1,1,1,1,1,1,1,1,1,1,1,1,1,0,1,1,2,2,null,2,null,null,218,"","","","","","","","","","","","","","","","-","-","-",14,null,218,null,null,null,null,null,null,null,null,null,null,null,null,null,null,null,null,null,null,null,null,null,null,null,null,null,null,null,null,null,null,null,null,null,null,null,null,null,null,null,null,null,null,null,null,null,null,null,null,null,null,null,null,null,null,null,null,null,null,null,null,null,null,132,null,131,"(128)"]
["133 (131)","Lena Johansson","Tingsryd",216,null,1,108,null,null,null,null,null,null,null,null,null,null,null,null,null,null,216,null,null,null,null,null,17,"-","-","-",131,133,"-",133,null,null,0,1,1,1,1,1,1,1,1,1,1,1,1,2,1,1,1,1,1,null,2,null,null,216,"","","","","","","","","","","","","","","","-","-","-",14,null,216,null,null,null,null,null,null,null,null,null,null,null,null,null,null,null,null,null,null,null,null,null,null,null,null,null,null,null,null,null,null,null,null,null,null,null,null,null,null,null,null,null,null,null,null,null,null,null,null,null,null,null,null,null,null,null,null,null,null,null,null,null,null,133,null,133,"(131)"]
["134 (-)","Joseph Attenberger","Tingsryd",212,null,1,106,"x",null,null,null,null,null,null,null,null,null,null,null,null,null,null,null,null,null,null,212,17,"-","-","-",115,134,"-",134,null,null,0,1,1,1,1,1,1,1,1,1,1,1,1,1,0,1,1,1,2,null,1,null,null,212,"","","","","","","","","","","","","","","","-","-","-",14,null,212,null,null,null,null,null,null,null,null,null,null,null,null,null,null,null,null,null,null,null,null,null,null,null,null,null,null,null,null,null,null,null,null,null,null,null,null,null,null,null,null,null,null,null,null,null,null,null,null,null,null,null,null,null,null,null,null,null,null,null,null,null,null,135,null,134,"(-)"]
["135 (132)","Linus Israelsson-Ed","Sibbamåla",206,null,2,51.5,null,null,null,104,102,null,null,null,null,null,null,null,null,null,null,null,null,null,null,null,17,"-","-","-",132,135,135,135,null,null,0,1,2,3,2,1,1,1,1,1,1,1,1,1,0,1,1,1,1,null,2,null,null,104,102,"","","","","","","","","","","","","","","-","-","-",13,null,206,null,null,null,null,null,null,null,null,null,null,null,null,null,null,null,null,null,null,null,null,null,null,null,null,null,null,null,null,null,null,null,null,null,null,null,null,null,null,null,null,null,null,null,null,null,null,null,null,null,null,null,null,null,null,null,null,null,null,null,null,null,null,136,null,135,"(132)"]
["136 (133)","Jerry Viksten","Korpen Åseda",197,null,1,98.5,null,null,null,null,null,null,null,null,null,null,null,197,null,null,null,null,null,null,null,null,17,"-","-","-",133,136,"-",136,null,null,0,1,1,1,1,1,1,1,1,1,2,2,1,1,0,1,1,1,1,null,2,null,null,197,"","","","","","","","","","","","","","","","-","-","-",14,null,197,null,null,null,null,null,null,null,null,null,null,null,null,null,null,null,null,null,null,null,null,null,null,null,null,null,null,null,null,null,null,null,null,null,null,null,null,null,null,null,null,null,null,null,null,null,null,null,null,null,null,null,null,null,null,null,null,null,null,null,null,null,null,137,null,136,"(133)"]
["137 (134)","Helene Andersson","Carlskrona",196,null,1,98,null,null,null,null,null,null,null,null,null,null,null,null,null,null,null,null,null,196,null,null,17,"-","-","-",134,137,"-",137,null,null,0,1,1,1,1,1,1,1,1,1,1,1,1,1,0,1,2,2,1,null,2,null,null,196,"","","","","","","","","","","","","","","","-","-","-",14,null,196,null,null,null,null,null,null,null,null,null,null,null,null,null,null,null,null,null,null,null,null,null,null,null,null,null,null,null,null,null,null,null,null,null,null,null,null,null,null,null,null,null,null,null,null,null,null,null,null,null,null,null,null,null,null,null,null,null,null,null,null,null,null,138,null,137,"(134)"]
["138 (135)","Roger Frost","Sibbamåla",194,null,1,97,null,null,null,null,null,null,194,null,null,null,null,null,null,null,null,null,null,null,null,null,17,"-","-","-",135,138,"-",138,null,null,0,1,1,1,1,2,2,1,1,1,1,1,1,1,0,1,1,1,1,null,2,null,null,194,"","","","","","","","","","","","","","","","-","-","-",14,null,194,null,null,null,null,null,null,null,null,null,null,null,null,null,null,null,null,null,null,null,null,null,null,null,null,null,null,null,null,null,null,null,null,null,null,null,null,null,null,null,null,null,null,null,null,null,null,null,null,null,null,null,null,null,null,null,null,null,null,null,null,null,null,167,null,167,"(135)"]
["138 (135)","Christer Grahn","Lanternan",194,null,1,97,null,null,null,null,null,null,null,null,null,null,null,null,null,null,null,null,null,194,null,null,17,"-","-","-",135,138,"-",139,null,null,0,1,1,1,1,1,1,1,1,1,1,1,1,1,0,1,2,2,1,null,2,null,null,194,"","","","","","","","","","","","","","","","-","-","-",14,null,194,null,null,null,null,null,null,null,null,null,null,null,null,null,null,null,null,null,null,null,null,null,null,null,null,null,null,null,null,null,null,null,null,null,null,null,null,null,null,null,null,null,null,null,null,null,null,null,null,null,null,null,null,null,null,null,null,null,null,null,null,null,null,139,null,{"$f":"IF(BF143>=1,AG143,\"\")","v":138},"(135)"]
["140 (137)","Göran Olsson","Cementa IF",193,null,2,48.25,null,null,null,null,null,null,null,52,141,null,null,null,null,null,null,null,null,null,null,null,17,"-","-","-",137,140,140,140,null,null,0,1,1,1,1,1,2,3,2,1,1,1,1,1,0,1,1,1,1,null,2,null,null,141,52,"","","","","","","","","","","","","","","-","-","-",13,null,193,null,null,null,null,null,null,null,null,null,null,null,null,null,null,null,null,null,null,null,null,null,null,null,null,null,null,null,null,null,null,null,null,null,null,null,null,null,null,null,null,null,null,null,null,null,null,null,null,null,null,null,null,null,null,null,null,null,null,null,null,null,null,140,null,{"$f":"IF(BF144>1,AG144,\"\")","v":140},"(137)"]
["141 (138)","Ulf Jörgensen","Växjö Hsk",177,null,1,88.5,null,null,null,null,null,null,null,null,null,null,null,null,null,177,null,null,null,null,null,null,17,"-","-","-",138,141,"-",141,null,null,0,1,1,1,1,1,1,1,1,1,1,1,2,2,0,1,1,1,1,null,2,null,null,177,"","","","","","","","","","","","","","","","-","-","-",14,null,177,null,null,null,null,null,null,null,null,null,null,null,null,null,null,null,null,null,null,null,null,null,null,null,null,null,null,null,null,null,null,null,null,null,null,null,null,null,null,null,null,null,null,null,null,null,null,null,null,null,null,null,null,null,null,null,null,null,null,null,null,null,null,141,null,{"$f":"IF(BF145>=1,AG145,\"\")","v":141},"(138)"]
["142 (139)","Kjell Rydh","Korpen Nybro",169,null,1,84.5,null,null,null,null,null,null,null,null,null,null,null,null,169,null,null,null,null,null,null,null,17,"-","-","-",139,142,"-",142,null,null,0,1,1,1,1,1,1,1,1,1,1,2,2,1,0,1,1,1,1,null,2,null,null,169,"","","","","","","","","","","","","","","","-","-","-",14,null,169,null,null,null,null,null,null,null,null,null,null,null,null,null,null,null,null,null,null,null,null,null,null,null,null,null,null,null,null,null,null,null,null,null,null,null,null,null,null,null,null,null,null,null,null,null,null,null,null,null,null,null,null,null,null,null,null,null,null,null,null,null,null,142,null,{"$f":"IF(BF146>=1,AG146,\"\")","v":142},"(139)"]
["143 (140)","Ted Svensson","Cementa IF",167,null,1,83.5,null,null,null,null,null,null,null,null,167,null,null,null,null,null,null,null,null,null,null,null,17,"-","-","-",140,143,"-",143,null,null,0,1,1,1,1,1,1,2,2,1,1,1,1,1,0,1,1,1,1,null,2,null,null,167,"","","","","","","","","","","","","","","","-","-","-",14,null,167,null,null,null,null,null,null,null,null,null,null,null,null,null,null,null,null,null,null,null,null,null,null,null,null,null,null,null,null,null,null,null,null,null,null,null,null,null,null,null,null,null,null,null,null,null,null,null,null,null,null,null,null,null,null,null,null,null,null,null,null,null,null,143,null,{"$f":"IF(BF147>=1,AG147,\"\")","v":143},"(140)"]
["144 (141)","Kenneth Andersson","Dynapac ",166,null,1,83,null,null,null,null,null,null,null,null,null,166,null,null,null,null,null,null,null,null,null,null,17,"-","-","-",141,144,"-",144,null,null,0,1,1,1,1,1,1,1,2,2,1,1,1,1,0,1,1,1,1,null,2,null,null,166,"","","","","","","","","","","","","","","","-","-","-",14,null,166,null,null,null,null,null,null,null,null,null,null,null,null,null,null,null,null,null,null,null,null,null,null,null,null,null,null,null,null,null,null,null,null,null,null,null,null,null,null,null,null,null,null,null,null,null,null,null,null,null,null,null,null,null,null,null,null,null,null,null,null,null,null,144,null,{"$f":"IF(BF148>=1,AG148,\"\")","v":144},"(141)"]
["145 (143)","Bo Lindekrans","Livsnjutarna",157,null,2,39.25,null,null,null,null,null,null,88,null,null,69,null,null,null,null,null,null,null,null,null,null,17,"-","-","-",143,145,145,145,null,null,0,1,1,1,1,2,2,1,2,2,1,1,1,1,0,1,1,1,1,null,2,null,null,88,69,"","","","","","","","","","","","","","","-","-","-",13,null,157,null,null,null,null,null,null,null,null,null,null,null,null,null,null,null,null,null,null,null,null,null,null,null,null,null,null,null,null,null,null,null,null,null,null,null,null,null,null,null,null,null,null,null,null,null,null,null,null,null,null,null,null,null,null,null,null,null,null,null,null,null,null,145,null,{"$f":"IF(BF149>=1,AG149,\"\")","v":145},"(143)"]
["146 (144)","Towe Danielsson","Korpen Nybro",156,null,1,78,null,null,null,null,null,null,null,null,null,null,null,null,156,null,null,null,null,null,null,null,17,"-","-","-",144,146,"-",146,null,null,0,1,1,1,1,1,1,1,1,1,1,2,2,1,0,1,1,1,1,null,2,null,null,156,"","","","","","","","","","","","","","","","-","-","-",14,null,156,null,null,null,null,null,null,null,null,null,null,null,null,null,null,null,null,null,null,null,null,null,null,null,null,null,null,null,null,null,null,null,null,null,null,null,null,null,null,null,null,null,null,null,null,null,null,null,null,null,null,null,null,null,null,null,null,null,null,null,null,null,null,175,null,{"$f":"IF(BF150>1,AG150,\"\")","v":146},"(144)"]
["147 (145)","Krister Nygren","Korpen Åseda",150,null,1,75,null,null,null,null,null,null,null,null,null,null,null,150,null,null,null,null,null,null,null,null,17,"-","-","-",145,147,"-",147,null,null,0,1,1,1,1,1,1,1,1,1,2,2,1,1,0,1,1,1,1,null,2,null,null,150,"","","","","","","","","","","","","","","","-","-","-",14,null,150,null,null,null,null,null,null,null,null,null,null,null,null,null,null,null,null,null,null,null,null,null,null,null,null,null,null,null,null,null,null,null,null,null,null,null,null,null,null,null,null,null,null,null,null,null,null,null,null,null,null,null,null,null,null,null,null,null,null,null,null,null,null,146,null,{"$f":"IF(BF151>=1,AG151,\"\")","v":147},"(145)"]
["147 (145)","Bo Trulsson","Korpen Åseda",150,null,1,75,null,null,null,null,null,null,null,null,null,null,null,150,null,null,null,null,null,null,null,null,17,"-","-","-",145,147,"-",148,null,null,0,1,1,1,1,1,1,1,1,1,2,2,1,1,0,1,1,1,1,null,2,null,null,150,"","","","","","","","","","","","","","","","-","-","-",14,null,150,null,null,null,null,null,null,null,null,null,null,null,null,null,null,null,null,null,null,null,null,null,null,null,null,null,null,null,null,null,null,null,null,null,null,null,null,null,null,null,null,null,null,null,null,null,null,null,null,null,null,null,null,null,null,null,null,null,null,null,null,null,null,147,null,147,"(145)"]
["147 (145)","Carina Andersson","Dynapac ",150,null,1,75,null,null,null,null,150,null,null,null,null,null,null,null,null,null,null,null,null,null,null,null,17,"-","-","-",145,147,"-",149,null,null,0,1,1,2,2,1,1,1,1,1,1,1,1,1,0,1,1,1,1,null,2,null,null,150,"","","","","","","","","","","","","","","","-","-","-",14,null,150,null,null,null,null,null,null,null,null,null,null,null,null,null,null,null,null,null,null,null,null,null,null,null,null,null,null,null,null,null,null,null,null,null,null,null,null,null,null,null,null,null,null,null,null,null,null,null,null,null,null,null,null,null,null,null,null,null,null,null,null,null,null,148,null,147,"(145)"]
["150 (148)","Oscar Stener","Alvesta",147,null,1,73.5,null,null,null,null,null,null,null,null,null,null,null,null,null,147,null,null,null,null,null,null,17,"-","-","-",148,150,"-",150,null,null,0,1,1,1,1,1,1,1,1,1,1,1,2,2,0,1,1,1,1,null,2,null,null,147,"","","","","","","","","","","","","","","","-","-","-",14,null,147,null,null,null,null,null,null,null,null,null,null,null,null,null,null,null,null,null,null,null,null,null,null,null,null,null,null,null,null,null,null,null,null,null,null,null,null,null,null,null,null,null,null,null,null,null,null,null,null,null,null,null,null,null,null,null,null,null,null,null,null,null,null,149,null,150,"(148)"]
["151 (-)","Christoffer Cederholm","Tingsryd",141,null,1,70.5,"x",null,null,null,null,null,null,null,null,null,null,null,null,null,null,null,null,null,null,141,17,"-","-","-",149,151,"-",151,null,null,0,1,1,1,1,1,1,1,1,1,1,1,1,1,0,1,1,1,2,null,1,null,null,141,"","","","","","","","","","","","","","","","-","-","-",14,null,141,null,null,null,null,null,null,null,null,null,null,null,null,null,null,null,null,null,null,null,null,null,null,null,null,null,null,null,null,null,null,null,null,null,null,null,null,null,null,null,null,null,null,null,null,null,null,null,null,null,null,null,null,null,null,null,null,null,null,null,null,null,null,150,null,151,"(-)"]
["152 (150)","Joakim Hansson","Cementa IF",136,null,1,68,null,null,null,null,null,null,null,null,136,null,null,null,null,null,null,null,null,null,null,null,17,"-","-","-",150,152,"-",152,null,null,0,1,1,1,1,1,1,2,2,1,1,1,1,1,0,1,1,1,1,null,2,null,null,136,"","","","","","","","","","","","","","","","-","-","-",14,null,136,null,null,null,null,null,null,null,null,null,null,null,null,null,null,null,null,null,null,null,null,null,null,null,null,null,null,null,null,null,null,null,null,null,null,null,null,null,null,null,null,null,null,null,null,null,null,null,null,null,null,null,null,null,null,null,null,null,null,null,null,null,null,151,null,152,"(150)"]
["153 (151)","Inga-Lill Stühr","Lessebo",131,null,1,65.5,null,null,null,null,null,null,null,null,null,null,null,null,null,131,null,null,null,null,null,null,17,"-","-","-",151,153,"-",153,null,null,0,1,1,1,1,1,1,1,1,1,1,1,2,2,0,1,1,1,1,null,2,null,null,{"$f":"IF($F157>0,LARGE($I157:$AA157,1),\"\")","v":131},{"$f":"IF($F157>1,LARGE($I157:$AA157,2),\"\")","v":""},{"$f":"IF($F157>2,LARGE($I157:$AA157,3),\"\")","v":""},{"$f":"IF($F157>3,LARGE($I157:$AA157,4),\"\")","v":""},{"$f":"IF($F157>4,LARGE($I157:$AA157,5),\"\")","v":""},{"$f":"IF($F157>5,LARGE($I157:$AA157,6),\"\")","v":""},{"$f":"IF($F157>6,LARGE($I157:$AA157,7),\"\")","v":""},{"$f":"IF($F157>7,LARGE($I157:$AA157,8),\"\")","v":""},{"$f":"IF($F157>8,LARGE($I157:$AA157,9),\"\")","v":""},{"$f":"IF($F157>9,LARGE($I157:$AA157,10),\"\")","v":""},{"$f":"IF($F157>10,LARGE($I157:$AA157,11),\"\")","v":""},{"$f":"IF($F157>11,LARGE($I157:$AA157,12),\"\")","v":""},{"$f":"IF($F157>12,LARGE($I157:$AA157,13),\"\")","v":""},{"$f":"IF($F157>13,LARGE($I157:$AA157,14),\"\")","v":""},{"$f":"IF($F157>14,LARGE($I157:$AA157,15),\"\")","v":""},"","-","-","-",14,null,131,null,null,null,null,null,null,null,null,null,null,null,null,null,null,null,null,null,null,null,null,null,null,null,null,null,null,null,null,null,null,null,null,null,null,null,null,null,null,null,null,null,null,null,null,null,null,null,null,null,null,null,null,null,null,null,null,null,null,null,null,null,null,184,null,{"$f":"IF(BF157>1,AG157,\"\")","v":153},"(151)"]
["153 (151)","Hampus Borgström","Carlskrona",131,null,1,65.5,null,null,null,null,null,null,null,null,null,null,null,null,null,null,null,null,null,131,null,null,17,"-","-","-",151,153,"-",154,null,null,0,1,1,1,1,1,1,1,1,1,1,1,1,1,0,1,2,2,1,null,2,null,null,131,"","","","","","","","","","","","","","","","-","-","-",14,null,131,null,null,null,null,null,null,null,null,null,null,null,null,null,null,null,null,null,null,null,null,null,null,null,null,null,null,null,null,null,null,null,null,null,null,null,null,null,null,null,null,null,null,null,null,null,null,null,null,null,null,null,null,null,null,null,null,null,null,null,null,null,null,152,null,{"$f":"IF(BF158>=1,AG158,\"\")","v":153},"(151)"]
["155 (154)","Britt-Marie Jarl","Livsnjutarna",130,null,2,32.5,null,null,null,null,null,null,62,null,null,68,null,null,null,null,null,null,null,null,null,null,17,"-","-","-",154,155,155,155,null,null,0,1,1,1,1,2,2,1,2,2,1,1,1,1,0,1,1,1,1,null,2,null,null,68,62,"","","","","","","","","","","","","","","-","-","-",13,null,130,null,null,null,null,null,null,null,null,null,null,null,null,null,null,null,null,null,null,null,null,null,null,null,null,null,null,null,null,null,null,null,null,null,null,null,null,null,null,null,null,null,null,null,null,null,null,null,null,null,null,null,null,null,null,null,null,null,null,null,null,null,null,153,null,155,"(154)"]
["156 (156)","Tony Borgström","Carlskrona",128,null,1,64,null,null,null,null,null,null,null,null,null,null,null,null,null,null,null,null,null,128,null,null,17,"-","-","-",156,156,"-",156,null,null,0,1,1,1,1,1,1,1,1,1,1,1,1,1,0,1,2,2,1,null,2,null,null,128,"","","","","","","","","","","","","","","","-","-","-",14,null,128,null,null,null,null,null,null,null,null,null,null,null,null,null,null,null,null,null,null,null,null,null,null,null,null,null,null,null,null,null,null,null,null,null,null,null,null,null,null,null,null,null,null,null,null,null,null,null,null,null,null,null,null,null,null,null,null,null,null,null,null,null,null,154,null,156,"(156)"]
["157 (157)","Elias Thomsson","Sibbamåla",126,null,1,63,null,null,null,null,null,null,null,null,null,126,null,null,null,null,null,null,null,null,null,null,17,"-","-","-",157,157,"-",157,null,null,0,1,1,1,1,1,1,1,2,2,1,1,1,1,0,1,1,1,1,null,2,null,null,126,"","","","","","","","","","","","","","","","-","-","-",14,null,126,null,null,null,null,null,null,null,null,null,null,null,null,null,null,null,null,null,null,null,null,null,null,null,null,null,null,null,null,null,null,null,null,null,null,null,null,null,null,null,null,null,null,null,null,null,null,null,null,null,null,null,null,null,null,null,null,null,null,null,null,null,null,156,null,157,"(157)"]
["158 (158)","Malte Holm","Brf Bågen Moheda",122,null,1,61,null,null,null,null,null,122,null,null,null,null,null,null,null,null,null,null,null,null,null,null,17,"-","-","-",158,158,"-",158,null,null,0,1,1,1,2,2,1,1,1,1,1,1,1,1,0,1,1,1,1,null,2,null,null,122,"","","","","","","","","","","","","","","","-","-","-",14,null,122,null,null,null,null,null,null,null,null,null,null,null,null,null,null,null,null,null,null,null,null,null,null,null,null,null,null,null,null,null,null,null,null,null,null,null,null,null,null,null,null,null,null,null,null,null,null,null,null,null,null,null,null,null,null,null,null,null,null,null,null,null,null,157,null,158,"(158)"]
["158 (158)","Dag Strauke","Boge Sels",122,null,1,61,null,null,null,null,null,null,null,122,null,null,null,null,null,null,null,null,null,null,null,null,17,"-","-","-",158,158,"-",159,null,null,0,1,1,1,1,1,2,2,1,1,1,1,1,1,0,1,1,1,1,null,2,null,null,122,"","","","","","","","","","","","","","","","-","-","-",14,null,122,null,null,null,null,null,null,null,null,null,null,null,null,null,null,null,null,null,null,null,null,null,null,null,null,null,null,null,null,null,null,null,null,null,null,null,null,null,null,null,null,null,null,null,null,null,null,null,null,null,null,null,null,null,null,null,null,null,null,null,null,null,null,158,null,158,"(158)"]
["160 (160)","Ros-Marie Johansson","Livsnjutarna",119,null,2,29.75,null,null,null,null,null,null,97,null,null,22,null,null,null,null,null,null,null,null,null,null,17,"-","-","-",160,160,160,160,null,null,0,1,1,1,1,2,2,1,2,2,1,1,1,1,0,1,1,1,1,null,2,null,null,97,22,"","","","","","","","","","","","","","","-","-","-",13,null,119,null,null,null,null,null,null,null,null,null,null,null,null,null,null,null,null,null,null,null,null,null,null,null,null,null,null,null,null,null,null,null,null,null,null,null,null,null,null,null,null,null,null,null,null,null,null,null,null,null,null,null,null,null,null,null,null,null,null,null,null,null,null,159,null,160,"(160)"]
["161 (161)","Hans Lundqvist","Alvesta",117,null,1,58.5,null,null,null,null,null,null,null,null,null,null,null,null,null,117,null,null,null,null,null,null,17,"-","-","-",161,161,"-",161,null,null,{"$f":"COUNT($I$3,I165,H165)","v":0},{"$f":"COUNT($J$3,J165,I165)","v":1},{"$f":"COUNT($K$3,K165,J165)","v":1},{"$f":"COUNT($L$3,L165,K165)","v":1},{"$f":"COUNT($M$3,M165,L165)","v":1},{"$f":"COUNT($N$3,N165,M165)","v":1},{"$f":"COUNT($O$3,O165,N165)","v":1},{"$f":"COUNT($P$3,P165,O165)","v":1},{"$f":"COUNT($Q$3,Q165,P165)","v":1},{"$f":"COUNT($R$3,R165,Q165)","v":1},{"$f":"COUNT($S$3,S165,R165)","v":1},{"$f":"COUNT($T$3,T165,S165)","v":1},{"$f":"COUNT($U$3,U165,T165)","v":2},{"$f":"COUNT($V$3,V165,U165)","v":2},{"$f":"COUNT($W$3,W165,V165)","v":0},{"$f":"COUNT($X$3,X165,W165)","v":1},{"$f":"COUNT($Y$3,Y165,X165)","v":1},{"$f":"COUNT($Z$3,Z165,Y165)","v":1},{"$f":"COUNT($AA$3,AA165,Z165)","v":1},null,{"$f":"IF(H165=\"x\",1,2)","v":2},null,null,117,"","","","","","","","","","","","","","","","-","-","-",14,null,117,null,null,null,null,null,null,null,null,null,null,null,null,null,null,null,null,null,null,null,null,null,null,null,null,null,null,null,null,null,null,null,null,null,null,null,null,null,null,null,null,null,null,null,null,null,null,null,null,null,null,null,null,null,null,null,null,null,null,null,null,null,null,206,null,{"$f":"IF(BF165>1,AG165,\"\")","v":161},"(161)"]
["162 (162)","Mona Andersson","Carlskrona",115,null,1,57.5,null,null,null,null,null,null,null,null,null,null,null,null,null,null,null,null,null,115,null,null,17,"-","-","-",162,{"$f":"IF(D166<D165,AI166,AG165)","v":162},"-",162,null,null,0,1,1,1,1,1,1,1,1,1,1,1,1,1,0,1,2,2,1,null,2,null,null,115,"","","","","","","","","","","","","","","","-","-","-",14,null,115,null,null,null,null,null,null,null,null,null,null,null,null,null,null,null,null,null,null,null,null,null,null,null,null,null,null,null,null,null,null,null,null,null,null,null,null,null,null,null,null,null,null,null,null,null,null,null,null,null,null,null,null,null,null,null,null,null,null,null,null,null,null,160,null,{"$f":"IF(BF166>=1,AG166,\"\")","v":162},"(162)"]
["163 (163)","Arne Nygren","Korpen Åseda",109,null,1,54.5,null,null,null,null,null,null,null,null,null,null,null,109,null,null,null,null,null,null,null,null,17,"-","-","-",163,163,"-",163,null,null,0,1,1,1,1,1,1,1,1,1,2,2,1,1,0,1,1,1,1,null,2,null,null,109,"","","","","","","","","","","","","","","","-","-","-",14,null,109,null,null,null,null,null,null,null,null,null,null,null,null,null,null,null,null,null,null,null,null,null,null,null,null,null,null,null,null,null,null,null,null,null,null,null,null,null,null,null,null,null,null,null,null,null,null,null,null,null,null,null,null,null,null,null,null,null,null,null,null,null,null,161,null,161,"(163)"]
["164 (164)","Ola Frost","Sibbamåla",108,null,1,54,null,null,null,null,null,null,108,null,null,null,null,null,null,null,null,null,null,null,null,null,17,"-","-","-",164,164,"-",164,null,null,0,1,1,1,1,2,2,1,1,1,1,1,1,1,0,1,1,1,1,null,2,null,null,108,"","","","","","","","","","","","","","","","-","-","-",14,null,108,null,null,null,null,null,null,null,null,null,null,null,null,null,null,null,null,null,null,null,null,null,null,null,null,null,null,null,null,null,null,null,null,null,null,null,null,null,null,null,null,null,null,null,null,null,null,null,null,null,null,null,null,null,null,null,null,null,null,null,null,null,null,162,null,{"$f":"IF(BF168>1,AG168,\"\")","v":164},"(164)"]
["165 (165)","Anna Olausson","Sibbamåla",96,null,1,48,null,null,null,null,null,null,null,null,null,96,null,null,null,null,null,null,null,null,null,null,17,"-","-","-",165,165,"-",165,null,null,0,1,1,1,1,1,1,1,2,2,1,1,1,1,0,1,1,1,1,null,2,null,null,96,"","","","","","","","","","","","","","","","-","-","-",14,null,96,null,null,null,null,null,null,null,null,null,null,null,null,null,null,null,null,null,null,null,null,null,null,null,null,null,null,null,null,null,null,null,null,null,null,null,null,null,null,null,null,null,null,null,null,null,null,null,null,null,null,null,null,null,null,null,null,null,null,null,null,null,null,163,null,{"$f":"IF(BF169>1,AG169,\"\")","v":165},"(165)"]
["166 (166)","Daniel lito Wadman","Vaxholm Hsk",95,null,1,47.5,null,null,null,null,null,null,null,null,null,null,null,null,null,null,95,null,null,null,null,null,17,"-","-","-",166,166,"-",166,null,null,0,1,1,1,1,1,1,1,1,1,1,1,1,2,1,1,1,1,1,null,2,null,null,95,"","","","","","","","","","","","","","","","-","-","-",14,null,95,null,null,null,null,null,null,null,null,null,null,null,null,null,null,null,null,null,null,null,null,null,null,null,null,null,null,null,null,null,null,null,null,null,null,null,null,null,null,null,null,null,null,null,null,null,null,null,null,null,null,null,null,null,null,null,null,null,null,null,null,null,null,164,null,{"$f":"IF(BF170>1,AG170,\"\")","v":166},"(166)"]
["167 (-)","Lana Galea","Tingsryd",84,null,1,42,"x",null,null,null,null,null,null,null,null,null,null,null,null,null,null,null,null,null,null,84,17,"-","-","-",167,167,"-",167,null,null,0,1,1,1,1,1,1,1,1,1,1,1,1,1,0,1,1,1,2,null,1,null,null,84,"","","","","","","","","","","","","","","","-","-","-",14,null,84,null,null,null,null,null,null,null,null,null,null,null,null,null,null,null,null,null,null,null,null,null,null,null,null,null,null,null,null,null,null,null,null,null,null,null,null,null,null,null,null,null,null,null,null,null,null,null,null,null,null,null,null,null,null,null,null,null,null,null,null,null,null,165,null,{"$f":"IF(BF171>1,AG171,\"\")","v":""},"(-)"]
["168 (168)","Bill Bergman","Boge Sels",83,null,1,41.5,null,null,null,null,null,null,null,83,null,null,null,null,null,null,null,null,null,null,null,null,17,"-","-","-",168,168,"-",168,null,null,0,1,1,1,1,1,2,2,1,1,1,1,1,1,0,1,1,1,1,null,2,null,null,83,"","","","","","","","","","","","","","","","-","-","-",14,null,83,null,null,null,null,null,null,null,null,null,null,null,null,null,null,null,null,null,null,null,null,null,null,null,null,null,null,null,null,null,null,null,null,null,null,null,null,null,null,null,null,null,null,null,null,null,null,null,null,null,null,null,null,null,null,null,null,null,null,null,null,null,null,195,null,{"$f":"IF(BF172>1,AG172,\"\")","v":168},"(168)"]
["168 (168)","Göte Andersson","Boge Sels",83,null,1,41.5,null,null,null,null,null,null,null,83,null,null,null,null,null,null,null,null,null,null,null,null,17,"-","-","-",168,168,"-",169,null,null,0,1,1,1,1,1,2,2,1,1,1,1,1,1,0,1,1,1,1,null,2,null,null,83,"","","","","","","","","","","","","","","","-","-","-",14,null,83,null,null,null,null,null,null,null,null,null,null,null,null,null,null,null,null,null,null,null,null,null,null,null,null,null,null,null,null,null,null,null,null,null,null,null,null,null,null,null,null,null,null,null,null,null,null,null,null,null,null,null,null,null,null,null,null,null,null,null,null,null,null,134,null,{"$f":"IF(BF173>=1,AG173,\"\")","v":168},"(168)"]
["170 (171)","Patrik Olausson","Sibbamåla",80,null,1,40,null,null,null,null,null,null,null,null,null,80,null,null,null,null,null,null,null,null,null,null,17,"-","-","-",171,170,"-",170,null,null,0,1,1,1,1,1,1,1,2,2,1,1,1,1,0,1,1,1,1,null,2,null,null,80,"","","","","","","","","","","","","","","","-","-","-",14,null,80,null,null,null,null,null,null,null,null,null,null,null,null,null,null,null,null,null,null,null,null,null,null,null,null,null,null,null,null,null,null,null,null,null,null,null,null,null,null,null,null,null,null,null,null,null,null,null,null,null,null,null,null,null,null,null,null,null,null,null,null,null,null,166,null,{"$f":"IF(BF174>1,AG174,\"\")","v":170},"(171)"]
["171 (172)","Niclas Gunnarsson","Sibbamåla",79,null,1,39.5,null,null,null,null,null,null,79,null,null,null,null,null,null,null,null,null,null,null,null,null,17,"-","-","-",172,171,"-",171,null,null,0,1,1,1,1,2,2,1,1,1,1,1,1,1,0,1,1,1,1,null,2,null,null,79,"","","","","","","","","","","","","","","","-","-","-",14,null,79,null,null,null,null,null,null,null,null,null,null,null,null,null,null,null,null,null,null,null,null,null,null,null,null,null,null,null,null,null,null,null,null,null,null,null,null,null,null,null,null,null,null,null,null,null,null,null,null,null,null,null,null,null,null,null,null,null,null,null,null,null,null,168,null,168,"(172)"]
["172 (173)","Jonathan Holmqvist","Lessebo Hsk",77,null,1,38.5,null,null,null,null,null,null,null,null,null,77,null,null,null,null,null,null,null,null,null,null,17,"-","-","-",173,172,"-",172,null,null,0,1,1,1,1,1,1,1,2,2,1,1,1,1,0,1,1,1,1,null,2,null,null,77,"","","","","","","","","","","","","","","","-","-","-",14,null,77,null,null,null,null,null,null,null,null,null,null,null,null,null,null,null,null,null,null,null,null,null,null,null,null,null,null,null,null,null,null,null,null,null,null,null,null,null,null,null,null,null,null,null,null,null,null,null,null,null,null,null,null,null,null,null,null,null,null,null,null,null,null,215,null,{"$f":"IF(BF176>1,AG176,\"\")","v":172},"(173)"]
["173 (174)","Malin Klarström","Cementa IF",74,null,1,37,null,null,null,null,null,null,null,null,74,null,null,null,null,null,null,null,null,null,null,null,17,"-","-","-",174,173,"-",173,null,null,0,1,1,1,1,1,1,2,2,1,1,1,1,1,0,1,1,1,1,null,2,null,null,74,"","","","","","","","","","","","","","","","-","-","-",14,null,74,null,null,null,null,null,null,null,null,null,null,null,null,null,null,null,null,null,null,null,null,null,null,null,null,null,null,null,null,null,null,null,null,null,null,null,null,null,null,null,null,null,null,null,null,null,null,null,null,null,null,null,null,null,null,null,null,null,null,null,null,null,null,188,null,188,"(174)"]
["174 (175)","Therese Frost","Sibbamåla",67,null,1,33.5,null,null,null,null,null,null,67,null,null,null,null,null,null,null,null,null,null,null,null,null,17,"-","-","-",175,174,"-",174,null,null,0,1,1,1,1,2,2,1,1,1,1,1,1,1,0,1,1,1,1,null,2,null,null,67,"","","","","","","","","","","","","","","","-","-","-",14,null,67,null,null,null,null,null,null,null,null,null,null,null,null,null,null,null,null,null,null,null,null,null,null,null,null,null,null,null,null,null,null,null,null,null,null,null,null,null,null,null,null,null,null,null,null,null,null,null,null,null,null,null,null,null,null,null,null,null,null,null,null,null,null,170,null,{"$f":"IF(BF178>1,AG178,\"\")","v":174},"(175)"]
["175 (176)","Malin Holmander","Jämjö Hsk",54,null,1,27,null,null,null,null,null,null,null,null,null,null,54,null,null,null,null,null,null,null,null,null,17,"-","-","-",176,175,"-",175,null,null,0,1,1,1,1,1,1,1,1,2,2,1,1,1,0,1,1,1,1,null,2,null,null,54,"","","","","","","","","","","","","","","","-","-","-",14,null,54,null,null,null,null,null,null,null,null,null,null,null,null,null,null,null,null,null,null,null,null,null,null,null,null,null,null,null,null,null,null,null,null,null,null,null,null,null,null,null,null,null,null,null,null,null,null,null,null,null,null,null,null,null,null,null,null,null,null,null,null,null,null,171,null,175,"(176)"]
["176 (177)","Amanda Olausson","Sibbamåla",46,null,1,23,null,null,null,null,null,null,null,null,null,46,null,null,null,null,null,null,null,null,null,null,17,"-","-","-",177,176,"-",176,null,null,0,1,1,1,1,1,1,1,2,2,1,1,1,1,0,1,1,1,1,null,2,null,null,46,"","","","","","","","","","","","","","","","-","-","-",14,null,46,null,null,null,null,null,null,null,null,null,null,null,null,null,null,null,null,null,null,null,null,null,null,null,null,null,null,null,null,null,null,null,null,null,null,null,null,null,null,null,null,null,null,null,null,null,null,null,null,null,null,null,null,null,null,null,null,null,null,null,null,null,null,172,null,176,"(177)"]
["177 (178)","Göran Brincner","Värends Hsk",40,null,2,10,null,null,null,null,null,null,null,33,7,null,null,null,null,null,null,null,null,null,null,null,17,"-","-","-",178,177,177,177,null,null,0,1,1,1,1,1,2,3,2,1,1,1,1,1,0,1,1,1,1,null,2,null,null,33,7,"","","","","","","","","","","","","","","-","-","-",13,null,40,null,null,null,null,null,null,null,null,null,null,null,null,null,null,null,null,null,null,null,null,null,null,null,null,null,null,null,null,null,null,null,null,null,null,null,null,null,null,null,null,null,null,null,null,null,null,null,null,null,null,null,null,null,null,null,null,null,null,null,null,null,null,173,null,177,"(178)"]
["177 (178)","Ella Olausson","Sibbamåla",40,null,1,20,null,null,null,null,null,null,null,null,null,40,null,null,null,null,null,null,null,null,null,null,17,"-","-","-",178,177,"-",178,null,null,0,1,1,1,1,1,1,1,2,2,1,1,1,1,0,1,1,1,1,null,2,null,null,40,"","","","","","","","","","","","","","","","-","-","-",14,null,40,null,null,null,null,null,null,null,null,null,null,null,null,null,null,null,null,null,null,null,null,null,null,null,null,null,null,null,null,null,null,null,null,null,null,null,null,null,null,null,null,null,null,null,null,null,null,null,null,null,null,null,null,null,null,null,null,null,null,null,null,null,null,174,null,177,"(178)"]
["179 (180)","Susanne Bergman","Boge Sels",36,null,1,18,null,null,null,null,null,null,null,36,null,null,null,null,null,null,null,null,null,null,null,null,17,"-","-","-",180,179,"-",179,null,null,0,1,1,1,1,1,2,2,1,1,1,1,1,1,0,1,1,1,1,null,2,null,null,36,"","","","","","","","","","","","","","","","-","-","-",14,null,36,null,null,null,null,null,null,null,null,null,null,null,null,null,null,null,null,null,null,null,null,null,null,null,null,null,null,null,null,null,null,null,null,null,null,null,null,null,null,null,null,null,null,null,null,null,null,null,null,null,null,null,null,null,null,null,null,null,null,null,null,null,null,182,null,179,"(180)"]
["180 (170)",null,null,0,null,0,{"$error":"#DIV/0!"},null,null,null,null,null,null,null,null,null,null,null,null,null,null,null,null,null,null,null,null,17,"-","-","-",170,180,"-",180,null,null,0,1,1,1,1,1,1,1,1,1,1,1,1,1,0,1,1,1,1,null,2,null,null,"","","","","","","","","","","","","","","","","-","-","-",15,null,0,null,null,null,null,null,null,null,null,null,null,null,null,null,null,null,null,null,null,null,null,null,null,null,null,null,null,null,null,null,null,null,null,null,null,null,null,null,null,null,null,null,null,null,null,null,null,null,null,null,null,null,null,null,null,null,null,null,null,null,null,null,null,176,null,180,"(170)"]
["180 (181)",null,null,0,null,0,{"$error":"#DIV/0!"},null,null,null,null,null,null,null,null,null,null,null,null,null,null,null,null,null,null,null,null,17,"-","-","-",181,180,"-",181,null,null,0,1,1,1,1,1,1,1,1,1,1,1,1,1,0,1,1,1,1,null,2,null,null,"","","","","","","","","","","","","","","","","-","-","-",15,null,0,null,null,null,null,null,null,null,null,null,null,null,null,null,null,null,null,null,null,null,null,null,null,null,null,null,null,null,null,null,null,null,null,null,null,null,null,null,null,null,null,null,null,null,null,null,null,null,null,null,null,null,null,null,null,null,null,null,null,null,null,null,null,202,null,180,"(181)"]
["180 (181)",null,null,0,null,0,{"$error":"#DIV/0!"},null,null,null,null,null,null,null,null,null,null,null,null,null,null,null,null,null,null,null,null,17,"-","-","-",181,180,"-",182,null,null,0,1,1,1,1,1,1,1,1,1,1,1,1,1,0,1,1,1,1,null,2,null,null,"","","","","","","","","","","","","","","","","-","-","-",15,null,0,null,null,null,null,null,null,null,null,null,null,null,null,null,null,null,null,null,null,null,null,null,null,null,null,null,null,null,null,null,null,null,null,null,null,null,null,null,null,null,null,null,null,null,null,null,null,null,null,null,null,null,null,null,null,null,null,null,null,null,null,null,null,177,null,177,"(181)"]
["180 (181)",null,null,0,null,0,{"$error":"#DIV/0!"},null,null,null,null,null,null,null,null,null,null,null,null,null,null,null,null,null,null,null,null,17,"-","-","-",181,180,"-",183,null,null,0,1,1,1,1,1,1,1,1,1,1,1,1,1,0,1,1,1,1,null,2,null,null,"","","","","","","","","","","","","","","","","-","-","-",15,null,0,null,null,null,null,null,null,null,null,null,null,null,null,null,null,null,null,null,null,null,null,null,null,null,null,null,null,null,null,null,null,null,null,null,null,null,null,null,null,null,null,null,null,null,null,null,null,null,null,null,null,null,null,null,null,null,null,null,null,null,null,null,null,178,null,{"$f":"IF(BF187>1,AG187,\"\")","v":180},"(181)"]
["180 (181)",null,null,0,null,0,{"$error":"#DIV/0!"},null,null,null,null,null,null,null,null,null,null,null,null,null,null,null,null,null,null,null,null,17,"-","-","-",181,180,"-",184,null,null,0,1,1,1,1,1,1,1,1,1,1,1,1,1,0,1,1,1,1,null,2,null,null,"","","","","","","","","","","","","","","","","-","-","-",15,null,0,null,null,null,null,null,null,null,null,null,null,null,null,null,null,null,null,null,null,null,null,null,null,null,null,null,null,null,null,null,null,null,null,null,null,null,null,null,null,null,null,null,null,null,null,null,null,null,null,null,null,null,null,null,null,null,null,null,null,null,null,null,null,179,null,179,"(181)"]
["180 (181)",null,null,0,null,0,{"$error":"#DIV/0!"},null,null,null,null,null,null,null,null,null,null,null,null,null,null,null,null,null,null,null,null,17,"-","-","-",181,180,"-",185,null,null,0,1,1,1,1,1,1,1,1,1,1,1,1,1,0,1,1,1,1,null,2,null,null,"","","","","","","","","","","","","","","","","-","-","-",15,null,0,null,null,null,null,null,null,null,null,null,null,null,null,null,null,null,null,null,null,null,null,null,null,null,null,null,null,null,null,null,null,null,null,null,null,null,null,null,null,null,null,null,null,null,null,null,null,null,null,null,null,null,null,null,null,null,null,null,null,null,null,null,null,180,null,{"$f":"IF(BF189>1,AG189,\"\")","v":180},"(181)"]
["180 (181)",null,null,0,null,0,{"$error":"#DIV/0!"},null,null,null,null,null,null,null,null,null,null,null,null,null,null,null,null,null,null,null,null,17,"-","-","-",181,180,"-",186,null,null,0,1,1,1,1,1,1,1,1,1,1,1,1,1,0,1,1,1,1,null,2,null,null,"","","","","","","","","","","","","","","","","-","-","-",15,null,0,null,null,null,null,null,null,null,null,null,null,null,null,null,null,null,null,null,null,null,null,null,null,null,null,null,null,null,null,null,null,null,null,null,null,null,null,null,null,null,null,null,null,null,null,null,null,null,null,null,null,null,null,null,null,null,null,null,null,null,null,null,null,181,null,{"$f":"IF(BF190>1,AG190,\"\")","v":180},"(181)"]
["180 (181)",null,null,0,null,0,{"$error":"#DIV/0!"},null,null,null,null,null,null,null,null,null,null,null,null,null,null,null,null,null,null,null,null,17,"-","-","-",181,180,"-",187,null,null,0,1,1,1,1,1,1,1,1,1,1,1,1,1,0,1,1,1,1,null,2,null,null,"","","","","","","","","","","","","","","","","-","-","-",15,null,0,null,null,null,null,null,null,null,null,null,null,null,null,null,null,null,null,null,null,null,null,null,null,null,null,null,null,null,null,null,null,null,null,null,null,null,null,null,null,null,null,null,null,null,null,null,null,null,null,null,null,null,null,null,null,null,null,null,null,null,null,null,null,155,null,{"$f":"IF(BF191>=1,AG191,\"\")","v":180},"(181)"]
["180 (181)",null,null,0,null,0,{"$error":"#DIV/0!"},null,null,null,null,null,null,null,null,null,null,null,null,null,null,null,null,null,null,null,null,17,"-","-","-",181,180,"-",188,null,null,0,1,1,1,1,1,1,1,1,1,1,1,1,1,0,1,1,1,1,null,2,null,null,"","","","","","","","","","","","","","","","","-","-","-",15,null,0,null,null,null,null,null,null,null,null,null,null,null,null,null,null,null,null,null,null,null,null,null,null,null,null,null,null,null,null,null,null,null,null,null,null,null,null,null,null,null,null,null,null,null,null,null,null,null,null,null,null,null,null,null,null,null,null,null,null,null,null,null,null,183,null,{"$f":"IF(BF192>1,AG192,\"\")","v":180},"(181)"]
["180 (181)",null,null,0,null,0,{"$error":"#DIV/0!"},null,null,null,null,null,null,null,null,null,null,null,null,null,null,null,null,null,null,null,null,17,"-","-","-",181,180,"-",189,null,null,0,1,1,1,1,1,1,1,1,1,1,1,1,1,0,1,1,1,1,null,2,null,null,"","","","","","","","","","","","","","","","","-","-","-",15,null,0,null,null,null,null,null,null,null,null,null,null,null,null,null,null,null,null,null,null,null,null,null,null,null,null,null,null,null,null,null,null,null,null,null,null,null,null,null,null,null,null,null,null,null,null,null,null,null,null,null,null,null,null,null,null,null,null,null,null,null,null,null,null,185,null,180,"(181)"]
["180 (181)",null,null,0,null,0,{"$error":"#DIV/0!"},null,null,null,null,null,null,null,null,null,null,null,null,null,null,null,null,null,null,null,null,17,"-","-","-",181,180,"-",190,null,null,0,1,1,1,1,1,1,1,1,1,1,1,1,1,0,1,1,1,1,null,2,null,null,"","","","","","","","","","","","","","","","","-","-","-",15,null,0,null,null,null,null,null,null,null,null,null,null,null,null,null,null,null,null,null,null,null,null,null,null,null,null,null,null,null,null,null,null,null,null,null,null,null,null,null,null,null,null,null,null,null,null,null,null,null,null,null,null,null,null,null,null,null,null,null,null,null,null,null,null,186,null,180,"(181)"]
["180 (181)",null,null,0,null,0,{"$error":"#DIV/0!"},null,null,null,null,null,null,null,null,null,null,null,null,null,null,null,null,null,null,null,null,17,"-","-","-",181,180,"-",191,null,null,0,1,1,1,1,1,1,1,1,1,1,1,1,1,0,1,1,1,1,null,2,null,null,"","","","","","","","","","","","","","","","","-","-","-",15,null,0,null,null,null,null,null,null,null,null,null,null,null,null,null,null,null,null,null,null,null,null,null,null,null,null,null,null,null,null,null,null,null,null,null,null,null,null,null,null,null,null,null,null,null,null,null,null,null,null,null,null,null,null,null,null,null,null,null,null,null,null,null,null,187,null,180,"(181)"]
["180 (181)",null,null,0,null,0,{"$error":"#DIV/0!"},null,null,null,null,null,null,null,null,null,null,null,null,null,null,null,null,null,null,null,null,17,"-","-","-",181,180,"-",192,null,null,0,1,1,1,1,1,1,1,1,1,1,1,1,1,0,1,1,1,1,null,2,null,null,"","","","","","","","","","","","","","","","","-","-","-",15,null,0,null,null,null,null,null,null,null,null,null,null,null,null,null,null,null,null,null,null,null,null,null,null,null,null,null,null,null,null,null,null,null,null,null,null,null,null,null,null,null,null,null,null,null,null,null,null,null,null,null,null,null,null,null,null,null,null,null,null,null,null,null,null,205,null,180,"(181)"]
[{"$f":"IF(BF197>1,AG197&\" (\"&AF197&\")\",AG197&\" (\"&AH197&\")\")","v":"180 (181)"},null,null,{"$f":"SUM(BI197:BU197)","v":0},null,{"$f":"COUNT(I197:AA197)","v":0},{"$f":"SUM((CD197)/(F197*2))","v":{"$error":"#DIV/0!"}},null,null,null,null,null,null,null,null,null,null,null,null,null,null,null,null,null,null,null,null,{"$f":"SUM($I$3:$AA$3)","v":17},{"$f":"BY197","v":"-"},{"$f":"BZ197","v":"-"},{"$f":"CA197","v":"-"},181,180,{"$f":"IF(F197>1,ROW(193:193),\"-\")","v":"-"},193,null,null,{"$f":"COUNT($I$3,I197,H197)","v":0},{"$f":"COUNT($J$3,J197,I197)","v":1},{"$f":"COUNT($K$3,K197,J197)","v":1},{"$f":"COUNT($L$3,L197,K197)","v":1},{"$f":"COUNT($M$3,M197,L197)","v":1},{"$f":"COUNT($N$3,N197,M197)","v":1},{"$f":"COUNT($O$3,O197,N197)","v":1},{"$f":"COUNT($P$3,P197,O197)","v":1},{"$f":"COUNT($Q$3,Q197,P197)","v":1},{"$f":"COUNT($R$3,R197,Q197)","v":1},{"$f":"COUNT($S$3,S197,R197)","v":1},{"$f":"COUNT($T$3,T197,S197)","v":1},{"$f":"COUNT($U$3,U197,T197)","v":1},{"$f":"COUNT($V$3,V197,U197)","v":1},{"$f":"COUNT($W$3,W197,V197)","v":0},{"$f":"COUNT($X$3,X197,W197)","v":1},{"$f":"COUNT($Y$3,Y197,X197)","v":1},{"$f":"COUNT($Z$3,Z197,Y197)","v":1},{"$f":"COUNT($AA$3,AA197,Z197)","v":1},null,{"$f":"IF(H197=\"x\",1,2)","v":2},null,null,"","","","","","","","","","","","","","","","","-","-","-",15,null,{"$f":"SUM(BI197:BX197)","v":0},null,null,null,null,null,null,null,null,null,null,null,null,null,null,null,null,null,null,null,null,null,null,null,null,null,null,null,null,null,null,null,null,null,null,null,null,null,null,null,null,null,null,null,null,null,null,null,null,null,null,null,null,null,null,null,null,null,null,null,null,null,null,216,null,180,{"$f":"IF(BF197>1,\"(\"&AF197&\")\",\"(\"&AH197&\")\")","v":"(181)"}]
["180 (181)",null,null,0,null,0,{"$error":"#DIV/0!"},null,null,null,null,null,null,null,null,null,null,null,null,null,null,null,null,null,null,null,null,17,"-","-","-",181,{"$f":"IF(D198<D197,AI198,AG197)","v":180},"-",194,null,null,0,1,1,1,1,1,1,1,1,1,1,1,1,1,0,1,1,1,1,null,2,null,null,"","","","","","","","","","","","","","","",{"$f":"IF($F198>15,LARGE($I198:$AA198,16),\"\")","v":""},{"$f":"IF($F198>13,LARGE($I198:$AA198,14),\"-\")","v":"-"},{"$f":"IF($F198>14,LARGE($I198:$AA198,15),\"-\")","v":"-"},{"$f":"IF($F198>15,LARGE($I198:$AA198,16),\"-\")","v":"-"},{"$f":"SUM(AB198-F198)-2","v":15},null,0,null,null,null,null,null,null,null,null,null,null,null,null,null,null,null,null,null,null,null,null,null,null,null,null,null,null,null,null,null,null,null,null,null,null,null,null,null,null,null,null,null,null,null,null,null,null,null,null,null,null,null,null,null,null,null,null,null,null,null,null,null,null,189,null,180,"(181)"]
["180 (181)",null,null,0,null,0,{"$error":"#DIV/0!"},null,null,null,null,null,null,null,null,null,null,null,null,null,null,null,null,null,null,null,null,17,"-","-","-",181,180,"-",195,null,null,0,1,1,1,1,1,1,1,1,1,1,1,1,1,0,1,1,1,1,null,2,null,null,"","","","","","","","","","","","","","","","","-","-","-",15,null,0,null,null,null,null,null,null,null,null,null,null,null,null,null,null,null,null,null,null,null,null,null,null,null,null,null,null,null,null,null,null,null,null,null,null,null,null,null,null,null,null,null,null,null,null,null,null,null,null,null,null,null,null,null,null,null,null,null,null,null,null,null,null,190,null,180,"(181)"]
["180 (181)",null,null,0,null,0,{"$error":"#DIV/0!"},null,null,null,null,null,null,null,null,null,null,null,null,null,null,null,null,null,null,null,null,17,"-","-","-",181,180,"-",196,null,null,0,1,1,1,1,1,1,1,1,1,1,1,1,1,0,1,1,1,1,null,2,null,null,"","","","","","","","","","","","","","","","","-","-","-",15,null,0,null,null,null,null,null,null,null,null,null,null,null,null,null,null,null,null,null,null,null,null,null,null,null,null,null,null,null,null,null,null,null,null,null,null,null,null,null,null,null,null,null,null,null,null,null,null,null,null,null,null,null,null,null,null,null,null,null,null,null,null,null,null,191,null,180,"(181)"]
["180 (181)",null,null,0,null,0,{"$error":"#DIV/0!"},null,null,null,null,null,null,null,null,null,null,null,null,null,null,null,null,null,null,null,null,17,"-","-","-",181,180,"-",197,null,null,0,1,1,1,1,1,1,1,1,1,1,1,1,1,0,1,1,1,1,null,2,null,null,"","","","","","","","","","","","","","","","","-","-","-",15,null,0,null,null,null,null,null,null,null,null,null,null,null,null,null,null,null,null,null,null,null,null,null,null,null,null,null,null,null,null,null,null,null,null,null,null,null,null,null,null,null,null,null,null,null,null,null,null,null,null,null,null,null,null,null,null,null,null,null,null,null,null,null,null,192,null,180,"(181)"]
["180 (181)",null,null,0,null,0,{"$error":"#DIV/0!"},null,null,null,null,null,null,null,null,null,null,null,null,null,null,null,null,null,null,null,null,17,"-","-","-",181,180,"-",198,null,null,0,1,1,1,1,1,1,1,1,1,1,1,1,1,0,1,1,1,1,null,2,null,null,"","","","","","","","","","","","","","","","","-","-","-",15,null,0,null,null,null,null,null,null,null,null,null,null,null,null,null,null,null,null,null,null,null,null,null,null,null,null,null,null,null,null,null,null,null,null,null,null,null,null,null,null,null,null,null,null,null,null,null,null,null,null,null,null,null,null,null,null,null,null,null,null,null,null,null,null,193,null,180,"(181)"]
["180 (181)",null,null,0,null,0,{"$error":"#DIV/0!"},null,null,null,null,null,null,null,null,null,null,null,null,null,null,null,null,null,null,null,null,17,"-","-","-",181,180,"-",199,null,null,0,1,1,1,1,1,1,1,1,1,1,1,1,1,0,1,1,1,1,null,2,null,null,"","","","","","","","","","","","","","","","","-","-","-",15,null,0,null,null,null,null,null,null,null,null,null,null,null,null,null,null,null,null,null,null,null,null,null,null,null,null,null,null,null,null,null,null,null,null,null,null,null,null,null,null,null,null,null,null,null,null,null,null,null,null,null,null,null,null,null,null,null,null,null,null,null,null,null,null,169,null,180,"(181)"]
["180 (181)",null,null,0,null,0,{"$error":"#DIV/0!"},null,null,null,null,null,null,null,null,null,null,null,null,null,null,null,null,null,null,null,null,17,"-","-","-",181,{"$f":"IF(D204<D203,AI204,AG203)","v":180},"-",200,null,null,{"$f":"COUNT($I$3,I204,H204)","v":0},{"$f":"COUNT($J$3,J204,I204)","v":1},{"$f":"COUNT($K$3,K204,J204)","v":1},{"$f":"COUNT($L$3,L204,K204)","v":1},{"$f":"COUNT($M$3,M204,L204)","v":1},{"$f":"COUNT($N$3,N204,M204)","v":1},{"$f":"COUNT($O$3,O204,N204)","v":1},{"$f":"COUNT($P$3,P204,O204)","v":1},{"$f":"COUNT($Q$3,Q204,P204)","v":1},{"$f":"COUNT($R$3,R204,Q204)","v":1},{"$f":"COUNT($S$3,S204,R204)","v":1},{"$f":"COUNT($T$3,T204,S204)","v":1},{"$f":"COUNT($U$3,U204,T204)","v":1},{"$f":"COUNT($V$3,V204,U204)","v":1},{"$f":"COUNT($W$3,W204,V204)","v":0},{"$f":"COUNT($X$3,X204,W204)","v":1},{"$f":"COUNT($Y$3,Y204,X204)","v":1},{"$f":"COUNT($Z$3,Z204,Y204)","v":1},{"$f":"COUNT($AA$3,AA204,Z204)","v":1},null,{"$f":"IF(H204=\"x\",1,2)","v":2},null,null,{"$f":"IF($F204>0,LARGE($I204:$AA204,1),\"\")","v":""},"","","","","","","","","","","","","","","","-","-","-",15,null,0,null,null,null,null,null,null,null,null,null,null,null,null,null,null,null,null,null,null,null,null,null,null,null,null,null,null,null,null,null,null,null,null,null,null,null,null,null,null,null,null,null,null,null,null,null,null,null,null,null,null,null,null,null,null,null,null,null,null,null,null,null,null,194,null,180,"(181)"]
["180 (181)",null,null,0,null,0,{"$error":"#DIV/0!"},null,null,null,null,null,null,null,null,null,null,null,null,null,null,null,null,null,null,null,null,17,"-","-","-",181,180,"-",201,null,null,0,1,1,1,1,1,1,1,1,1,1,1,1,1,0,1,1,1,1,null,2,null,null,"","","","","","","","","","","","","","","","","-","-","-",15,null,0,null,null,null,null,null,null,null,null,null,null,null,null,null,null,null,null,null,null,null,null,null,null,null,null,null,null,null,null,null,null,null,null,null,null,null,null,null,null,null,null,null,null,null,null,null,null,null,null,null,null,null,null,null,null,null,null,null,null,null,null,null,null,196,null,180,"(181)"]
["180 (181)",null,null,0,null,0,{"$error":"#DIV/0!"},null,null,null,null,null,null,null,null,null,null,null,null,null,null,null,null,null,null,null,null,17,"-","-","-",181,180,"-",202,null,null,0,1,1,1,1,1,1,1,1,1,1,1,1,1,0,1,1,1,1,null,2,null,null,"","","","","","","","","","","","","","","","","-","-","-",15,null,0,null,null,null,null,null,null,null,null,null,null,null,null,null,null,null,null,null,null,null,null,null,null,null,null,null,null,null,null,null,null,null,null,null,null,null,null,null,null,null,null,null,null,null,null,null,null,null,null,null,null,null,null,null,null,null,null,null,null,null,null,null,null,197,null,180,"(181)"]
["180 (181)",null,null,0,null,0,{"$error":"#DIV/0!"},null,null,null,null,null,null,null,null,null,null,null,null,null,null,null,null,null,null,null,null,17,"-","-","-",181,180,"-",203,null,null,0,1,1,1,1,1,1,1,1,1,1,1,1,1,0,1,1,1,1,null,2,null,null,"","","","","","","","","","","","","","","","","-","-","-",15,null,0,null,null,null,null,null,null,null,null,null,null,null,null,null,null,null,null,null,null,null,null,null,null,null,null,null,null,null,null,null,null,null,null,null,null,null,null,null,null,null,null,null,null,null,null,null,null,null,null,null,null,null,null,null,null,null,null,null,null,null,null,null,null,207,null,180,"(181)"]
["180 (181)",null,null,0,null,0,{"$error":"#DIV/0!"},null,null,null,null,null,null,null,null,null,null,null,null,null,null,null,null,null,null,null,null,17,"-","-","-",181,180,"-",204,null,null,0,1,1,1,1,1,1,1,1,1,1,1,1,1,0,1,1,1,1,null,2,null,null,"","","","","","","","","","","","","","","","","-","-","-",15,null,0,null,null,null,null,null,null,null,null,null,null,null,null,null,null,null,null,null,null,null,null,null,null,null,null,null,null,null,null,null,null,null,null,null,null,null,null,null,null,null,null,null,null,null,null,null,null,null,null,null,null,null,null,null,null,null,null,null,null,null,null,null,null,198,null,180,"(181)"]
["180 (181)",null,null,0,null,0,{"$error":"#DIV/0!"},null,null,null,null,null,null,null,null,null,null,null,null,null,null,null,null,null,null,null,null,17,"-","-","-",181,180,"-",205,null,null,0,1,1,1,1,1,1,1,1,1,1,1,1,1,0,1,1,1,1,null,2,null,null,"","","","","","","","","","","","","","","","","-","-","-",15,null,0,null,null,null,null,null,null,null,null,null,null,null,null,null,null,null,null,null,null,null,null,null,null,null,null,null,null,null,null,null,null,null,null,null,null,null,null,null,null,null,null,null,null,null,null,null,null,null,null,null,null,null,null,null,null,null,null,null,null,null,null,null,null,199,null,180,"(181)"]
["180 (181)",null,null,0,null,0,{"$error":"#DIV/0!"},null,null,null,null,null,null,null,null,null,null,null,null,null,null,null,null,null,null,null,null,17,"-","-","-",181,180,"-",206,null,null,0,1,1,1,1,1,1,1,1,1,1,1,1,1,0,1,1,1,1,null,2,null,null,"","","","","","","","","","","","","","","","","-","-","-",15,null,0,null,null,null,null,null,null,null,null,null,null,null,null,null,null,null,null,null,null,null,null,null,null,null,null,null,null,null,null,null,null,null,null,null,null,null,null,null,null,null,null,null,null,null,null,null,null,null,null,null,null,null,null,null,null,null,null,null,null,null,null,null,null,200,null,180,"(181)"]
["180 (181)",null,null,0,null,0,{"$error":"#DIV/0!"},null,null,null,null,null,null,null,null,null,null,null,null,null,null,null,null,null,null,null,null,17,"-","-","-",181,180,"-",207,null,null,0,1,1,1,1,1,1,1,1,1,1,1,1,1,0,1,1,1,1,null,2,null,null,"","","","","","","","","","","","","","","","","-","-","-",15,null,0,null,null,null,null,null,null,null,null,null,null,null,null,null,null,null,null,null,null,null,null,null,null,null,null,null,null,null,null,null,null,null,null,null,null,null,null,null,null,null,null,null,null,null,null,null,null,null,null,null,null,null,null,null,null,null,null,null,null,null,null,null,null,201,null,180,"(181)"]
["180 (181)",null,null,0,null,0,{"$error":"#DIV/0!"},null,null,null,null,null,null,null,null,null,null,null,null,null,null,null,null,null,null,null,null,17,"-","-","-",181,180,"-",208,null,null,0,1,1,1,1,1,1,1,1,1,1,1,1,1,0,1,1,1,1,null,2,null,null,"","","","","","","","","","","","","","","","","-","-","-",15,null,0,null,null,null,null,null,null,null,null,null,null,null,null,null,null,null,null,null,null,null,null,null,null,null,null,null,null,null,null,null,null,null,null,null,null,null,null,null,null,null,null,null,null,null,null,null,null,null,null,null,null,null,null,null,null,null,null,null,null,null,null,null,null,203,null,180,"(181)"]
["180 (181)",null,null,0,null,0,{"$error":"#DIV/0!"},null,null,null,null,null,null,null,null,null,null,null,null,null,null,null,null,null,null,null,null,17,"-","-","-",181,180,"-",209,null,null,0,1,1,1,1,1,1,1,1,1,1,1,1,1,0,1,1,1,1,null,2,null,null,"","","","","","","","","","","","","","","","","-","-","-",15,null,0,null,null,null,null,null,null,null,null,null,null,null,null,null,null,null,null,null,null,null,null,null,null,null,null,null,null,null,null,null,null,null,null,null,null,null,null,null,null,null,null,null,null,null,null,null,null,null,null,null,null,null,null,null,null,null,null,null,null,null,null,null,null,204,null,180,"(181)"]
[{"$f":"IF(BF214>1,AG214&\" (\"&AF214&\")\",AG214&\" (\"&AH214&\")\")","v":"180 (181)"},null,null,0,null,0,{"$error":"#DIV/0!"},null,null,null,null,null,null,null,null,null,null,null,null,null,null,null,null,null,null,null,null,17,"-","-","-",181,{"$f":"IF(D214<D213,AI214,AG213)","v":180},"-",210,null,null,{"$f":"COUNT($I$3,I214,H214)","v":0},{"$f":"COUNT($J$3,J214,I214)","v":1},{"$f":"COUNT($K$3,K214,J214)","v":1},{"$f":"COUNT($L$3,L214,K214)","v":1},{"$f":"COUNT($M$3,M214,L214)","v":1},{"$f":"COUNT($N$3,N214,M214)","v":1},{"$f":"COUNT($O$3,O214,N214)","v":1},{"$f":"COUNT($P$3,P214,O214)","v":1},{"$f":"COUNT($Q$3,Q214,P214)","v":1},{"$f":"COUNT($R$3,R214,Q214)","v":1},{"$f":"COUNT($S$3,S214,R214)","v":1},{"$f":"COUNT($T$3,T214,S214)","v":1},{"$f":"COUNT($U$3,U214,T214)","v":1},{"$f":"COUNT($V$3,V214,U214)","v":1},{"$f":"COUNT($W$3,W214,V214)","v":0},{"$f":"COUNT($X$3,X214,W214)","v":1},{"$f":"COUNT($Y$3,Y214,X214)","v":1},{"$f":"COUNT($Z$3,Z214,Y214)","v":1},{"$f":"COUNT($AA$3,AA214,Z214)","v":1},null,{"$f":"IF(H214=\"x\",1,2)","v":2},null,null,{"$f":"IF($F214>0,LARGE($I214:$AA214,1),\"\")","v":""},"","","","","","","","","","","","","","","","-","-","-",15,null,{"$f":"SUM(BI214:BX214)","v":0},null,null,null,null,null,null,null,null,null,null,null,null,null,null,null,null,null,null,null,null,null,null,null,null,null,null,null,null,null,null,null,null,null,null,null,null,null,null,null,null,null,null,null,null,null,null,null,null,null,null,null,null,null,null,null,null,null,null,null,null,null,null,208,null,{"$f":"IF(BF214>1,AG214,\"\")","v":180},{"$f":"IF(BF214>1,\"(\"&AF214&\")\",\"(\"&AH214&\")\")","v":"(181)"}]
["180 (181)",null,null,0,null,0,{"$error":"#DIV/0!"},null,null,null,null,null,null,null,null,null,null,null,null,null,null,null,null,null,null,null,null,17,"-","-","-",181,180,"-",211,null,null,0,1,1,1,1,1,1,1,1,1,1,1,1,1,0,1,1,1,1,null,2,null,null,"","","","","","","","","","","","","","","","","-","-","-",15,null,0,null,null,null,null,null,null,null,null,null,null,null,null,null,null,null,null,null,null,null,null,null,null,null,null,null,null,null,null,null,null,null,null,null,null,null,null,null,null,null,null,null,null,null,null,null,null,null,null,null,null,null,null,null,null,null,null,null,null,null,null,null,null,209,null,180,"(181)"]
["180 (181)",null,null,0,null,0,{"$error":"#DIV/0!"},null,null,null,null,null,null,null,null,null,null,null,null,null,null,null,null,null,null,null,null,17,"-","-","-",181,180,"-",212,null,null,0,1,1,1,1,1,1,1,1,1,1,1,1,1,0,1,1,1,1,null,2,null,null,"","","","","","","","","","","","","","","","","-","-","-",15,null,0,null,null,null,null,null,null,null,null,null,null,null,null,null,null,null,null,null,null,null,null,null,null,null,null,null,null,null,null,null,null,null,null,null,null,null,null,null,null,null,null,null,null,null,null,null,null,null,null,null,null,null,null,null,null,null,null,null,null,null,null,null,null,210,null,180,"(181)"]
["180 (181)",null,null,0,null,0,{"$error":"#DIV/0!"},null,null,null,null,null,null,null,null,null,null,null,null,null,null,null,null,null,null,null,null,17,"-","-","-",181,180,"-",213,null,null,0,1,1,1,1,1,1,1,1,1,1,1,1,1,0,1,1,1,1,null,2,null,null,"","","","","","","","","","","","","","","","","-","-","-",15,null,0,null,null,null,null,null,null,null,null,null,null,null,null,null,null,null,null,null,null,null,null,null,null,null,null,null,null,null,null,null,null,null,null,null,null,null,null,null,null,null,null,null,null,null,null,null,null,null,null,null,null,null,null,null,null,null,null,null,null,null,null,null,null,211,null,180,"(181)"]
["180 (181)",null,null,0,null,0,{"$error":"#DIV/0!"},null,null,null,null,null,null,null,null,null,null,null,null,null,null,null,null,null,null,null,null,17,"-","-","-",181,180,"-",214,null,null,0,1,1,1,1,1,1,1,1,1,1,1,1,1,0,1,1,1,1,null,2,null,null,"","","","","","","","","","","","","","","","","-","-","-",15,null,0,null,null,null,null,null,null,null,null,null,null,null,null,null,null,null,null,null,null,null,null,null,null,null,null,null,null,null,null,null,null,null,null,null,null,null,null,null,null,null,null,null,null,null,null,null,null,null,null,null,null,null,null,null,null,null,null,null,null,null,null,null,null,212,null,180,"(181)"]
["180 (181)",null,null,0,null,0,{"$error":"#DIV/0!"},null,null,null,null,null,null,null,null,null,null,null,null,null,null,null,null,null,null,null,null,17,"-","-","-",181,180,"-",215,null,null,0,1,1,1,1,1,1,1,1,1,1,1,1,1,0,1,1,1,1,null,2,null,null,"","","","","","","","","","","","","","","","","-","-","-",15,null,0,null,null,null,null,null,null,null,null,null,null,null,null,null,null,null,null,null,null,null,null,null,null,null,null,null,null,null,null,null,null,null,null,null,null,null,null,null,null,null,null,null,null,null,null,null,null,null,null,null,null,null,null,null,null,null,null,null,null,null,null,null,null,213,null,180,"(181)"]
["180 (181)",null,null,0,null,0,{"$error":"#DIV/0!"},null,null,null,null,null,null,null,null,null,null,null,null,null,null,null,null,null,null,null,null,17,"-","-","-",181,180,"-",216,null,null,0,1,1,1,1,1,1,1,1,1,1,1,1,1,0,1,1,1,1,null,2,null,null,"","","","","","","","","","","","","","","","","-","-","-",15,null,0,null,null,null,null,null,null,null,null,null,null,null,null,null,null,null,null,null,null,null,null,null,null,null,null,null,null,null,null,null,null,null,null,null,null,null,null,null,null,null,null,null,null,null,null,null,null,null,null,null,null,null,null,null,null,null,null,null,null,null,null,null,null,214,null,180,"(181)"]

{"sheet":"Regler","index":1,"n_rows":29,"n_cols":1,"rows_kept":29,"cut":false,"hidden":false,"merged":[]}
["Regler för Sverige-,Junior- o Miniorranking"]
[]
["Rankingpoäng utgör den totala poängen från rankingtävlingar under säsongen "]
["som varje enskild kastare har fått ihop."]
["Max från 13 tävlingar kan medräknas, och då räknas de 13 med högst resultat."]
[]
["Den som har högst poäng när säsongen är över vinner."]
[]
["Skulle det vara kastare som hamnar på samma poäng när säsongen är över, och är bland de"]
["tre bästa så gäller detta för att skilja dem åt."]
[]
["1. Högst snitt per serie"]
["2. Högst poäng på en tävling, sedan näst högst osv."]
["3. Högsta poängen på senaste tävlingen, sedan den dessför innan osv.(DM-tävlingar ej inräknade) "]
["4. Skulle det fortfarande inte gå att skilja dem åt, så blir de på samma plats."]
[]
[]
["Seriespelsranking"]
[]
["Alla individuella seriespelsresultaten under säsongen räknas in."]
["Den som har högst snitt när säsongen är över vinner. "]
[]
["För att kunna vara bland de tre pristagarna, måste man spelat minst 7 serier."]
[]
["Skulle det vara kastare som hamnar på samma snitt när säsongen är över, och är bland de"]
["tre bästa så gäller detta för att skilja dem åt."]
[]
["1. Det högsta serieresultatet, sedan näst högsta osv."]
["2. Skulle det fortfarande inte gå att skilja dem åt, så blir de på samma plats."]

{"sheet":"Miniorranking","index":2,"n_rows":47,"n_cols":141,"rows_kept":47,"cut":false,"hidden":false,"merged":[]}
[null,"Svenska Hästskokastarförbundets Sverigeranking",null,null,null,null,null,null,null,null,null,null,null,null,null,null,null,null,null,null,null,null,null,null,null,null,null,null,{"$f":"COUNT(I5:AA25)","v":9}]
[null,null,"MINIOR"]
[null,"SLUTSTÄLLNING","Säsong 2018 / 2019",null,null,null,null,null,{"$f":"IF(SUM(I5:I407)>100,1,\"\")","v":""},"","",1,1,"","","",1,"",1,"","","","",1,1,"",""]
["Plac.","Kastare ","Klubb","Ranking-poäng",null,"Antal täv-lingar","Snitt per serie",null,"Växjö Open","Björkenäs Open","Utomhus-SM Dag 1","Utomhus-SM Dag 2","Utomhus Smålandsmästaren","Carlskrona Cup","Gotland Open","Septemberskon","Dynapac Open","Blekinge-DM Ute","Åseda Open","Höstskon Nybro","Novemberkampen","Inomhus-SM","Gotlands-DM inne","Inomhus Smålandsmästaren ","Blekinge DM Inne","Värendspokalen","Tingsryds Open"]
[{"$f":"EJ5&EK5","v":"1(1)"},"Sandra Widlund","Växjö Hsk",{"$f":"SUM(I5:AA5)","v":997},null,{"$f":"COUNT(I5:AA5)","v":5},{"$f":"SUM((D5)/(F5*2))","v":99.7},null,null,null,null,125,140,null,null,null,214,null,281,null,null,null,null,237,null,null,null,null,null,1,{"$f":"IF(D5>1,ROW(1:1),\"-\")","v":1},{"$f":"IF(F5>1,ROW(1:1),\"-\")","v":1},null,null,null,{"$f":"COUNT($I$3,I5,H5)","v":0},{"$f":"COUNT($J$3,J5,I5)","v":0},{"$f":"COUNT($K$3,K5,J5)","v":0},{"$f":"COUNT($L$3,L5,K5)","v":2},{"$f":"COUNT($M$3,M5,L5)","v":3},{"$f":"COUNT($N$3,N5,M5)","v":1},{"$f":"COUNT($O$3,O5,N5)","v":0},{"$f":"COUNT($P$3,P5,O5)","v":0},{"$f":"COUNT($Q$3,Q5,P5)","v":2},{"$f":"COUNT($R$3,R5,Q5)","v":1},{"$f":"COUNT($S$3,S5,R5)","v":2},{"$f":"COUNT($T$3,T5,S5)","v":1},{"$f":"COUNT($U$3,U5,T5)","v":0},{"$f":"COUNT($V$3,V5,U5)","v":0},{"$f":"COUNT($W$3,W5,V5)","v":0},{"$f":"COUNT($X$3,X5,W5)","v":2},{"$f":"COUNT($Y$3,Y5,X5)","v":2},{"$f":"COUNT($Z$3,Z5,Y5)","v":0},{"$f":"COUNT($AA$3,AA5,Z5)","v":0},null,{"$f":"COUNTIF(AI5:BC5,\">1\")","v":6},{"$f":"IF(H5=\"x\",1,2)","v":2},null,null,null,null,null,null,null,null,null,null,null,null,null,null,null,null,null,null,null,null,null,null,null,null,null,null,null,null,null,null,null,null,null,null,null,null,null,null,null,null,null,null,null,null,null,null,null,null,null,null,null,null,null,null,null,null,null,null,null,null,null,null,null,null,null,null,null,null,null,null,null,null,null,null,null,null,null,null,null,null,1,null,{"$f":"IF(BD5>=1,AE5,\"\")","v":1},{"$f":"IF(BE5>1,\"(\"&AD5&\")\",\"(\"&AF5&\")\")","v":"(1)"}]
["2(2)","Saga Karlberg","Jämjö Hsk",165,null,2,41.25,null,null,null,null,null,null,74,null,null,null,91,null,null,null,null,null,null,null,null,null,null,null,2,{"$f":"IF(AND(D6=D5,D6=D4),ROW(#REF!),IF(D6=D5,ROW(1:1),IF(D6>1,ROW(2:2),\"-\")))","v":2},2,null,null,null,0,0,0,1,1,1,1,0,1,1,2,0,0,0,0,1,1,0,0,null,1,2,null,null,null,null,null,null,null,null,null,null,null,null,null,null,null,null,null,null,null,null,null,null,null,null,null,null,null,null,null,null,null,null,null,null,null,null,null,null,null,null,null,null,null,null,null,null,null,null,null,null,null,null,null,null,null,null,null,null,null,null,null,null,null,null,null,null,null,null,null,null,null,null,null,null,null,null,null,null,null,null,3,null,2,"(2)"]
["3(3)","Gustav Svensson","Carlskrona Hsc",88,null,1,44,null,null,null,null,null,null,null,null,null,null,null,null,null,null,null,null,null,88,null,null,null,null,3,{"$f":"IF(AND(D7=D6,D7=D5,D7=D4),ROW(#REF!),IF(AND(D7=D6,D7=D5),ROW(1:1),IF(D7=D6,ROW(2:2),IF(D7>1,ROW(3:3),\"-\"))))","v":3},"-",null,null,null,0,0,0,1,1,0,0,0,1,0,1,0,0,0,0,1,2,1,0,null,1,2,null,null,null,null,null,null,null,null,null,null,null,null,null,null,null,null,null,null,null,null,null,null,null,null,null,null,null,null,null,null,null,null,null,null,null,null,null,null,null,null,null,null,null,null,null,null,null,null,null,null,null,null,null,null,null,null,null,null,null,null,null,null,null,null,null,null,null,null,null,null,null,null,null,null,null,null,null,null,null,null,4,null,3,"(3)"]
["4(4)","Alfons Andersson","Carlskrona Hsc",30,null,1,15,null,null,null,null,null,null,null,null,null,null,null,null,null,null,null,null,null,30,null,null,null,null,4,{"$f":"IF(AND(D8=D7,D8=D6,D8=D5,D8=D4),ROW(#REF!),IF(AND(D8=D7,D8=D6,D8=D5),ROW(1:1),IF(AND(D8=D7,D8=D6),ROW(2:2),IF(D8=D7,ROW(3:3),IF(D8>1,ROW(4:4),\"-\")))))","v":4},"-",null,null,null,0,0,0,1,1,0,0,0,1,0,1,0,0,0,0,1,2,1,0,null,1,2,null,null,null,null,null,null,null,null,null,null,null,null,null,null,null,null,null,null,null,null,null,null,null,null,null,null,null,null,null,null,null,null,null,null,null,null,null,null,null,null,null,null,null,null,null,null,null,null,null,null,null,null,null,null,null,null,null,null,null,null,null,null,null,null,null,null,null,null,null,null,null,null,null,null,null,null,null,null,null,null,5,null,4,"(4)"]
["(-)",null,null,0,null,0,{"$error":"#DIV/0!"},null,null,null,null,null,null,null,null,null,null,null,null,null,null,null,null,null,null,null,null,null,null,"-",{"$f":"IF(AND(D9=D8,D9=D7,D9=D6,D9=D5),ROW(1:1),IF(AND(D9=D8,D9=D7,D9=D6),ROW(2:2),IF(AND(D9=D8,D9=D7),ROW(3:3),IF(D9=D8,ROW(4:4),IF(D9>1,ROW(5:5),\"-\")))))","v":"-"},"-",null,null,null,0,0,0,1,1,0,0,0,1,0,1,0,0,0,0,1,1,0,0,null,0,2,null,null,null,null,null,null,null,null,null,null,null,null,null,null,null,null,null,null,null,null,null,null,null,null,null,null,null,null,null,null,null,null,null,null,null,null,null,null,null,null,null,null,null,null,null,null,null,null,null,null,null,null,null,null,null,null,null,null,null,null,null,null,null,null,null,null,null,null,null,null,null,null,null,null,null,null,null,null,null,null,6,null,"","(-)"]
["(5)",null,null,0,null,0,{"$error":"#DIV/0!"},null,null,null,null,null,null,null,null,null,null,null,null,null,null,null,null,null,null,null,null,null,null,5,{"$f":"IF(AND(D10=D9,D10=D8,D10=D7,D10=D6),ROW(2:2),IF(AND(D10=D9,D10=D8,D10=D7),ROW(3:3),IF(AND(D10=D9,D10=D8),ROW(4:4),IF(D10=D9,ROW(5:5),IF(D10>1,ROW(6:6),\"-\")))))","v":5},"-",null,null,null,0,0,0,1,1,0,0,0,1,0,1,0,0,0,0,1,1,0,0,null,0,2,null,null,null,null,null,null,null,null,null,null,null,null,null,null,null,null,null,null,null,null,null,null,null,null,null,null,null,null,null,null,null,null,null,null,null,null,null,null,null,null,null,null,null,null,null,null,null,null,null,null,null,null,null,null,null,null,null,null,null,null,null,null,null,null,null,null,null,null,null,null,null,null,null,null,null,null,null,null,null,null,7,null,"","(5)"]
["(5)",null,null,0,null,0,{"$error":"#DIV/0!"},null,null,null,null,null,null,null,null,null,null,null,null,null,null,null,null,null,null,null,null,null,null,5,{"$f":"IF(AND(D11=D10,D11=D9,D11=D8,D11=D7),ROW(3:3),IF(AND(D11=D10,D11=D9,D11=D8),ROW(4:4),IF(AND(D11=D10,D11=D9),ROW(5:5),IF(D11=D10,ROW(6:6),IF(D11>1,ROW(7:7),\"-\")))))","v":5},"-",null,null,null,0,0,0,1,1,0,0,0,1,0,1,0,0,0,0,1,1,0,0,null,0,2,null,null,null,null,null,null,null,null,null,null,null,null,null,null,null,null,null,null,null,null,null,null,null,null,null,null,null,null,null,null,null,null,null,null,null,null,null,null,null,null,null,null,null,null,null,null,null,null,null,null,null,null,null,null,null,null,null,null,null,null,null,null,null,null,null,null,null,null,null,null,null,null,null,null,null,null,null,null,null,null,8,null,"","(5)"]
["(5)",null,null,0,null,0,{"$error":"#DIV/0!"},null,null,null,null,null,null,null,null,null,null,null,null,null,null,null,null,null,null,null,null,null,null,5,{"$f":"IF(AND(D12=D11,D12=D10,D12=D9,D12=D8),ROW(4:4),IF(AND(D12=D11,D12=D10,D12=D9),ROW(5:5),IF(AND(D12=D11,D12=D10),ROW(6:6),IF(D12=D11,ROW(7:7),IF(D12>1,ROW(8:8),\"-\")))))","v":5},"-",null,null,null,0,0,0,1,1,0,0,0,1,0,1,0,0,0,0,1,1,0,0,null,0,2,null,null,null,null,null,null,null,null,null,null,null,null,null,null,null,null,null,null,null,null,null,null,null,null,null,null,null,null,null,null,null,null,null,null,null,null,null,null,null,null,null,null,null,null,null,null,null,null,null,null,null,null,null,null,null,null,null,null,null,null,null,null,null,null,null,null,null,null,null,null,null,null,null,null,null,null,null,null,null,null,9,null,"","(5)"]
["(8)",null,null,0,null,0,{"$error":"#DIV/0!"},null,null,null,null,null,null,null,null,null,null,null,null,null,null,null,null,null,null,null,null,null,null,8,{"$f":"IF(D13=D12,ROW(8:8),IF(D13>1,ROW(9:9),\"-\"))","v":8},"-",null,null,null,0,0,0,1,1,0,0,0,1,0,1,0,0,0,0,1,1,0,0,null,0,2,null,null,null,null,null,null,null,null,null,null,null,null,null,null,null,null,null,null,null,null,null,null,null,null,null,null,null,null,null,null,null,null,null,null,null,null,null,null,null,null,null,null,null,null,null,null,null,null,null,null,null,null,null,null,null,null,null,null,null,null,null,null,null,null,null,null,null,null,null,null,null,null,null,null,null,null,null,null,null,null,2,null,"","(8)"]
[{"$f":"EJ14&EK14","v":"(6)"},null,null,0,null,0,{"$error":"#DIV/0!"},null,null,null,null,null,null,null,null,null,null,null,null,null,null,null,null,null,null,null,null,null,null,6,{"$f":"IF(AND(D14=D13,D14=D12,D14=D11,D14=D10),ROW(6:6),IF(AND(D14=D13,D14=D12,D14=D11),ROW(7:7),IF(AND(D14=D13,D14=D12),ROW(8:8),IF(D14=D13,ROW(9:9),IF(D14>1,ROW(10:10),\"-\")))))","v":6},{"$f":"IF(F14>1,ROW(10:10),\"-\")","v":"-"},null,null,null,{"$f":"COUNT($I$3,I14,H14)","v":0},{"$f":"COUNT($J$3,J14,I14)","v":0},{"$f":"COUNT($K$3,K14,J14)","v":0},{"$f":"COUNT($L$3,L14,K14)","v":1},{"$f":"COUNT($M$3,M14,L14)","v":1},{"$f":"COUNT($N$3,N14,M14)","v":0},{"$f":"COUNT($O$3,O14,N14)","v":0},{"$f":"COUNT($P$3,P14,O14)","v":0},{"$f":"COUNT($Q$3,Q14,P14)","v":1},{"$f":"COUNT($R$3,R14,Q14)","v":0},{"$f":"COUNT($S$3,S14,R14)","v":1},{"$f":"COUNT($T$3,T14,S14)","v":0},{"$f":"COUNT($U$3,U14,T14)","v":0},{"$f":"COUNT($V$3,V14,U14)","v":0},{"$f":"COUNT($W$3,W14,V14)","v":0},{"$f":"COUNT($X$3,X14,W14)","v":1},{"$f":"COUNT($Y$3,Y14,X14)","v":1},{"$f":"COUNT($Z$3,Z14,Y14)","v":0},{"$f":"COUNT($AA$3,AA14,Z14)","v":0},null,{"$f":"COUNTIF(AI14:BC14,\">1\")","v":0},{"$f":"IF(H14=\"x\",1,2)","v":2},null,null,null,null,null,null,null,null,null,null,null,null,null,null,null,null,null,null,null,null,null,null,null,null,null,null,null,null,null,null,null,null,null,null,null,null,null,null,null,null,null,null,null,null,null,null,null,null,null,null,null,null,null,null,null,null,null,null,null,null,null,null,null,null,null,null,null,null,null,null,null,null,null,null,null,null,null,null,null,null,10,null,{"$f":"IF(BD14>=1,AE14,\"\")","v":""},{"$f":"IF(BE14>1,\"(\"&AD14&\")\",\"(\"&AF14&\")\")","v":"(6)"}]
["(7)",null,null,0,null,0,{"$error":"#DIV/0!"},null,null,null,null,null,null,null,null,null,null,null,null,null,null,null,null,null,null,null,null,null,null,7,7,"-",null,null,null,0,0,0,1,1,0,0,0,1,0,1,0,0,0,0,1,1,0,0,null,0,2,null,null,null,null,null,null,null,null,null,null,null,null,null,null,null,null,null,null,null,null,null,null,null,null,null,null,null,null,null,null,null,null,null,null,null,null,null,null,null,null,null,null,null,null,null,null,null,null,null,null,null,null,null,null,null,null,null,null,null,null,null,null,null,null,null,null,null,null,null,null,null,null,null,null,null,null,null,null,null,null,11,null,"","(7)"]
["(8)",null,null,0,null,0,{"$error":"#DIV/0!"},null,null,null,null,null,null,null,null,null,null,null,null,null,null,null,null,null,null,null,null,null,null,8,8,"-",null,null,null,0,0,0,1,1,0,0,0,1,0,1,0,0,0,0,1,1,0,0,null,0,2,null,null,null,null,null,null,null,null,null,null,null,null,null,null,null,null,null,null,null,null,null,null,null,null,null,null,null,null,null,null,null,null,null,null,null,null,null,null,null,null,null,null,null,null,null,null,null,null,null,null,null,null,null,null,null,null,null,null,null,null,null,null,null,null,null,null,null,null,null,null,null,null,null,null,null,null,null,null,null,null,12,null,"","(8)"]
["(9)",null,null,0,null,0,{"$error":"#DIV/0!"},null,null,null,null,null,null,null,null,null,null,null,null,null,null,null,null,null,null,null,null,null,null,9,9,"-",null,null,null,0,0,0,1,1,0,0,0,1,0,1,0,0,0,0,1,1,0,0,null,0,2,null,null,null,null,null,null,null,null,null,null,null,null,null,null,null,null,null,null,null,null,null,null,null,null,null,null,null,null,null,null,null,null,null,null,null,null,null,null,null,null,null,null,null,null,null,null,null,null,null,null,null,null,null,null,null,null,null,null,null,null,null,null,null,null,null,null,null,null,null,null,null,null,null,null,null,null,null,null,null,null,13,null,"","(9)"]
["(10)",null,null,0,null,0,{"$error":"#DIV/0!"},null,null,null,null,null,null,null,null,null,null,null,null,null,null,null,null,null,null,null,null,null,null,10,10,"-",null,null,null,0,0,0,1,1,0,0,0,1,0,1,0,0,0,0,1,1,0,0,null,0,2,null,null,null,null,null,null,null,null,null,null,null,null,null,null,null,null,null,null,null,null,null,null,null,null,null,null,null,null,null,null,null,null,null,null,null,null,null,null,null,null,null,null,null,null,null,null,null,null,null,null,null,null,null,null,null,null,null,null,null,null,null,null,null,null,null,null,null,null,null,null,null,null,null,null,null,null,null,null,null,null,14,null,{"$f":"IF(BD18>=1,AE18,\"\")","v":""},"(10)"]
["(11)",null,null,0,null,0,{"$error":"#DIV/0!"},null,null,null,null,null,null,null,null,null,null,null,null,null,null,null,null,null,null,null,null,null,null,11,11,"-",null,null,null,0,0,0,1,1,0,0,0,1,0,1,0,0,0,0,1,1,0,0,null,0,2,null,null,null,null,null,null,null,null,null,null,null,null,null,null,null,null,null,null,null,null,null,null,null,null,null,null,null,null,null,null,null,null,null,null,null,null,null,null,null,null,null,null,null,null,null,null,null,null,null,null,null,null,null,null,null,null,null,null,null,null,null,null,null,null,null,null,null,null,null,null,null,null,null,null,null,null,null,null,null,null,15,null,"","(11)"]
["(12)",null,null,0,null,0,{"$error":"#DIV/0!"},null,null,null,null,null,null,null,null,null,null,null,null,null,null,null,null,null,null,null,null,null,null,12,12,"-",null,null,null,0,0,0,1,1,0,0,0,1,0,1,0,0,0,0,1,1,0,0,null,0,2,null,null,null,null,null,null,null,null,null,null,null,null,null,null,null,null,null,null,null,null,null,null,null,null,null,null,null,null,null,null,null,null,null,null,null,null,null,null,null,null,null,null,null,null,null,null,null,null,null,null,null,null,null,null,null,null,null,null,null,null,null,null,null,null,null,null,null,null,null,null,null,null,null,null,null,null,null,null,null,null,16,null,{"$f":"IF(BD20>=1,AE20,\"\")","v":""},"(12)"]
["(13)",null,null,0,null,0,{"$error":"#DIV/0!"},null,null,null,null,null,null,null,null,null,null,null,null,null,null,null,null,null,null,null,null,null,null,13,13,"-",null,null,null,0,0,0,1,1,0,0,0,1,0,1,0,0,0,0,1,1,0,0,null,0,2,null,null,null,null,null,null,null,null,null,null,null,null,null,null,null,null,null,null,null,null,null,null,null,null,null,null,null,null,null,null,null,null,null,null,null,null,null,null,null,null,null,null,null,null,null,null,null,null,null,null,null,null,null,null,null,null,null,null,null,null,null,null,null,null,null,null,null,null,null,null,null,null,null,null,null,null,null,null,null,null,17,null,"","(13)"]
[{"$f":"EJ22&EK22","v":"(14)"},null,null,0,null,0,{"$error":"#DIV/0!"},null,null,null,null,null,null,null,null,null,null,null,null,null,null,null,null,null,null,null,null,null,null,14,14,"-",null,null,null,0,0,0,1,1,0,0,0,1,0,1,0,0,0,0,1,1,0,0,null,0,2,null,null,null,null,null,null,null,null,null,null,null,null,null,null,null,null,null,null,null,null,null,null,null,null,null,null,null,null,null,null,null,null,null,null,null,null,null,null,null,null,null,null,null,null,null,null,null,null,null,null,null,null,null,null,null,null,null,null,null,null,null,null,null,null,null,null,null,null,null,null,null,null,null,null,null,null,null,null,null,null,18,null,"","(14)"]
[{"$f":"EJ23&EK23","v":"(15)"},null,null,0,null,0,{"$error":"#DIV/0!"},null,null,null,null,null,null,null,null,null,null,null,null,null,null,null,null,null,null,null,null,null,null,15,{"$f":"IF(AND(D23=D22,D23=D21,D23=D20,D23=D19),ROW(15:15),IF(AND(D23=D22,D23=D21,D23=D20),ROW(16:16),IF(AND(D23=D22,D23=D21),ROW(17:17),IF(D23=D22,ROW(18:18),IF(D23>1,ROW(19:19),\"-\")))))","v":15},{"$f":"IF(F23>1,ROW(19:19),\"-\")","v":"-"},null,null,null,{"$f":"COUNT($I$3,I23,H23)","v":0},{"$f":"COUNT($J$3,J23,I23)","v":0},{"$f":"COUNT($K$3,K23,J23)","v":0},{"$f":"COUNT($L$3,L23,K23)","v":1},{"$f":"COUNT($M$3,M23,L23)","v":1},{"$f":"COUNT($N$3,N23,M23)","v":0},{"$f":"COUNT($O$3,O23,N23)","v":0},{"$f":"COUNT($P$3,P23,O23)","v":0},{"$f":"COUNT($Q$3,Q23,P23)","v":1},{"$f":"COUNT($R$3,R23,Q23)","v":0},{"$f":"COUNT($S$3,S23,R23)","v":1},{"$f":"COUNT($T$3,T23,S23)","v":0},{"$f":"COUNT($U$3,U23,T23)","v":0},{"$f":"COUNT($V$3,V23,U23)","v":0},{"$f":"COUNT($W$3,W23,V23)","v":0},{"$f":"COUNT($X$3,X23,W23)","v":1},{"$f":"COUNT($Y$3,Y23,X23)","v":1},{"$f":"COUNT($Z$3,Z23,Y23)","v":0},{"$f":"COUNT($AA$3,AA23,Z23)","v":0},null,{"$f":"COUNTIF(AI23:BC23,\">1\")","v":0},{"$f":"IF(H23=\"x\",1,2)","v":2},null,null,null,null,null,null,null,null,null,null,null,null,null,null,null,null,null,null,null,null,null,null,null,null,null,null,null,null,null,null,null,null,null,null,null,null,null,null,null,null,null,null,null,null,null,null,null,null,null,null,null,null,null,null,null,null,null,null,null,null,null,null,null,null,null,null,null,null,null,null,null,null,null,null,null,null,null,null,null,null,19,null,"",{"$f":"IF(BE23>1,\"(\"&AD23&\")\",\"(\"&AF23&\")\")","v":"(15)"}]
["(16)",null,null,0,null,0,{"$error":"#DIV/0!"},null,null,null,null,null,null,null,null,null,null,null,null,null,null,null,null,null,null,null,null,null,null,16,16,"-",null,null,null,0,0,0,1,1,0,0,0,1,0,1,0,0,0,0,1,1,0,0,null,0,2,null,null,null,null,null,null,null,null,null,null,null,null,null,null,null,null,null,null,null,null,null,null,null,null,null,null,null,null,null,null,null,null,null,null,null,null,null,null,null,null,null,null,null,null,null,null,null,null,null,null,null,null,null,null,null,null,null,null,null,null,null,null,null,null,null,null,null,null,null,null,null,null,null,null,null,null,null,null,null,null,20,null,"","(16)"]
[{"$f":"EJ25&EK25","v":"(17)"},null,null,0,null,0,{"$error":"#DIV/0!"},null,null,null,null,null,null,null,null,null,null,null,null,null,null,null,null,null,null,null,null,null,null,17,{"$f":"IF(AND(D25=D24,D25=D23,D25=D22,D25=D21),ROW(17:17),IF(AND(D25=D24,D25=D23,D25=D22),ROW(18:18),IF(AND(D25=D24,D25=D23),ROW(19:19),IF(D25=D24,ROW(20:20),IF(D25>1,ROW(21:21),\"-\")))))","v":17},{"$f":"IF(F25>1,ROW(21:21),\"-\")","v":"-"},null,null,null,{"$f":"COUNT($I$3,I25,H25)","v":0},{"$f":"COUNT($J$3,J25,I25)","v":0},{"$f":"COUNT($K$3,K25,J25)","v":0},{"$f":"COUNT($L$3,L25,K25)","v":1},{"$f":"COUNT($M$3,M25,L25)","v":1},{"$f":"COUNT($N$3,N25,M25)","v":0},{"$f":"COUNT($O$3,O25,N25)","v":0},{"$f":"COUNT($P$3,P25,O25)","v":0},{"$f":"COUNT($Q$3,Q25,P25)","v":1},{"$f":"COUNT($R$3,R25,Q25)","v":0},{"$f":"COUNT($S$3,S25,R25)","v":1},{"$f":"COUNT($T$3,T25,S25)","v":0},{"$f":"COUNT($U$3,U25,T25)","v":0},{"$f":"COUNT($V$3,V25,U25)","v":0},{"$f":"COUNT($W$3,W25,V25)","v":0},{"$f":"COUNT($X$3,X25,W25)","v":1},{"$f":"COUNT($Y$3,Y25,X25)","v":1},{"$f":"COUNT($Z$3,Z25,Y25)","v":0},{"$f":"COUNT($AA$3,AA25,Z25)","v":0},null,{"$f":"COUNTIF(AI25:BC25,\">1\")","v":0},{"$f":"IF(H25=\"x\",1,2)","v":2},null,null,null,null,null,null,null,null,null,null,null,null,null,null,null,null,null,null,null,null,null,null,null,null,null,null,null,null,null,null,null,null,null,null,null,null,null,null,null,null,null,null,null,null,null,null,null,null,null,null,null,null,null,null,null,null,null,null,null,null,null,null,null,null,null,null,null,null,null,null,null,null,null,null,null,null,null,null,null,null,21,null,"",{"$f":"IF(BE25>1,\"(\"&AD25&\")\",\"(\"&AF25&\")\")","v":"(17)"}]
[]
[]
[null,null,null,null,null,null,null,null,null,null,null,null,null,null,null,null,null,null,null,null,null,null,null,null,null,null,null,null,null,null,null,null,null,null,null,null,null,null,null,null,null,null,null,null,null,null,null,null,null,null,null,null,null,null,null,null,null,null,null,null,null,null,null,null,null,null,null,null,null,null,null,null,null,null,null,null,null,null,null,null,null,null,null,null,null,null,null,null,null,null,null,null,null,null,null,null,null,null,null,null,null,null,null,null,null,null,null,null,null,null,null,null,null,null,null,null,null,null,null,null,null,null,null,null,null,null,null,null,null,null,null,null,null,null,null,null,null,1,null,{"$f":"IF(BD28>=1,AE28,\"\")","v":""},{"$f":"IF(BD28>1,\"(\"&AD28&\")\",\"(\"&AF28&\")\")","v":"()"}]
[null,null,null,null,null,null,null,null,null,null,null,null,null,null,null,null,null,null,null,null,null,null,null,null,null,null,null,null,null,null,null,null,null,null,null,null,null,null,null,null,null,null,null,null,null,null,null,null,null,null,null,null,null,null,null,null,null,null,null,null,null,null,null,null,null,null,null,null,null,null,null,null,null,null,null,null,null,null,null,null,null,null,null,null,null,null,null,null,null,null,null,null,null,null,null,null,null,null,null,null,null,null,null,null,null,null,null,null,null,null,null,null,null,null,null,null,null,null,null,null,null,null,null,null,null,null,null,null,null,null,null,null,null,null,null,null,null,3,null,"","()"]
[null,null,null,null,null,null,null,null,null,null,null,null,null,null,null,null,null,null,null,null,null,null,null,null,null,null,null,null,null,null,null,null,null,null,null,null,null,null,null,null,null,null,null,null,null,null,null,null,null,null,null,null,null,null,null,null,null,null,null,null,null,null,null,null,null,null,null,null,null,null,null,null,null,null,null,null,null,null,null,null,null,null,null,null,null,null,null,null,null,null,null,null,null,null,null,null,null,null,null,null,null,null,null,null,null,null,null,null,null,null,null,null,null,null,null,null,null,null,null,null,null,null,null,null,null,null,null,null,null,null,null,null,null,null,null,null,null,4,null,"","()"]
[null,null,null,null,null,null,null,null,null,null,null,null,null,null,null,null,null,null,null,null,null,null,null,null,null,null,null,null,null,null,null,null,null,null,null,null,null,null,null,null,null,null,null,null,null,null,null,null,null,null,null,null,null,null,null,null,null,null,null,null,null,null,null,null,null,null,null,null,null,null,null,null,null,null,null,null,null,null,null,null,null,null,null,null,null,null,null,null,null,null,null,null,null,null,null,null,null,null,null,null,null,null,null,null,null,null,null,null,null,null,null,null,null,null,null,null,null,null,null,null,null,null,null,null,null,null,null,null,null,null,null,null,null,null,null,null,null,5,null,"","()"]
[null,null,null,null,null,null,null,null,null,null,null,null,null,null,null,null,null,null,null,null,null,null,null,null,null,null,null,null,null,null,null,null,null,null,null,null,null,null,null,null,null,null,null,null,null,null,null,null,null,null,null,null,null,null,null,null,null,null,null,null,null,null,null,null,null,null,null,null,null,null,null,null,null,null,null,null,null,null,null,null,null,null,null,null,null,null,null,null,null,null,null,null,null,null,null,null,null,null,null,null,null,null,null,null,null,null,null,null,null,null,null,null,null,null,null,null,null,null,null,null,null,null,null,null,null,null,null,null,null,null,null,null,null,null,null,null,null,6,null,"","()"]
[null,null,null,null,null,null,null,null,null,null,null,null,null,null,null,null,null,null,null,null,null,null,null,null,null,null,null,null,null,null,null,null,null,null,null,null,null,null,null,null,null,null,null,null,null,null,null,null,null,null,null,null,null,null,null,null,null,null,null,null,null,null,null,null,null,null,null,null,null,null,null,null,null,null,null,null,null,null,null,null,null,null,null,null,null,null,null,null,null,null,null,null,null,null,null,null,null,null,null,null,null,null,null,null,null,null,null,null,null,null,null,null,null,null,null,null,null,null,null,null,null,null,null,null,null,null,null,null,null,null,null,null,null,null,null,null,null,7,null,"","()"]
[null,null,null,null,null,null,null,null,null,null,null,null,null,null,null,null,null,null,null,null,null,null,null,null,null,null,null,null,null,null,null,null,null,null,null,null,null,null,null,null,null,null,null,null,null,null,null,null,null,null,null,null,null,null,null,null,null,null,null,null,null,null,null,null,null,null,null,null,null,null,null,null,null,null,null,null,null,null,null,null,null,null,null,null,null,null,null,null,null,null,null,null,null,null,null,null,null,null,null,null,null,null,null,null,null,null,null,null,null,null,null,null,null,null,null,null,null,null,null,null,null,null,null,null,null,null,null,null,null,null,null,null,null,null,null,null,null,8,null,"","()"]
[null,null,null,null,null,null,null,null,null,null,null,null,null,null,null,null,null,null,null,null,null,null,null,null,null,null,null,null,null,null,null,null,null,null,null,null,null,null,null,null,null,null,null,null,null,null,null,null,null,null,null,null,null,null,null,null,null,null,null,null,null,null,null,null,null,null,null,null,null,null,null,null,null,null,null,null,null,null,null,null,null,null,null,null,null,null,null,null,null,null,null,null,null,null,null,null,null,null,null,null,null,null,null,null,null,null,null,null,null,null,null,null,null,null,null,null,null,null,null,null,null,null,null,null,null,null,null,null,null,null,null,null,null,null,null,null,null,9,null,"","()"]
[null,null,null,null,null,null,null,null,null,null,null,null,null,null,null,null,null,null,null,null,null,null,null,null,null,null,null,null,null,null,null,null,null,null,null,null,null,null,null,null,null,null,null,null,null,null,null,null,null,null,null,null,null,null,null,null,null,null,null,null,null,null,null,null,null,null,null,null,null,null,null,null,null,null,null,null,null,null,null,null,null,null,null,null,null,null,null,null,null,null,null,null,null,null,null,null,null,null,null,null,null,null,null,null,null,null,null,null,null,null,null,null,null,null,null,null,null,null,null,null,null,null,null,null,null,null,null,null,null,null,null,null,null,null,null,null,null,10,null,"","()"]
[null,null,null,null,null,null,null,null,null,null,null,null,null,null,null,null,null,null,null,null,null,null,null,null,null,null,null,null,null,null,null,null,null,null,null,null,null,null,null,null,null,null,null,null,null,null,null,null,null,null,null,null,null,null,null,null,null,null,null,null,null,null,null,null,null,null,null,null,null,null,null,null,null,null,null,null,null,null,null,null,null,null,null,null,null,null,null,null,null,null,null,null,null,null,null,null,null,null,null,null,null,null,null,null,null,null,null,null,null,null,null,null,null,null,null,null,null,null,null,null,null,null,null,null,null,null,null,null,null,null,null,null,null,null,null,null,null,11,null,"","()"]
[null,null,null,null,null,null,null,null,null,null,null,null,null,null,null,null,null,null,null,null,null,null,null,null,null,null,null,null,null,null,null,null,null,null,null,null,null,null,null,null,null,null,null,null,null,null,null,null,null,null,null,null,null,null,null,null,null,null,null,null,null,null,null,null,null,null,null,null,null,null,null,null,null,null,null,null,null,null,null,null,null,null,null,null,null,null,null,null,null,null,null,null,null,null,null,null,null,null,null,null,null,null,null,null,null,null,null,null,null,null,null,null,null,null,null,null,null,null,null,null,null,null,null,null,null,null,null,null,null,null,null,null,null,null,null,null,null,12,null,"","()"]
[null,null,null,null,null,null,null,null,null,null,null,null,null,null,null,null,null,null,null,null,null,null,null,null,null,null,null,null,null,null,null,null,null,null,null,null,null,null,null,null,null,null,null,null,null,null,null,null,null,null,null,null,null,null,null,null,null,null,null,null,null,null,null,null,null,null,null,null,null,null,null,null,null,null,null,null,null,null,null,null,null,null,null,null,null,null,null,null,null,null,null,null,null,null,null,null,null,null,null,null,null,null,null,null,null,null,null,null,null,null,null,null,null,null,null,null,null,null,null,null,null,null,null,null,null,null,null,null,null,null,null,null,null,null,null,null,null,13,null,"","()"]
[null,null,null,null,null,null,null,null,null,null,null,null,null,null,null,null,null,null,null,null,null,null,null,null,null,null,null,null,null,null,null,null,null,null,null,null,null,null,null,null,null,null,null,null,null,null,null,null,null,null,null,null,null,null,null,null,null,null,null,null,null,null,null,null,null,null,null,null,null,null,null,null,null,null,null,null,null,null,null,null,null,null,null,null,null,null,null,null,null,null,null,null,null,null,null,null,null,null,null,null,null,null,null,null,null,null,null,null,null,null,null,null,null,null,null,null,null,null,null,null,null,null,null,null,null,null,null,null,null,null,null,null,null,null,null,null,null,14,null,{"$f":"IF(BD40>=1,AE40,14)","v":14},"()"]
[null,null,null,null,null,null,null,null,null,null,null,null,null,null,null,null,null,null,null,null,null,null,null,null,null,null,null,null,null,null,null,null,null,null,null,null,null,null,null,null,null,null,null,null,null,null,null,null,null,null,null,null,null,null,null,null,null,null,null,null,null,null,null,null,null,null,null,null,null,null,null,null,null,null,null,null,null,null,null,null,null,null,null,null,null,null,null,null,null,null,null,null,null,null,null,null,null,null,null,null,null,null,null,null,null,null,null,null,null,null,null,null,null,null,null,null,null,null,null,null,null,null,null,null,null,null,null,null,null,null,null,null,null,null,null,null,null,15,null,{"$f":"IF(BD41>=1,AE41,\"\")","v":""},"()"]
[null,null,null,null,null,null,null,null,null,null,null,null,null,null,null,null,null,null,null,null,null,null,null,null,null,null,null,null,null,null,null,null,null,null,null,null,null,null,null,null,null,null,null,null,null,null,null,null,null,null,null,null,null,null,null,null,null,null,null,null,null,null,null,null,null,null,null,null,null,null,null,null,null,null,null,null,null,null,null,null,null,null,null,null,null,null,null,null,null,null,null,null,null,null,null,null,null,null,null,null,null,null,null,null,null,null,null,null,null,null,null,null,null,null,null,null,null,null,null,null,null,null,null,null,null,null,null,null,null,null,null,null,null,null,null,null,null,16,null,{"$f":"IF(BD42>=1,AE42,\"\")","v":""},"()"]
[null,null,null,null,null,null,null,null,null,null,null,null,null,null,null,null,null,null,null,null,null,null,null,null,null,null,null,null,null,null,null,null,null,null,null,null,null,null,null,null,null,null,null,null,null,null,null,null,null,null,null,null,null,null,null,null,null,null,null,null,null,null,null,null,null,null,null,null,null,null,null,null,null,null,null,null,null,null,null,null,null,null,null,null,null,null,null,null,null,null,null,null,null,null,null,null,null,null,null,null,null,null,null,null,null,null,null,null,null,null,null,null,null,null,null,null,null,null,null,null,null,null,null,null,null,null,null,null,null,null,null,null,null,null,null,null,null,2,null,{"$f":"IF(BD43>=1,AE43,\"\")","v":""},"()"]
[null,null,null,null,null,null,null,null,null,null,null,null,null,null,null,null,null,null,null,null,null,null,null,null,null,null,null,null,null,null,null,null,null,null,null,null,null,null,null,null,null,null,null,null,null,null,null,null,null,null,null,null,null,null,null,null,null,null,null,null,null,null,null,null,null,null,null,null,null,null,null,null,null,null,null,null,null,null,null,null,null,null,null,null,null,null,null,null,null,null,null,null,null,null,null,null,null,null,null,null,null,null,null,null,null,null,null,null,null,null,null,null,null,null,null,null,null,null,null,null,null,null,null,null,null,null,null,null,null,null,null,null,null,null,null,null,null,17,null,{"$f":"IF(BD44>=1,AE44,\"\")","v":""},{"$f":"IF(BD44>2,\"(\"&AD44&\")\",\"(\"&AF44&\")\")","v":"()"}]
[null,null,null,null,null,null,null,null,null,null,null,null,null,null,null,null,null,null,null,null,null,null,null,null,null,null,null,null,null,null,null,null,null,null,null,null,null,null,null,null,null,null,null,null,null,null,null,null,null,null,null,null,null,null,null,null,null,null,null,null,null,null,null,null,null,null,null,null,null,null,null,null,null,null,null,null,null,null,null,null,null,null,null,null,null,null,null,null,null,null,null,null,null,null,null,null,null,null,null,null,null,null,null,null,null,null,null,null,null,null,null,null,null,null,null,null,null,null,null,null,null,null,null,null,null,null,null,null,null,null,null,null,null,null,null,null,null,18,null,18,{"$f":"IF(BD45>1,\"(\"&AD45&\")\",\"(\"&AF45&\")\")","v":"()"}]
[null,null,null,null,null,null,null,null,null,null,null,null,null,null,null,null,null,null,null,null,null,null,null,null,null,null,null,null,null,null,null,null,null,null,null,null,null,null,null,null,null,null,null,null,null,null,null,null,null,null,null,null,null,null,null,null,null,null,null,null,null,null,null,null,null,null,null,null,null,null,null,null,null,null,null,null,null,null,null,null,null,null,null,null,null,null,null,null,null,null,null,null,null,null,null,null,null,null,null,null,null,null,null,null,null,null,null,null,null,null,null,null,null,null,null,null,null,null,null,null,null,null,null,null,null,null,null,null,null,null,null,null,null,null,null,null,null,19,null,19,{"$f":"IF(BD46>1,\"(\"&AD46&\")\",\"(\"&AF46&\")\")","v":"()"}]
[null,null,null,null,null,null,null,null,null,null,null,null,null,null,null,null,null,null,null,null,null,null,null,null,null,null,null,null,null,null,null,null,null,null,null,null,null,null,null,null,null,null,null,null,null,null,null,null,null,null,null,null,null,null,null,null,null,null,null,null,null,null,null,null,null,null,null,null,null,null,null,null,null,null,null,null,null,null,null,null,null,null,null,null,null,null,null,null,null,null,null,null,null,null,null,null,null,null,null,null,null,null,null,null,null,null,null,null,null,null,null,null,null,null,null,null,null,null,null,null,null,null,null,null,null,null,null,null,null,null,null,null,null,null,null,null,null,20,null,20,{"$f":"IF(BD47>1,\"(\"&AD47&\")\",\"(\"&AF47&\")\")","v":"()"}]

{"sheet":"Seriespelsranking","index":3,"n_rows":123,"n_cols":136,"rows_kept":123,"cut":false,"hidden":false,"merged":[]}
[null,"Svenska Hästskokastarförbundets Seriespelsranking"]
[null,"2018_2019"]
[null,"SLUTSTÄLLNING"]
["Plac.","Kastare ","Klubb","Ranking-snitt ",null,"Antal serie-resultat","Total-poäng serie-resultat",null,"Antal vunna dubblar","Antal förlorade dubblar","Antal vunna singlar","Antal förlorade singlar","Antal vunna matcher i %","Inskrivning resultat",null,null,null,null,null,null,null,null,null,null,null,null,null,null,null,null,null,null,null,null,null,null,null,null,null,null,null,null,null,null,null,null,null,null,null,null,null,null,null,null,null,null,null,null,null,null,null,null,null,null,null,null,null,null,"Uträkning   för","statistik vunna resp.","förlorade ","dubblar och singlar."]
[{"$f":"IF(H5=\"x\",DU5&EF5,DU5&EE5)","v":"1(1)"},"Kent Sundahl","Carlskrona",{"$f":"IF(F5>0.5,(G5/F5),0)","v":206.80555555555554},null,{"$f":"COUNT(N5:BO5)","v":36},{"$f":"SUM(N5:BO5)","v":7445},null,{"$f":"COUNTIF(BQ5:DR5,2)","v":0},{"$f":"COUNTIF(BQ5:DR5,-2)","v":0},{"$f":"COUNTIF(BQ5:DR5,1)","v":0},{"$f":"COUNTIF(BQ5:DR5,-1)","v":0},{"$f":"IF(F5>0,(I5+K5)/(F5),0)","v":0},245,223,198,266,278,141,209,231,243,158,180,289,246,212,232,287,224,154,154,245,234,131,166,139,195,191,152,247,147,214,218,184,194,159,281,178,null,null,null,null,null,null,null,null,null,null,null,null,null,null,null,null,null,null,null,null,null,null,null,null,null,null,null,null,null,null,null,null,null,null,null,null,null,null,null,null,null,null,null,null,null,null,null,null,null,null,null,null,null,null,null,null,null,null,null,null,null,null,null,null,null,null,null,null,null,null,null,null,null,null,1,{"$f":"IF(AND(D5=D4,D5=D3,D5=D2,D5=D1),ROW(1:1),IF(AND(D5=D4,D5=D3,D5=D2),ROW(1:1),IF(AND(D5=D4,D5=D3),ROW(1:1),IF(D5=D4,ROW(1:1),IF(D5>1,ROW(1:1),\"-\")))))","v":1},{"$f":"IF(DX5=1,ROW(1:1),\"-\")","v":1},null,1,null,null,null,11,null,{"$f":"IF(DX5=1,DU5,IF(DX5=\"\",DU5,\"\"))","v":1},{"$f":"IF(DX5=1,\"(\"&DT5&\")\",\"(\"&DV5&\")\")","v":"(1)"},"(-)"]
[{"$f":"IF(H6=\"x\",DU6&EF6,DU6&EE6)","v":"2(2)"},"Tobias Gneupel","Sibbamåla",205.17500000000001,null,40,8207,null,0,0,0,0,0,226,188,234,275,163,211,190,273,220,250,259,189,124,231,202,213,199,236,189,230,229,178,180,209,215,232,182,176,234,140,198,193,245,206,227,201,151,157,160,192,null,null,null,null,null,null,null,null,null,null,null,null,null,null,null,null,null,null,null,null,null,null,null,null,null,null,null,null,null,null,null,null,null,null,null,null,null,null,null,null,null,null,null,null,null,null,null,null,null,null,null,null,null,null,null,null,null,null,null,null,null,null,null,null,null,null,null,null,null,null,2,{"$f":"IF(AND(D6=D5,D6=D4,D6=D3,D6=D2),ROW(1:1),IF(AND(D6=D5,D6=D4,D6=D3),ROW(1:1),IF(AND(D6=D5,D6=D4),ROW(1:1),IF(D6=D5,ROW(1:1),IF(D6>1,ROW(2:2),\"-\")))))","v":2},2,null,1,null,null,null,16,null,2,"(2)","(-)"]
["3(3)","Sandor Bodi","Växjö",196.28947368421052,null,38,7459,null,0,0,0,0,0,200,168,196,217,193,212,232,267,143,184,236,246,127,226,162,144,153,211,180,170,236,153,112,181,175,207,199,245,118,226,207,118,224,231,227,252,223,258,null,null,null,null,null,null,null,null,null,null,null,null,null,null,null,null,null,null,null,null,null,null,null,null,null,null,null,null,null,null,null,null,null,null,null,null,null,null,null,null,null,null,null,null,null,null,null,null,null,null,null,null,null,null,null,null,null,null,null,null,null,null,null,null,null,null,null,null,null,null,null,null,3,{"$f":"IF(AND(D7=D6,D7=D5,D7=D4,D7=D3),ROW(1:1),IF(AND(D7=D6,D7=D5,D7=D4),ROW(1:1),IF(AND(D7=D6,D7=D5),ROW(1:1),IF(D7=D6,ROW(2:2),IF(D7>1,ROW(3:3),\"-\")))))","v":3},3,null,1,null,null,null,20,null,3,"(3)","(-)"]
["4(4)","Ingvar Eriksson","Carlskrona",186.26315789473685,null,38,7078,null,0,0,0,0,0,140,257,165,228,190,207,226,204,207,107,189,205,207,142,214,201,208,217,173,172,219,172,112,156,174,229,220,196,73,205,219,159,203,191,146,181,148,216,null,null,null,null,null,null,null,null,null,null,null,null,null,null,null,null,null,null,null,null,null,null,null,null,null,null,null,null,null,null,null,null,null,null,null,null,null,null,null,null,null,null,null,null,null,null,null,null,null,null,null,null,null,null,null,null,null,null,null,null,null,null,null,null,null,null,null,null,null,null,null,null,4,{"$f":"IF(AND(D8=D7,D8=D6,D8=D5),ROW(1:1),IF(AND(D8=D7,D8=D6),ROW(2:2),IF(D8=D7,ROW(3:3),IF(D8>1,ROW(4:4),\"-\"))))","v":4},4,null,1,null,null,null,4,null,4,"(4)","(-)"]
["5(5)","Olle Ottosson","Dynapac",185.72222222222223,null,18,3343,null,0,0,0,0,0,213,151,230,237,226,194,218,130,168,164,197,162,150,164,207,230,164,138,null,null,null,null,null,null,null,null,null,null,null,null,null,null,null,null,null,null,null,null,null,null,null,null,null,null,null,null,null,null,null,null,null,null,null,null,null,null,null,null,null,null,null,null,null,null,null,null,null,null,null,null,null,null,null,null,null,null,null,null,null,null,null,null,null,null,null,null,null,null,null,null,null,null,null,null,null,null,null,null,null,null,null,null,null,null,null,null,null,null,null,null,5,{"$f":"IF(D9>1,ROW(5:5),\"-\")","v":5},5,null,1,null,null,null,1,null,5,"(5)","(-)"]
["6(6)","Matz Karlsson","Korpen Åseda",176.38888888888889,null,36,6350,null,0,0,0,0,0,179,172,208,240,95,196,128,241,106,151,195,169,196,149,201,132,155,161,223,241,160,167,147,115,197,165,222,130,206,250,185,176,218,207,146,121,null,null,null,null,null,null,null,null,null,null,null,null,null,null,null,null,null,null,null,null,null,null,null,null,null,null,null,null,null,null,null,null,null,null,null,null,null,null,null,null,null,null,null,null,null,null,null,null,null,null,null,null,null,null,null,null,null,null,null,null,null,null,null,null,null,null,null,null,null,null,null,null,null,null,6,{"$f":"IF(D10=D9,ROW(5:5),IF(D10>1,ROW(6:6),\"-\"))","v":6},6,null,1,null,null,null,2,null,6,"(6)","(-)"]
["7(7)","Gebriela Kostantinos","Korpen Åseda",176.06451612903226,null,31,5458,null,0,0,0,0,0,140,180,193,172,129,130,189,161,179,165,165,228,219,236,187,104,185,199,186,201,159,139,173,137,187,189,182,206,224,151,163,null,null,null,null,null,null,null,null,null,null,null,null,null,null,null,null,null,null,null,null,null,null,null,null,null,null,null,null,null,null,null,null,null,null,null,null,null,null,null,null,null,null,null,null,null,null,null,null,null,null,null,null,null,null,null,null,null,null,null,null,null,null,null,null,null,null,null,null,null,null,null,null,null,null,null,null,null,null,null,7,{"$f":"IF(AND(D11=D10,D11=D9,D11=D8,D11=D7),ROW(3:3),IF(AND(D11=D10,D11=D9,D11=D8),ROW(4:4),IF(AND(D11=D10,D11=D9),ROW(5:5),IF(D11=D10,ROW(6:6),IF(D11>1,ROW(7:7),\"-\")))))","v":7},7,null,1,null,null,null,5,null,7,"(7)","(-)"]
["8(8)","Gert Karlsson","Korpen Åseda",174.66666666666666,null,24,4192,null,0,0,0,0,0,245,200,211,181,182,258,196,120,136,136,185,190,121,165,129,192,134,177,134,155,174,202,195,174,null,null,null,null,null,null,null,null,null,null,null,null,null,null,null,null,null,null,null,null,null,null,null,null,null,null,null,null,null,null,null,null,null,null,null,null,null,null,null,null,null,null,null,null,null,null,null,null,null,null,null,null,null,null,null,null,null,null,null,null,null,null,null,null,null,null,null,null,null,null,null,null,null,null,null,null,null,null,null,null,null,null,null,null,null,null,8,8,8,null,1,null,null,null,6,null,8,"(8)","(-)"]
["9(9)","Johan Johansson","Tingsryd",168.17142857142858,null,35,5886,null,0,0,0,0,0,145,109,139,190,161,246,184,209,202,182,209,142,196,190,123,143,119,229,229,174,142,135,186,158,216,229,128,184,148,144,130,119,155,172,119,null,null,null,null,null,null,null,null,null,null,null,null,null,null,null,null,null,null,null,null,null,null,null,null,null,null,null,null,null,null,null,null,null,null,null,null,null,null,null,null,null,null,null,null,null,null,null,null,null,null,null,null,null,null,null,null,null,null,null,null,null,null,null,null,null,null,null,null,null,null,null,null,null,null,null,9,9,9,null,1,null,null,null,8,null,9,"(9)","(-)"]
["10(10)","Armin Sisic","Värends Hsk",164.22222222222223,null,18,2956,null,0,0,0,0,0,115,154,155,181,169,100,158,152,236,239,179,149,163,142,166,198,150,150,null,null,null,null,null,null,null,null,null,null,null,null,null,null,null,null,null,null,null,null,null,null,null,null,null,null,null,null,null,null,null,null,null,null,null,null,null,null,null,null,null,null,null,null,null,null,null,null,null,null,null,null,null,null,null,null,null,null,null,null,null,null,null,null,null,null,null,null,null,null,null,null,null,null,null,null,null,null,null,null,null,null,null,null,null,null,null,null,null,null,null,null,10,10,10,null,1,null,null,null,12,null,10,"(10)","(-)"]
["11(11)","Jom Jem","Växjö Hsk",160.16666666666666,null,30,4805,null,0,0,0,0,0,146,182,145,127,183,113,108,131,170,127,193,170,144,170,158,133,212,196,105,138,219,190,159,177,136,196,196,147,199,135,null,null,null,null,null,null,null,null,null,null,null,null,null,null,null,null,null,null,null,null,null,null,null,null,null,null,null,null,null,null,null,null,null,null,null,null,null,null,null,null,null,null,null,null,null,null,null,null,null,null,null,null,null,null,null,null,null,null,null,null,null,null,null,null,null,null,null,null,null,null,null,null,null,null,null,null,null,null,null,null,11,11,11,null,1,null,null,null,15,null,11,"(11)","(-)"]
["12(12)","Magnus Israelsson","Sibbamåla ",152.92307692307693,null,26,3976,null,0,0,0,0,0,122,84,138,138,131,203,155,153,131,176,186,123,201,167,106,123,119,148,148,172,171,213,141,215,103,209,null,null,null,null,null,null,null,null,null,null,null,null,null,null,null,null,null,null,null,null,null,null,null,null,null,null,null,null,null,null,null,null,null,null,null,null,null,null,null,null,null,null,null,null,null,null,null,null,null,null,null,null,null,null,null,null,null,null,null,null,null,null,null,null,null,null,null,null,null,null,null,null,null,null,null,null,null,null,null,null,null,null,null,null,12,12,12,null,1,null,null,null,21,null,12,"(12)","(-)"]
["13(13)","Mattias Gneupel","Sibbamåla",149.5151515151515,null,33,4934,null,0,0,0,0,0,187,126,133,116,137,131,124,144,134,167,174,214,84,152,106,191,143,165,162,142,120,131,188,170,161,150,132,157,128,242,128,137,158,null,null,null,null,null,null,null,null,null,null,null,null,null,null,null,null,null,null,null,null,null,null,null,null,null,null,null,null,null,null,null,null,null,null,null,null,null,null,null,null,null,null,null,null,null,null,null,null,null,null,null,null,null,null,null,null,null,null,null,null,null,null,null,null,null,null,null,null,null,null,null,null,null,null,null,null,null,13,13,13,null,1,null,null,null,3,null,13,"(13)","(-)"]
["14(14)","Dan Madayang","Korpen Åseda",145.58823529411765,null,17,2475,null,0,0,0,0,0,101,123,187,132,154,157,218,148,161,145,185,181,108,139,147,92,97,null,null,null,null,null,null,null,null,null,null,null,null,null,null,null,null,null,null,null,null,null,null,null,null,null,null,null,null,null,null,null,null,null,null,null,null,null,null,null,null,null,null,null,null,null,null,null,null,null,null,null,null,null,null,null,null,null,null,null,null,null,null,null,null,null,null,null,null,null,null,null,null,null,null,null,null,null,null,null,null,null,null,null,null,null,null,null,null,null,null,null,null,null,14,14,14,null,1,null,null,null,7,null,14,"(14)","(-)"]
["15(21)","Joel Sundahl","Carlskrona",144.80769230769232,null,26,3765,null,0,0,0,0,0,149,147,178,105,139,84,120,103,147,177,173,143,108,156,176,89,113,102,114,147,131,148,251,115,232,218,null,null,null,null,null,null,null,null,null,null,null,null,null,null,null,null,null,null,null,null,null,null,null,null,null,null,null,null,null,null,null,null,null,null,null,null,null,null,null,null,null,null,null,null,null,null,null,null,null,null,null,null,null,null,null,null,null,null,null,null,null,null,null,null,null,null,null,null,null,null,null,null,null,null,null,null,null,null,null,null,null,null,null,null,21,15,15,null,1,null,null,null,17,null,15,"(21)","(-)"]
["16(16)","Lisbeth Nygaard-Karlsson","Tingsryd",141.75675675675674,null,37,5245,null,0,0,0,0,0,117,130,126,152,109,192,159,225,161,185,124,200,206,195,129,128,109,98,108,146,101,130,102,176,105,138,147,165,108,160,89,100,119,148,118,148,192,null,null,null,null,null,null,null,null,null,null,null,null,null,null,null,null,null,null,null,null,null,null,null,null,null,null,null,null,null,null,null,null,null,null,null,null,null,null,null,null,null,null,null,null,null,null,null,null,null,null,null,null,null,null,null,null,null,null,null,null,null,null,null,null,null,null,null,null,null,null,null,null,null,16,16,16,null,1,null,null,null,18,null,16,"(16)","(-)"]
["17(17)","Leif Sundahl","Carlskrona",138.19999999999999,null,5,691,null,0,0,0,0,0,147,101,157,103,183,null,null,null,null,null,null,null,null,null,null,null,null,null,null,null,null,null,null,null,null,null,null,null,null,null,null,null,null,null,null,null,null,null,null,null,null,null,null,null,null,null,null,null,null,null,null,null,null,null,null,null,null,null,null,null,null,null,null,null,null,null,null,null,null,null,null,null,null,null,null,null,null,null,null,null,null,null,null,null,null,null,null,null,null,null,null,null,null,null,null,null,null,null,null,null,null,null,null,null,null,null,null,null,null,null,17,17,17,null,1,null,null,null,24,null,17,"(17)","(-)"]
["18(15)","Mathias Karlberg","Jämjö Hsk",137.48571428571429,null,35,4812,null,0,0,0,0,0,204,125,122,148,86,92,120,124,177,202,83,97,79,197,194,172,111,116,141,141,161,100,108,159,212,152,134,165,162,128,97,118,108,146,131,null,null,null,null,null,null,null,null,null,null,null,null,null,null,null,null,null,null,null,null,null,null,null,null,null,null,null,null,null,null,null,null,null,null,null,null,null,null,null,null,null,null,null,null,null,null,null,null,null,null,null,null,null,null,null,null,null,null,null,null,null,null,null,null,null,null,null,null,null,null,null,null,null,null,null,15,18,18,null,1,null,null,null,9,null,18,"(15)","(-)"]
["19(18)","Maj-Britt Jarl","Växjö",136.66666666666666,null,18,2460,null,0,0,0,0,0,179,115,145,86,92,104,159,113,178,107,122,149,125,217,171,121,116,161,null,null,null,null,null,null,null,null,null,null,null,null,null,null,null,null,null,null,null,null,null,null,null,null,null,null,null,null,null,null,null,null,null,null,null,null,null,null,null,null,null,null,null,null,null,null,null,null,null,null,null,null,null,null,null,null,null,null,null,null,null,null,null,null,null,null,null,null,null,null,null,null,null,null,null,null,null,null,null,null,null,null,null,null,null,null,null,null,null,null,null,null,18,19,19,null,1,null,null,null,10,null,19,"(18)","(-)"]
["20(20)","Tomas Lindahl","Korpen Åseda",135.05882352941177,null,17,2296,null,0,0,0,0,0,112,61,244,128,122,96,138,145,202,125,101,119,150,189,137,126,101,null,null,null,null,null,null,null,null,null,null,null,null,null,null,null,null,null,null,null,null,null,null,null,null,null,null,null,null,null,null,null,null,null,null,null,null,null,null,null,null,null,null,null,null,null,null,null,null,null,null,null,null,null,null,null,null,null,null,null,null,null,null,null,null,null,null,null,null,null,null,null,null,null,null,null,null,null,null,null,null,null,null,null,null,null,null,null,null,null,null,null,null,null,20,20,20,null,1,null,null,null,22,null,20,"(20)","(-)"]
["21(22)","Lennart Karlsson","Tingsryd",132.73684210526315,null,38,5044,null,0,0,0,0,0,124,129,121,113,113,113,185,83,144,166,149,145,101,128,161,139,117,105,105,174,106,195,152,111,139,159,127,97,162,149,84,95,185,209,67,162,127,103,null,null,null,null,null,null,null,null,null,null,null,null,null,null,null,null,null,null,null,null,null,null,null,null,null,null,null,null,null,null,null,null,null,null,null,null,null,null,null,null,null,null,null,null,null,null,null,null,null,null,null,null,null,null,null,null,null,null,null,null,null,null,null,null,null,null,null,null,null,null,null,null,22,21,21,null,1,null,null,null,14,null,21,"(22)","(-)"]
["22(25)","Ewa Malmqvist","Jämjö Hsk",132.6,null,25,3315,null,0,0,0,0,0,151,146,78,177,118,138,141,128,96,146,82,174,162,108,78,108,119,122,129,161,191,129,116,136,181,null,null,null,null,null,null,null,null,null,null,null,null,null,null,null,null,null,null,null,null,null,null,null,null,null,null,null,null,null,null,null,null,null,null,null,null,null,null,null,null,null,null,null,null,null,null,null,null,null,null,null,null,null,null,null,null,null,null,null,null,null,null,null,null,null,null,null,null,null,null,null,null,null,null,null,null,null,null,null,null,null,null,null,null,null,25,22,22,null,1,null,null,null,13,null,22,"(25)","(-)"]
["23(23)","Stefan Olofsson","Korpen Nybro",132.25,null,4,529,null,0,0,0,0,0,106,166,125,132,null,null,null,null,null,null,null,null,null,null,null,null,null,null,null,null,null,null,null,null,null,null,null,null,null,null,null,null,null,null,null,null,null,null,null,null,null,null,null,null,null,null,null,null,null,null,null,null,null,null,null,null,null,null,null,null,null,null,null,null,null,null,null,null,null,null,null,null,null,null,null,null,null,null,null,null,null,null,null,null,null,null,null,null,null,null,null,null,null,null,null,null,null,null,null,null,null,null,null,null,null,null,null,null,null,null,23,23,23,null,1,null,null,null,19,null,23,"(23)","(-)"]
["24(19)","Leo Andersson","Carlskrona",131.32,null,25,3283,null,0,0,0,0,0,83,172,145,152,148,126,132,99,80,98,190,176,122,67,152,137,165,149,160,123,194,135,118,94,66,null,null,null,null,null,null,null,null,null,null,null,null,null,null,null,null,null,null,null,null,null,null,null,null,null,null,null,null,null,null,null,null,null,null,null,null,null,null,null,null,null,null,null,null,null,null,null,null,null,null,null,null,null,null,null,null,null,null,null,null,null,null,null,null,null,null,null,null,null,null,null,null,null,null,null,null,null,null,null,null,null,null,null,null,null,19,{"$f":"IF(AND(D28=D27,D28=D26,D28=D25,D28=D24),ROW(20:20),IF(AND(D28=D27,D28=D26,D28=D25),ROW(21:21),IF(AND(D28=D27,D28=D26),ROW(22:22),IF(D28=D27,ROW(23:23),IF(D28>1,ROW(24:24),\"-\")))))","v":24},{"$f":"IF(DX28=1,ROW(24:24),\"-\")","v":24},null,1,null,null,null,28,null,{"$f":"IF(DX28=1,DU28,IF(DX28=\"\",DU28,\"\"))","v":24},{"$f":"IF(DX28=1,\"(\"&DT28&\")\",\"(\"&DV28&\")\")","v":"(19)"},"(-)"]
["25(24)","Dan Hallstan","Växjö",130.375,null,48,6258,null,0,0,0,0,0,88,107,92,143,78,119,109,115,149,137,135,120,152,163,138,135,125,114,132,164,115,130,138,138,104,135,122,104,89,118,107,115,146,168,151,188,115,149,187,171,175,158,125,115,135,165,76,104,null,null,null,null,null,null,null,null,null,null,null,null,null,null,null,null,null,null,null,null,null,null,null,null,null,null,null,null,null,null,null,null,null,null,null,null,null,null,null,null,null,null,null,null,null,null,null,null,null,null,null,null,null,null,null,null,null,null,null,null,null,null,24,{"$f":"IF(AND(D29=D28,D29=D27,D29=D26,D29=D25),ROW(21:21),IF(AND(D29=D28,D29=D27,D29=D26),ROW(22:22),IF(AND(D29=D28,D29=D27),ROW(23:23),IF(D29=D28,ROW(24:24),IF(D29>1,ROW(25:25),\"-\")))))","v":25},{"$f":"IF(DX29=1,ROW(25:25),\"-\")","v":25},null,1,null,null,null,23,null,{"$f":"IF(DX29=1,DU29,IF(DX29=\"\",DU29,\"\"))","v":25},{"$f":"IF(DX29=1,\"(\"&DT29&\")\",\"(\"&DV29&\")\")","v":"(24)"},"(-)"]
["26(31)","Bo Petersson","Korpen Nybro",126.24,null,25,3156,null,0,0,0,0,0,132,153,100,139,176,196,170,119,89,84,118,54,170,114,109,91,125,121,111,87,151,151,159,102,135,null,null,null,null,null,null,null,null,null,null,null,null,null,null,null,null,null,null,null,null,null,null,null,null,null,null,null,null,null,null,null,null,null,null,null,null,null,null,null,null,null,null,null,null,null,null,null,null,null,null,null,null,null,null,null,null,null,null,null,null,null,null,null,null,null,null,null,null,null,null,null,null,null,null,null,null,null,null,null,null,null,null,null,null,null,31,{"$f":"IF(AND(D30=D29,D30=D28,D30=D27,D30=D26),ROW(22:22),IF(AND(D30=D29,D30=D28,D30=D27),ROW(23:23),IF(AND(D30=D29,D30=D28),ROW(24:24),IF(D30=D29,ROW(25:25),IF(D30>1,ROW(26:26),\"-\")))))","v":26},{"$f":"IF(DX30=1,ROW(26:26),\"-\")","v":26},null,1,null,null,null,25,null,{"$f":"IF(DX30=1,DU30,IF(DX30=\"\",DU30,\"\"))","v":26},{"$f":"IF(DX30=1,\"(\"&DT30&\")\",\"(\"&DV30&\")\")","v":"(31)"},"(-)"]
["27(27)","Christer Lööv","Värends Hsk",125,null,2,250,null,0,0,0,0,0,115,135,null,null,null,null,null,null,null,null,null,null,null,null,null,null,null,null,null,null,null,null,null,null,null,null,null,null,null,null,null,null,null,null,null,null,null,null,null,null,null,null,null,null,null,null,null,null,null,null,null,null,null,null,null,null,null,null,null,null,null,null,null,null,null,null,null,null,null,null,null,null,null,null,null,null,null,null,null,null,null,null,null,null,null,null,null,null,null,null,null,null,null,null,null,null,null,null,null,null,null,null,null,null,null,null,null,null,null,null,27,{"$f":"IF(AND(D31=D30,D31=D29,D31=D28,D31=D27),ROW(23:23),IF(AND(D31=D30,D31=D29,D31=D28),ROW(24:24),IF(AND(D31=D30,D31=D29),ROW(25:25),IF(D31=D30,ROW(26:26),IF(D31>1,ROW(27:27),\"-\")))))","v":27},{"$f":"IF(DX31=1,ROW(27:27),\"-\")","v":27},null,1,null,null,null,26,null,{"$f":"IF(DX31=1,DU31,IF(DX31=\"\",DU31,\"\"))","v":27},{"$f":"IF(DX31=1,\"(\"&DT31&\")\",\"(\"&DV31&\")\")","v":"(27)"},"(-)"]
["28(28)","Hans Johansson","Tingsryd",124.37142857142857,null,35,4353,null,0,0,0,0,0,103,110,86,139,136,120,169,88,75,95,136,120,114,194,165,183,125,169,165,98,104,115,112,150,146,190,102,142,114,126,99,133,88,47,95,null,null,null,null,null,null,null,null,null,null,null,null,null,null,null,null,null,null,null,null,null,null,null,null,null,null,null,null,null,null,null,null,null,null,null,null,null,null,null,null,null,null,null,null,null,null,null,null,null,null,null,null,null,null,null,null,null,null,null,null,null,null,null,null,null,null,null,null,null,null,null,null,null,null,null,28,{"$f":"IF(AND(D32=D31,D32=D30,D32=D29,D32=D28),ROW(24:24),IF(AND(D32=D31,D32=D30,D32=D29),ROW(25:25),IF(AND(D32=D31,D32=D30),ROW(26:26),IF(D32=D31,ROW(27:27),IF(D32>1,ROW(28:28),\"-\")))))","v":28},{"$f":"IF(DX32=1,ROW(28:28),\"-\")","v":28},null,1,null,null,null,27,null,{"$f":"IF(DX32=1,DU32,IF(DX32=\"\",DU32,\"\"))","v":28},{"$f":"IF(DX32=1,\"(\"&DT32&\")\",\"(\"&DV32&\")\")","v":"(28)"},"(-)"]
["29(29)","Bengt Andersson","Växjö",123.5,null,26,3211,null,0,0,0,0,0,117,104,117,119,115,93,112,139,189,155,124,109,122,117,79,141,123,124,75,120,138,105,122,159,102,191,null,null,null,null,null,null,null,null,null,null,null,null,null,null,null,null,null,null,null,null,null,null,null,null,null,null,null,null,null,null,null,null,null,null,null,null,null,null,null,null,null,null,null,null,null,null,null,null,null,null,null,null,null,null,null,null,null,null,null,null,null,null,null,null,null,null,null,null,null,null,null,null,null,null,null,null,null,null,null,null,null,null,null,null,29,29,29,null,1,null,null,null,29,null,29,"(29)","(-)"]
["30(30)","Maire Johansson","Växjö",123.25641025641026,null,39,4807,null,0,0,0,0,0,136,158,116,120,99,213,140,87,126,99,119,136,105,108,137,128,171,100,96,117,113,90,98,112,82,117,109,127,121,164,110,109,95,140,84,153,155,163,154,null,null,null,null,null,null,null,null,null,null,null,null,null,null,null,null,null,null,null,null,null,null,null,null,null,null,null,null,null,null,null,null,null,null,null,null,null,null,null,null,null,null,null,null,null,null,null,null,null,null,null,null,null,null,null,null,null,null,null,null,null,null,null,null,null,null,null,null,null,null,null,30,30,30,null,1,null,null,null,30,null,30,"(30)","(-)"]
["31(32)","Peter Edlund","Dynapac",122.42857142857143,null,7,857,null,0,0,0,0,0,105,144,111,68,90,177,162,null,null,null,null,null,null,null,null,null,null,null,null,null,null,null,null,null,null,null,null,null,null,null,null,null,null,null,null,null,null,null,null,null,null,null,null,null,null,null,null,null,null,null,null,null,null,null,null,null,null,null,null,null,null,null,null,null,null,null,null,null,null,null,null,null,null,null,null,null,null,null,null,null,null,null,null,null,null,null,null,null,null,null,null,null,null,null,null,null,null,null,null,null,null,null,null,null,null,null,null,null,null,null,32,31,31,null,1,null,null,null,31,null,31,"(32)","(-)"]
["32(33)","Bengt Fabbeke","Dynapac",122.30769230769231,null,13,1590,null,0,0,0,0,0,84,137,137,97,129,118,162,104,135,103,182,87,115,null,null,null,null,null,null,null,null,null,null,null,null,null,null,null,null,null,null,null,null,null,null,null,null,null,null,null,null,null,null,null,null,null,null,null,null,null,null,null,null,null,null,null,null,null,null,null,null,null,null,null,null,null,null,null,null,null,null,null,null,null,null,null,null,null,null,null,null,null,null,null,null,null,null,null,null,null,null,null,null,null,null,null,null,null,null,null,null,null,null,null,null,null,null,null,null,null,33,32,32,null,1,null,null,null,32,null,32,"(33)","(-)"]
["33(26)","Lasse Brincner","Värends Hsk",{"$f":"IF(F37>0.5,(G37/F37),0)","v":121.5925925925926},null,{"$f":"COUNT(N37:BO37)","v":27},{"$f":"SUM(N37:BO37)","v":3283},null,{"$f":"COUNTIF(BQ37:DR37,2)","v":0},{"$f":"COUNTIF(BQ37:DR37,-2)","v":0},{"$f":"COUNTIF(BQ37:DR37,1)","v":0},{"$f":"COUNTIF(BQ37:DR37,-1)","v":0},{"$f":"IF(F37>0,(I37+K37)/(F37),0)","v":0},124,169,155,126,160,79,130,158,165,104,191,191,91,94,148,84,94,135,98,128,137,116,91,94,91,69,61,null,null,null,null,null,null,null,null,null,null,null,null,null,null,null,null,null,null,null,null,null,null,null,null,null,null,null,null,null,null,null,null,null,null,null,null,null,null,null,null,null,null,null,null,null,null,null,null,null,null,null,null,null,null,null,null,null,null,null,null,null,null,null,null,null,null,null,null,null,null,null,null,null,null,null,null,null,null,null,null,null,null,null,26,33,{"$f":"IF(DX37=1,ROW(33:33),\"-\")","v":33},null,1,null,null,null,33,null,{"$f":"IF(DX37=1,DU37,IF(DX37=\"\",DU37,\"\"))","v":33},{"$f":"IF(DX37=1,\"(\"&DT37&\")\",\"(\"&DV37&\")\")","v":"(26)"},"(-)"]
["34(34)","Göran Olofsson","Korpen Nybro",121.12121212121212,null,33,3997,null,0,0,0,0,0,155,136,113,105,102,135,119,135,125,128,115,112,158,191,106,119,147,124,87,110,145,75,135,147,114,82,73,89,82,127,84,125,197,null,null,null,null,null,null,null,null,null,null,null,null,null,null,null,null,null,null,null,null,null,null,null,null,null,null,null,null,null,null,null,null,null,null,null,null,null,null,null,null,null,null,null,null,null,null,null,null,null,null,null,null,null,null,null,null,null,null,null,null,null,null,null,null,null,null,null,null,null,null,null,null,null,null,null,null,null,34,34,34,null,1,null,null,null,34,null,34,"(34)","(-)"]
["35(36)","Ingegerd Pettersson","Lanternan",119.95833333333333,null,24,2879,null,0,0,0,0,0,106,114,102,143,130,112,190,95,108,124,67,115,130,141,128,75,102,138,145,135,93,111,142,133,null,null,null,null,null,null,null,null,null,null,null,null,null,null,null,null,null,null,null,null,null,null,null,null,null,null,null,null,null,null,null,null,null,null,null,null,null,null,null,null,null,null,null,null,null,null,null,null,null,null,null,null,null,null,null,null,null,null,null,null,null,null,null,null,null,null,null,null,null,null,null,null,null,null,null,null,null,null,null,null,null,null,null,null,null,null,36,35,35,null,1,null,null,null,35,null,35,"(36)","(-)"]
["36(35)","Roy Dahlén","Dynapac",119.48387096774194,null,31,3704,null,0,0,0,0,0,115,158,205,134,103,120,144,91,153,138,83,113,154,104,125,98,133,137,154,182,195,87,85,66,64,107,96,90,93,96,81,null,null,null,null,null,null,null,null,null,null,null,null,null,null,null,null,null,null,null,null,null,null,null,null,null,null,null,null,null,null,null,null,null,null,null,null,null,null,null,null,null,null,null,null,null,null,null,null,null,null,null,null,null,null,null,null,null,null,null,null,null,null,null,null,null,null,null,null,null,null,null,null,null,null,null,null,null,null,null,35,36,36,null,1,null,null,null,36,null,36,"(35)","(-)"]
["37(37)","Peter Olsson","Dynapac ",118.94736842105263,null,38,4520,null,0,0,0,0,0,78,113,138,122,72,64,103,70,93,137,99,167,104,110,170,157,162,102,100,128,131,95,62,89,88,81,91,172,208,216,129,116,41,106,119,171,195,121,null,null,null,null,null,null,null,null,null,null,null,null,null,null,null,null,null,null,null,null,null,null,null,null,null,null,null,null,null,null,null,null,null,null,null,null,null,null,null,null,null,null,null,null,null,null,null,null,null,null,null,null,null,null,null,null,null,null,null,null,null,null,null,null,null,null,null,null,null,null,null,null,37,37,37,null,1,null,null,null,37,null,37,"(37)","(-)"]
["38(38)","Marianne Karlsson","Jämjö Hsk",116.71875,null,32,3735,null,0,0,0,0,0,120,104,112,91,97,117,88,148,137,110,97,85,117,163,82,157,127,163,100,94,124,75,93,133,136,110,149,152,129,120,79,126,null,null,null,null,null,null,null,null,null,null,null,null,null,null,null,null,null,null,null,null,null,null,null,null,null,null,null,null,null,null,null,null,null,null,null,null,null,null,null,null,null,null,null,null,null,null,null,null,null,null,null,null,null,null,null,null,null,null,null,null,null,null,null,null,null,null,null,null,null,null,null,null,null,null,null,null,null,null,38,38,38,null,1,null,null,null,38,null,38,"(38)","(-)"]
["39(54)","Sandra Widlund","Växjö Hsk",116.12,null,25,2903,null,0,0,0,0,0,94,44,43,87,85,83,88,133,116,118,135,92,116,132,109,113,113,200,132,252,152,161,159,79,67,null,null,null,null,null,null,null,null,null,null,null,null,null,null,null,null,null,null,null,null,null,null,null,null,null,null,null,null,null,null,null,null,null,null,null,null,null,null,null,null,null,null,null,null,null,null,null,null,null,null,null,null,null,null,null,null,null,null,null,null,null,null,null,null,null,null,null,null,null,null,null,null,null,null,null,null,null,null,null,null,null,null,null,null,null,54,{"$f":"IF(AND(D43=D42,D43=D41,D43=D40,D43=D39),ROW(35:35),IF(AND(D43=D42,D43=D41,D43=D40),ROW(36:36),IF(AND(D43=D42,D43=D41),ROW(37:37),IF(D43=D42,ROW(38:38),IF(D43>1,ROW(39:39),\"-\")))))","v":39},39,null,1,null,null,null,39,null,39,"(54)","(-)"]
["40(40)","Janne Johansson","Tingsryd",115,null,6,690,null,0,0,0,0,0,91,110,141,52,114,182,null,null,null,null,null,null,null,null,null,null,null,null,null,null,null,null,null,null,null,null,null,null,null,null,null,null,null,null,null,null,null,null,null,null,null,null,null,null,null,null,null,null,null,null,null,null,null,null,null,null,null,null,null,null,null,null,null,null,null,null,null,null,null,null,null,null,null,null,null,null,null,null,null,null,null,null,null,null,null,null,null,null,null,null,null,null,null,null,null,null,null,null,null,null,null,null,null,null,null,null,null,null,null,null,40,40,40,null,1,null,null,null,40,null,40,"(40)","(-)"]
["40(40)","Sebastian Israelsson","Sibbamåla",115,null,31,3565,null,0,0,0,0,0,139,112,105,113,118,101,169,117,71,91,139,111,115,127,74,84,64,197,113,125,129,100,70,133,92,164,152,191,109,80,60,null,null,null,null,null,null,null,null,null,null,null,null,null,null,null,null,null,null,null,null,null,null,null,null,null,null,null,null,null,null,null,null,null,null,null,null,null,null,null,null,null,null,null,null,null,null,null,null,null,null,null,null,null,null,null,null,null,null,null,null,null,null,null,null,null,null,null,null,null,null,null,null,null,null,null,null,null,null,null,40,40,41,null,1,null,null,null,41,null,40,"(40)","(-)"]
["42(43)","Berndt Petersson","Lanternan",114.23333333333333,null,30,3427,null,0,0,0,0,0,128,126,146,137,108,89,147,134,156,80,148,149,136,174,87,92,87,103,91,82,85,160,99,61,85,77,103,88,139,130,null,null,null,null,null,null,null,null,null,null,null,null,null,null,null,null,null,null,null,null,null,null,null,null,null,null,null,null,null,null,null,null,null,null,null,null,null,null,null,null,null,null,null,null,null,null,null,null,null,null,null,null,null,null,null,null,null,null,null,null,null,null,null,null,null,null,null,null,null,null,null,null,null,null,null,null,null,null,null,null,43,42,42,null,1,null,null,null,42,null,42,"(43)","(-)"]
["43(44)","Ronny Lundberg","Lanternan",113.57142857142857,null,21,2385,null,0,0,0,0,0,115,114,95,109,34,92,121,119,125,122,163,78,144,96,105,100,125,166,100,143,119,null,null,null,null,null,null,null,null,null,null,null,null,null,null,null,null,null,null,null,null,null,null,null,null,null,null,null,null,null,null,null,null,null,null,null,null,null,null,null,null,null,null,null,null,null,null,null,null,null,null,null,null,null,null,null,null,null,null,null,null,null,null,null,null,null,null,null,null,null,null,null,null,null,null,null,null,null,null,null,null,null,null,null,null,null,null,null,null,null,44,43,43,null,1,null,null,null,43,null,43,"(44)","(-)"]
["44(39)","Christian Balsiger","Värends Hsk",113.32142857142857,null,28,3173,null,0,0,0,0,0,93,100,97,119,97,119,80,87,151,105,116,68,86,143,139,113,101,168,150,118,126,105,90,171,152,104,67,108,null,null,null,null,null,null,null,null,null,null,null,null,null,null,null,null,null,null,null,null,null,null,null,null,null,null,null,null,null,null,null,null,null,null,null,null,null,null,null,null,null,null,null,null,null,null,null,null,null,null,null,null,null,null,null,null,null,null,null,null,null,null,null,null,null,null,null,null,null,null,null,null,null,null,null,null,null,null,null,null,null,null,39,44,44,null,1,null,null,null,52,null,44,"(39)","(-)"]
["45(46)","Göran Mårtensson","Jämjö Hsk",113.2,null,20,2264,null,0,0,0,0,0,116,152,147,178,106,178,109,97,160,108,95,147,94,122,112,90,68,46,71,68,null,null,null,null,null,null,null,null,null,null,null,null,null,null,null,null,null,null,null,null,null,null,null,null,null,null,null,null,null,null,null,null,null,null,null,null,null,null,null,null,null,null,null,null,null,null,null,null,null,null,null,null,null,null,null,null,null,null,null,null,null,null,null,null,null,null,null,null,null,null,null,null,null,null,null,null,null,null,null,null,null,null,null,null,null,null,null,null,null,null,46,45,45,null,1,null,null,null,44,null,45,"(46)","(-)"]
["46(48)","Jan Petersson","Lanternan",111.10526315789474,null,19,2111,null,0,0,0,0,0,95,108,147,103,130,65,162,192,72,84,106,114,112,89,79,96,155,120,82,null,null,null,null,null,null,null,null,null,null,null,null,null,null,null,null,null,null,null,null,null,null,null,null,null,null,null,null,null,null,null,null,null,null,null,null,null,null,null,null,null,null,null,null,null,null,null,null,null,null,null,null,null,null,null,null,null,null,null,null,null,null,null,null,null,null,null,null,null,null,null,null,null,null,null,null,null,null,null,null,null,null,null,null,null,null,null,null,null,null,null,48,46,46,null,1,null,null,null,45,null,46,"(48)","(-)"]
["47(49)","Stephan Gervide","Korpen Nybro",110.81818181818181,null,22,2438,null,0,0,0,0,0,114,107,90,133,132,115,142,117,96,81,85,67,91,72,117,154,136,115,129,150,85,110,null,null,null,null,null,null,null,null,null,null,null,null,null,null,null,null,null,null,null,null,null,null,null,null,null,null,null,null,null,null,null,null,null,null,null,null,null,null,null,null,null,null,null,null,null,null,null,null,null,null,null,null,null,null,null,null,null,null,null,null,null,null,null,null,null,null,null,null,null,null,null,null,null,null,null,null,null,null,null,null,null,null,null,null,null,null,null,null,49,47,47,null,1,null,null,null,46,null,47,"(49)","(-)"]
["48(47)","Carina Gneupel","Sibbamåla",110.75,null,8,886,null,0,0,0,0,0,99,74,76,121,144,94,97,181,null,null,null,null,null,null,null,null,null,null,null,null,null,null,null,null,null,null,null,null,null,null,null,null,null,null,null,null,null,null,null,null,null,null,null,null,null,null,null,null,null,null,null,null,null,null,null,null,null,null,null,null,null,null,null,null,null,null,null,null,null,null,null,null,null,null,null,null,null,null,null,null,null,null,null,null,null,null,null,null,null,null,null,null,null,null,null,null,null,null,null,null,null,null,null,null,null,null,null,null,null,null,47,48,48,null,1,null,null,null,47,null,48,"(47)","(-)"]
["49(50)","Bela Bodi","Växjö",110.63636363636364,null,22,2434,null,0,0,0,0,0,58,150,74,106,92,150,114,125,139,159,113,71,120,84,71,145,141,108,133,140,63,78,null,null,null,null,null,null,null,null,null,null,null,null,null,null,null,null,null,null,null,null,null,null,null,null,null,null,null,null,null,null,null,null,null,null,null,null,null,null,null,null,null,null,null,null,null,null,null,null,null,null,null,null,null,null,null,null,null,null,null,null,null,null,null,null,null,null,null,null,null,null,null,null,null,null,null,null,null,null,null,null,null,null,null,null,null,null,null,null,50,49,49,null,1,null,null,null,48,null,49,"(50)","(-)"]
["50(45)","Marcus Karlsson","Jämjö Hsk",110.21428571428571,null,28,3086,null,0,0,0,0,0,118,126,103,78,108,97,161,81,141,105,102,103,84,70,121,144,145,159,98,107,130,111,113,104,77,74,94,132,null,null,null,null,null,null,null,null,null,null,null,null,null,null,null,null,null,null,null,null,null,null,null,null,null,null,null,null,null,null,null,null,null,null,null,null,null,null,null,null,null,null,null,null,null,null,null,null,null,null,null,null,null,null,null,null,null,null,null,null,null,null,null,null,null,null,null,null,null,null,null,null,null,null,null,null,null,null,null,null,null,null,45,50,50,null,1,null,null,null,49,null,50,"(45)","(-)"]
["51(52)","Yamolada Damnoegam","Växjö Hsk",109.16666666666667,null,18,1965,null,0,0,0,0,0,48,93,72,104,146,94,132,94,137,115,112,151,113,53,108,94,135,164,null,null,null,null,null,null,null,null,null,null,null,null,null,null,null,null,null,null,null,null,null,null,null,null,null,null,null,null,null,null,null,null,null,null,null,null,null,null,null,null,null,null,null,null,null,null,null,null,null,null,null,null,null,null,null,null,null,null,null,null,null,null,null,null,null,null,null,null,null,null,null,null,null,null,null,null,null,null,null,null,null,null,null,null,null,null,null,null,null,null,null,null,52,51,51,null,1,null,null,null,50,null,51,"(52)","(-)"]
["52(51)","Christer Blomgren","Lanternan",108.7,null,20,2174,null,0,0,0,0,0,105,127,88,86,98,78,145,68,101,144,115,101,122,116,74,129,131,116,119,111,null,null,null,null,null,null,null,null,null,null,null,null,null,null,null,null,null,null,null,null,null,null,null,null,null,null,null,null,null,null,null,null,null,null,null,null,null,null,null,null,null,null,null,null,null,null,null,null,null,null,null,null,null,null,null,null,null,null,null,null,null,null,null,null,null,null,null,null,null,null,null,null,null,null,null,null,null,null,null,null,null,null,null,null,null,null,null,null,null,null,51,52,52,null,1,null,null,null,51,null,52,"(51)","(-)"]
["53(55)","Gilbert Pettersson","Lanternan",105.88888888888889,null,9,953,null,0,0,0,0,0,131,99,110,113,80,108,131,112,69,null,null,null,null,null,null,null,null,null,null,null,null,null,null,null,null,null,null,null,null,null,null,null,null,null,null,null,null,null,null,null,null,null,null,null,null,null,null,null,null,null,null,null,null,null,null,null,null,null,null,null,null,null,null,null,null,null,null,null,null,null,null,null,null,null,null,null,null,null,null,null,null,null,null,null,null,null,null,null,null,null,null,null,null,null,null,null,null,null,null,null,null,null,null,null,null,null,null,null,null,null,55,53,53,null,1,null,null,null,53,null,53,"(55)","(-)"]
["54(56)","Lasse Nilsson","Värends Hsk",105.70370370370371,null,27,2854,null,0,0,0,0,0,70,103,61,78,84,94,140,110,129,99,89,140,85,99,111,129,152,108,156,158,75,49,111,88,79,132,125,null,null,null,null,null,null,null,null,null,null,null,null,null,null,null,null,null,null,null,null,null,null,null,null,null,null,null,null,null,null,null,null,null,null,null,null,null,null,null,null,null,null,null,null,null,null,null,null,null,null,null,null,null,null,null,null,null,null,null,null,null,null,null,null,null,null,null,null,null,null,null,null,null,null,null,null,null,null,null,null,null,null,null,56,54,54,null,1,null,null,null,109,null,54,"(56)","(-)"]
["55(42)","Irene Petersson","Lanternan",104,null,10,1040,null,0,0,0,0,0,119,109,99,128,118,123,99,78,109,58,null,null,null,null,null,null,null,null,null,null,null,null,null,null,null,null,null,null,null,null,null,null,null,null,null,null,null,null,null,null,null,null,null,null,null,null,null,null,null,null,null,null,null,null,null,null,null,null,null,null,null,null,null,null,null,null,null,null,null,null,null,null,null,null,null,null,null,null,null,null,null,null,null,null,null,null,null,null,null,null,null,null,null,null,null,null,null,null,null,null,null,null,null,null,null,null,null,null,null,null,42,55,55,null,1,null,null,null,54,null,55,"(42)","(-)"]
["56(58)","Nathalie Sundahl","Carlskrona",103.41176470588235,null,17,1758,null,0,0,0,0,0,86,71,91,83,155,103,74,96,123,83,122,117,76,102,157,94,125,null,null,null,null,null,null,null,null,null,null,null,null,null,null,null,null,null,null,null,null,null,null,null,null,null,null,null,null,null,null,null,null,null,null,null,null,null,null,null,null,null,null,null,null,null,null,null,null,null,null,null,null,null,null,null,null,null,null,null,null,null,null,null,null,null,null,null,null,null,null,null,null,null,null,null,null,null,null,null,null,null,null,null,null,null,null,null,null,null,null,null,null,null,58,56,56,null,1,null,null,null,55,null,56,"(58)","(-)"]
["57(53)","Alf Svensson","Korpen Åseda",102.46153846153847,null,13,1332,null,0,0,0,0,0,95,109,95,77,156,122,119,77,118,103,70,92,99,null,null,null,null,null,null,null,null,null,null,null,null,null,null,null,null,null,null,null,null,null,null,null,null,null,null,null,null,null,null,null,null,null,null,null,null,null,null,null,null,null,null,null,null,null,null,null,null,null,null,null,null,null,null,null,null,null,null,null,null,null,null,null,null,null,null,null,null,null,null,null,null,null,null,null,null,null,null,null,null,null,null,null,null,null,null,null,null,null,null,null,null,null,null,null,null,null,53,57,57,null,1,null,null,null,56,null,57,"(53)","(-)"]
["58(57)","Martin Antic","Värends Hsk",102.23333333333333,null,30,3067,null,0,0,0,0,0,113,166,65,125,162,88,122,68,92,98,136,157,71,36,98,93,85,111,120,74,115,61,67,139,88,146,99,110,106,56,null,null,null,null,null,null,null,null,null,null,null,null,null,null,null,null,null,null,null,null,null,null,null,null,null,null,null,null,null,null,null,null,null,null,null,null,null,null,null,null,null,null,null,null,null,null,null,null,null,null,null,null,null,null,null,null,null,null,null,null,null,null,null,null,null,null,null,null,null,null,null,null,null,null,null,null,null,null,null,null,57,58,58,null,1,null,null,null,57,null,58,"(57)","(-)"]
["59(59)","Anders Karlsson","Värends Hsk",102,null,20,2040,null,0,0,0,0,0,143,145,103,66,70,93,108,88,69,104,80,111,87,90,150,105,112,116,121,79,null,null,null,null,null,null,null,null,null,null,null,null,null,null,null,null,null,null,null,null,null,null,null,null,null,null,null,null,null,null,null,null,null,null,null,null,null,null,null,null,null,null,null,null,null,null,null,null,null,null,null,null,null,null,null,null,null,null,null,null,null,null,null,null,null,null,null,null,null,null,null,null,null,null,null,null,null,null,null,null,null,null,null,null,null,null,null,null,null,null,59,59,59,null,1,null,null,null,58,null,59,"(59)","(-)"]
["60(62)","Åke Bergkvist","Tingsryd",101.84615384615384,null,26,2648,null,0,0,0,0,0,118,84,67,123,94,118,97,79,87,92,85,92,112,94,104,107,85,81,109,94,136,120,95,136,126,113,null,null,null,null,null,null,null,null,null,null,null,null,null,null,null,null,null,null,null,null,null,null,null,null,null,null,null,null,null,null,null,null,null,null,null,null,null,null,null,null,null,null,null,null,null,null,null,null,null,null,null,null,null,null,null,null,null,null,null,null,null,null,null,null,null,null,null,null,null,null,null,null,null,null,null,null,null,null,null,null,null,null,null,null,62,60,60,null,1,null,null,null,59,null,60,"(62)","(-)"]
["61(60)","Ulrika Rydell","Värends Hsk",101.3125,null,16,1621,null,0,0,0,0,0,102,182,47,62,99,105,101,107,93,70,182,159,92,92,49,79,null,null,null,null,null,null,null,null,null,null,null,null,null,null,null,null,null,null,null,null,null,null,null,null,null,null,null,null,null,null,null,null,null,null,null,null,null,null,null,null,null,null,null,null,null,null,null,null,null,null,null,null,null,null,null,null,null,null,null,null,null,null,null,null,null,null,null,null,null,null,null,null,null,null,null,null,null,null,null,null,null,null,null,null,null,null,null,null,null,null,null,null,null,null,60,61,61,null,1,null,null,null,60,null,61,"(60)","(-)"]
[{"$f":"IF(H66=\"x\",DU66&\" (\"&EF66&\")\",DU66&\" (\"&DT66&\")\")","v":"62 (61)"},"Klara Larsson","Värends Hsk",100.23529411764706,null,17,1704,null,0,0,0,0,0,132,113,85,57,105,76,109,122,72,108,91,112,111,122,113,78,98,null,null,null,null,null,null,null,null,null,null,null,null,null,null,null,null,null,null,null,null,null,null,null,null,null,null,null,null,null,null,null,null,null,null,null,null,null,null,null,null,null,null,null,null,null,null,null,null,null,null,null,null,null,null,null,null,null,null,null,null,null,null,null,null,null,null,null,null,null,null,null,null,null,null,null,null,null,null,null,null,null,null,null,null,null,null,null,null,null,null,null,null,null,61,62,62,null,1,null,null,null,61,null,62,"(61)","(-)"]
["63 (64)","Anders Johansson","Dynapac ",98.63636363636364,null,33,3255,null,0,0,0,0,0,43,77,126,65,96,116,121,98,73,64,125,102,86,94,136,53,123,125,114,122,110,132,86,122,119,129,145,37,79,117,120,71,29,null,null,null,null,null,null,null,null,null,null,null,null,null,null,null,null,null,null,null,null,null,null,null,null,null,null,null,null,null,null,null,null,null,null,null,null,null,null,null,null,null,null,null,null,null,null,null,null,null,null,null,null,null,null,null,null,null,null,null,null,null,null,null,null,null,null,null,null,null,null,null,null,null,null,null,null,null,64,63,63,null,1,null,null,null,62,null,63,"(64)","(-)"]
["64 (66)","Nils-Åke Hansson","Korpen Nybro",97,null,9,873,null,0,0,0,0,0,60,84,111,118,109,119,85,92,95,null,null,null,null,null,null,null,null,null,null,null,null,null,null,null,null,null,null,null,null,null,null,null,null,null,null,null,null,null,null,null,null,null,null,null,null,null,null,null,null,null,null,null,null,null,null,null,null,null,null,null,null,null,null,null,null,null,null,null,null,null,null,null,null,null,null,null,null,null,null,null,null,null,null,null,null,null,null,null,null,null,null,null,null,null,null,null,null,null,null,null,null,null,null,null,null,null,null,null,null,null,66,64,64,null,1,null,null,null,64,null,64,"(66)","(-)"]
["65 (67)","Bertil Westergren","Växjö ",{"$f":"IF(F69>0.5,(G69/F69),0)","v":96.5},null,{"$f":"COUNT(N69:BO69)","v":4},{"$f":"SUM(N69:BO69)","v":386},null,{"$f":"COUNTIF(BQ69:DR69,2)","v":0},{"$f":"COUNTIF(BQ69:DR69,-2)","v":0},{"$f":"COUNTIF(BQ69:DR69,1)","v":0},{"$f":"COUNTIF(BQ69:DR69,-1)","v":0},{"$f":"IF(F69>0,(I69+K69)/(F69),0)","v":0},132,102,56,96,null,null,null,null,null,null,null,null,null,null,null,null,null,null,null,null,null,null,null,null,null,null,null,null,null,null,null,null,null,null,null,null,null,null,null,null,null,null,null,null,null,null,null,null,null,null,null,null,null,null,null,null,null,null,null,null,null,null,null,null,null,null,null,null,null,null,null,null,null,null,null,null,null,null,null,null,null,null,null,null,null,null,null,null,null,null,null,null,null,null,null,null,null,null,null,null,null,null,null,null,null,null,null,null,null,null,67,65,{"$f":"IF(DX69=1,ROW(65:65),\"-\")","v":65},null,1,null,null,null,65,null,{"$f":"IF(DX69=1,DU69,IF(DX69=\"\",DU69,\"\"))","v":65},{"$f":"IF(DX69=1,\"(\"&DT69&\")\",\"(\"&DV69&\")\")","v":"(67)"},"(-)"]
[{"$f":"IF(H70=\"x\",DU70&\" (\"&EF70&\")\",DU70&\" (\"&DT70&\")\")","v":"66 (63)"},"Bernt Olsson","Jämjö Hsk",96.481481481481481,null,27,2605,null,0,0,0,0,0,81,101,84,88,109,105,69,79,87,59,96,121,157,107,77,67,97,80,69,105,125,154,115,98,142,80,53,null,null,null,null,null,null,null,null,null,null,null,null,null,null,null,null,null,null,null,null,null,null,null,null,null,null,null,null,null,null,null,null,null,null,null,null,null,null,null,null,null,null,null,null,null,null,null,null,null,null,null,null,null,null,null,null,null,null,null,null,null,null,null,null,null,null,null,null,null,null,null,null,null,null,null,null,null,null,null,null,null,null,null,63,66,66,null,1,null,null,null,66,null,66,"(63)","(-)"]
["67 (72)","Kjell Åkesson","Lanternan",95.478260869565219,null,23,2196,null,0,0,0,0,0,70,90,70,134,95,103,75,55,88,68,66,64,90,85,97,142,142,112,125,107,126,95,97,null,null,null,null,null,null,null,null,null,null,null,null,null,null,null,null,null,null,null,null,null,null,null,null,null,null,null,null,null,null,null,null,null,null,null,null,null,null,null,null,null,null,null,null,null,null,null,null,null,null,null,null,null,null,null,null,null,null,null,null,null,null,null,null,null,null,null,null,null,null,null,null,null,null,null,null,null,null,null,null,null,null,null,null,null,null,null,72,67,67,null,1,null,null,null,67,null,67,"(72)","(-)"]
["68 (68)","Lennart Karlsson","Lanternan",95,null,4,380,null,0,0,0,0,0,104,90,105,81,null,null,null,null,null,null,null,null,null,null,null,null,null,null,null,null,null,null,null,null,null,null,null,null,null,null,null,null,null,null,null,null,null,null,null,null,null,null,null,null,null,null,null,null,null,null,null,null,null,null,null,null,null,null,null,null,null,null,null,null,null,null,null,null,null,null,null,null,null,null,null,null,null,null,null,null,null,null,null,null,null,null,null,null,null,null,null,null,null,null,null,null,null,null,null,null,null,null,null,null,null,null,null,null,null,null,68,68,68,null,1,null,null,null,68,null,68,"(68)","(-)"]
["69 (69)","Stefan Tollstam","Dynapac",94.2,null,5,471,null,0,0,0,0,0,97,101,85,98,90,null,null,null,null,null,null,null,null,null,null,null,null,null,null,null,null,null,null,null,null,null,null,null,null,null,null,null,null,null,null,null,null,null,null,null,null,null,null,null,null,null,null,null,null,null,null,null,null,null,null,null,null,null,null,null,null,null,null,null,null,null,null,null,null,null,null,null,null,null,null,null,null,null,null,null,null,null,null,null,null,null,null,null,null,null,null,null,null,null,null,null,null,null,null,null,null,null,null,null,null,null,null,null,null,null,69,69,69,null,1,null,null,null,69,null,69,"(69)","(-)"]
["70 (70)","Kjell Rydh","Korpen Nybro",93.086956521739125,null,23,2141,null,0,0,0,0,0,90,182,90,109,74,85,88,98,129,118,81,81,120,66,68,94,45,67,81,84,78,82,131,null,null,null,null,null,null,null,null,null,null,null,null,null,null,null,null,null,null,null,null,null,null,null,null,null,null,null,null,null,null,null,null,null,null,null,null,null,null,null,null,null,null,null,null,null,null,null,null,null,null,null,null,null,null,null,null,null,null,null,null,null,null,null,null,null,null,null,null,null,null,null,null,null,null,null,null,null,null,null,null,null,null,null,null,null,null,null,70,70,70,null,1,null,null,null,70,null,70,"(70)","(-)"]
["71 (71)","Julius Gneupel","Sibbamåla",92.75,null,4,371,null,0,0,0,0,0,87,88,61,135,null,null,null,null,null,null,null,null,null,null,null,null,null,null,null,null,null,null,null,null,null,null,null,null,null,null,null,null,null,null,null,null,null,null,null,null,null,null,null,null,null,null,null,null,null,null,null,null,null,null,null,null,null,null,null,null,null,null,null,null,null,null,null,null,null,null,null,null,null,null,null,null,null,null,null,null,null,null,null,null,null,null,null,null,null,null,null,null,null,null,null,null,null,null,null,null,null,null,null,null,null,null,null,null,null,null,71,{"$f":"IF(AND(D75=D74,D75=D73,D75=D72,D75=D71),ROW(67:67),IF(AND(D75=D74,D75=D73,D75=D72),ROW(68:68),IF(AND(D75=D74,D75=D73),ROW(69:69),IF(D75=D74,ROW(70:70),IF(D75>1,ROW(71:71),\"-\")))))","v":71},71,null,1,null,null,null,114,null,71,"(71)","(-)"]
["72 (65)","Inge Skoglöw","Jämjö Hsk",92.684210526315795,null,19,1761,null,0,0,0,0,0,101,110,92,160,104,72,27,99,134,86,96,80,101,99,83,59,104,91,63,null,null,null,null,null,null,null,null,null,null,null,null,null,null,null,null,null,null,null,null,null,null,null,null,null,null,null,null,null,null,null,null,null,null,null,null,null,null,null,null,null,null,null,null,null,null,null,null,null,null,null,null,null,null,null,null,null,null,null,null,null,null,null,null,null,null,null,null,null,null,null,null,null,null,null,null,null,null,null,null,null,null,null,null,null,null,null,null,null,null,null,65,72,72,null,1,null,null,null,71,null,72,"(65)","(-)"]
["73 ((-))","Roland Andreasson","Lanternan",91.6,null,5,458,"x",0,0,0,0,0,122,65,112,81,78,null,null,null,null,null,null,null,null,null,null,null,null,null,null,null,null,null,null,null,null,null,null,null,null,null,null,null,null,null,null,null,null,null,null,null,null,null,null,null,null,null,null,null,null,null,null,null,null,null,null,null,null,null,null,null,null,null,null,null,null,null,null,null,null,null,null,null,null,null,null,null,null,null,null,null,null,null,null,null,null,null,null,null,null,null,null,null,null,null,null,null,null,null,null,null,null,null,null,null,null,null,null,null,null,null,94,73,73,null,1,null,null,null,111,null,73,"(94)","(-)"]
["74 (73)","Lisbeth Blihd","Lanternan",90.4375,null,32,2894,null,0,0,0,0,0,108,77,52,45,68,133,89,59,125,81,98,111,137,118,88,78,81,69,37,96,99,89,91,101,157,85,95,84,81,85,79,98,null,null,null,null,null,null,null,null,null,null,null,null,null,null,null,null,null,null,null,null,null,null,null,null,null,null,null,null,null,null,null,null,null,null,null,null,null,null,null,null,null,null,null,null,null,null,null,null,null,null,null,null,null,null,null,null,null,null,null,null,null,null,null,null,null,null,null,null,null,null,null,null,null,null,null,null,null,null,73,74,74,null,1,null,null,null,72,null,74,"(73)","(-)"]
["75 (74)","Sune Olsson","Korpen Nybro",89.8,null,5,449,null,0,0,0,0,0,90,79,63,150,67,null,null,null,null,null,null,null,null,null,null,null,null,null,null,null,null,null,null,null,null,null,null,null,null,null,null,null,null,null,null,null,null,null,null,null,null,null,null,null,null,null,null,null,null,null,null,null,null,null,null,null,null,null,null,null,null,null,null,null,null,null,null,null,null,null,null,null,null,null,null,null,null,null,null,null,null,null,null,null,null,null,null,null,null,null,null,null,null,null,null,null,null,null,null,null,null,null,null,null,null,null,null,null,null,null,74,75,75,null,1,null,null,null,73,null,75,"(74)","(-)"]
["76 (75)","Linnea Gneupel","Sibbamåla",89.5,null,2,179,null,0,0,0,0,0,98,81,null,null,null,null,null,null,null,null,null,null,null,null,null,null,null,null,null,null,null,null,null,null,null,null,null,null,null,null,null,null,null,null,null,null,null,null,null,null,null,null,null,null,null,null,null,null,null,null,null,null,null,null,null,null,null,null,null,null,null,null,null,null,null,null,null,null,null,null,null,null,null,null,null,null,null,null,null,null,null,null,null,null,null,null,null,null,null,null,null,null,null,null,null,null,null,null,null,null,null,null,null,null,null,null,null,null,null,null,75,76,76,null,1,null,null,null,74,null,76,"(75)","(-)"]
["76 (75)","Mattias Olsson","Dynapac",89.5,null,4,358,null,0,0,0,0,0,43,84,103,128,null,null,null,null,null,null,null,null,null,null,null,null,null,null,null,null,null,null,null,null,null,null,null,null,null,null,null,null,null,null,null,null,null,null,null,null,null,null,null,null,null,null,null,null,null,null,null,null,null,null,null,null,null,null,null,null,null,null,null,null,null,null,null,null,null,null,null,null,null,null,null,null,null,null,null,null,null,null,null,null,null,null,null,null,null,null,null,null,null,null,null,null,null,null,null,null,null,null,null,null,null,null,null,null,null,null,75,76,77,null,1,null,null,null,75,null,76,"(75)","(-)"]
["78 (77)","Christer Eriksson","Korpen Nybro",87.75,null,4,351,null,0,0,0,0,0,105,92,96,58,null,null,null,null,null,null,null,null,null,null,null,null,null,null,null,null,null,null,null,null,null,null,null,null,null,null,null,null,null,null,null,null,null,null,null,null,null,null,null,null,null,null,null,null,null,null,null,null,null,null,null,null,null,null,null,null,null,null,null,null,null,null,null,null,null,null,null,null,null,null,null,null,null,null,null,null,null,null,null,null,null,null,null,null,null,null,null,null,null,null,null,null,null,null,null,null,null,null,null,null,null,null,null,null,null,null,77,78,78,null,1,null,null,null,76,null,78,"(77)","(-)"]
["79 ((-))","Susanne Simonsson","Lanternan",83.8,null,5,419,"x",0,0,0,0,0,104,88,72,71,84,null,null,null,null,null,null,null,null,null,null,null,null,null,null,null,null,null,null,null,null,null,null,null,null,null,null,null,null,null,null,null,null,null,null,null,null,null,null,null,null,null,null,null,null,null,null,null,null,null,null,null,null,null,null,null,null,null,null,null,null,null,null,null,null,null,null,null,null,null,null,null,null,null,null,null,null,null,null,null,null,null,null,null,null,null,null,null,null,null,null,null,null,null,null,null,null,null,null,null,null,null,null,null,null,null,95,79,79,null,1,null,null,null,77,null,79,"(95)","(-)"]
["80 (78)","Annika K. Milsten","Tingsryd",83.75,null,16,1340,null,0,0,0,0,0,97,122,109,75,42,78,65,88,96,51,53,127,117,54,109,57,null,null,null,null,null,null,null,null,null,null,null,null,null,null,null,null,null,null,null,null,null,null,null,null,null,null,null,null,null,null,null,null,null,null,null,null,null,null,null,null,null,null,null,null,null,null,null,null,null,null,null,null,null,null,null,null,null,null,null,null,null,null,null,null,null,null,null,null,null,null,null,null,null,null,null,null,null,null,null,null,null,null,null,null,null,null,null,null,null,null,null,null,null,null,78,80,80,null,1,null,null,null,78,null,80,"(78)","(-)"]
["81 (80)","Ann-Marie Larsson","Tingsryd",81.15625,null,32,2597,null,0,0,0,0,0,111,55,124,72,72,76,86,99,102,95,58,34,80,94,111,35,73,52,81,120,74,72,71,86,58,64,119,91,44,106,70,112,null,null,null,null,null,null,null,null,null,null,null,null,null,null,null,null,null,null,null,null,null,null,null,null,null,null,null,null,null,null,null,null,null,null,null,null,null,null,null,null,null,null,null,null,null,null,null,null,null,null,null,null,null,null,null,null,null,null,null,null,null,null,null,null,null,null,null,null,null,null,null,null,null,null,null,null,null,null,80,81,81,null,1,null,null,null,79,null,81,"(80)","(-)"]
["82 (82)","Gunnar Lundbeck","Tingsryd",80.400000000000006,null,20,1608,null,0,0,0,0,0,66,126,91,88,69,71,65,79,92,99,45,38,117,106,131,88,24,51,71,91,null,null,null,null,null,null,null,null,null,null,null,null,null,null,null,null,null,null,null,null,null,null,null,null,null,null,null,null,null,null,null,null,null,null,null,null,null,null,null,null,null,null,null,null,null,null,null,null,null,null,null,null,null,null,null,null,null,null,null,null,null,null,null,null,null,null,null,null,null,null,null,null,null,null,null,null,null,null,null,null,null,null,null,null,null,null,null,null,null,null,82,82,82,null,1,null,null,null,80,null,82,"(82)","(-)"]
["83 (84)","Lars-Åke Karlsson","Jämjö Hsk",79.34615384615384,null,26,2063,null,0,0,0,0,0,105,81,105,70,100,81,98,69,99,86,81,37,64,43,80,79,89,41,78,73,139,40,42,76,119,88,null,null,null,null,null,null,null,null,null,null,null,null,null,null,null,null,null,null,null,null,null,null,null,null,null,null,null,null,null,null,null,null,null,null,null,null,null,null,null,null,null,null,null,null,null,null,null,null,null,null,null,null,null,null,null,null,null,null,null,null,null,null,null,null,null,null,null,null,null,null,null,null,null,null,null,null,null,null,null,null,null,null,null,null,84,83,83,null,1,null,null,null,81,null,83,"(84)","(-)"]
["84 (79)","Hanna Karlberg","Jämjö Hsk",78.913043478260875,null,23,1815,null,0,0,0,0,0,52,83,50,67,38,44,111,61,135,81,112,127,104,98,130,78,54,51,71,88,80,67,33,null,null,null,null,null,null,null,null,null,null,null,null,null,null,null,null,null,null,null,null,null,null,null,null,null,null,null,null,null,null,null,null,null,null,null,null,null,null,null,null,null,null,null,null,null,null,null,null,null,null,null,null,null,null,null,null,null,null,null,null,null,null,null,null,null,null,null,null,null,null,null,null,null,null,null,null,null,null,null,null,null,null,null,null,null,null,null,79,84,84,null,1,null,null,null,82,null,84,"(79)","(-)"]
["85 (81)","Daniel Mårtensson","Jämjö Hsk",77.7,null,10,777,null,0,0,0,0,0,109,86,74,51,73,112,58,50,69,95,null,null,null,null,null,null,null,null,null,null,null,null,null,null,null,null,null,null,null,null,null,null,null,null,null,null,null,null,null,null,null,null,null,null,null,null,null,null,null,null,null,null,null,null,null,null,null,null,null,null,null,null,null,null,null,null,null,null,null,null,null,null,null,null,null,null,null,null,null,null,null,null,null,null,null,null,null,null,null,null,null,null,null,null,null,null,null,null,null,null,null,null,null,null,null,null,null,null,null,null,81,85,85,null,1,null,null,null,83,null,85,"(81)","(-)"]
["86 (83)","Eva Åkesson","Lanternan",77.400000000000006,null,25,1935,null,0,0,0,0,0,102,58,49,42,95,75,51,97,44,34,71,57,54,55,44,55,81,86,81,112,158,139,105,125,65,null,null,null,null,null,null,null,null,null,null,null,null,null,null,null,null,null,null,null,null,null,null,null,null,null,null,null,null,null,null,null,null,null,null,null,null,null,null,null,null,null,null,null,null,null,null,null,null,null,null,null,null,null,null,null,null,null,null,null,null,null,null,null,null,null,null,null,null,null,null,null,null,null,null,null,null,null,null,null,null,null,null,null,null,null,83,86,86,null,1,null,null,null,84,null,86,"(83)","(-)"]
["87 (85)","Rolf Johannesson","Värends Hsk",74,null,8,592,null,0,0,0,0,0,94,76,92,57,77,72,71,53,null,null,null,null,null,null,null,null,null,null,null,null,null,null,null,null,null,null,null,null,null,null,null,null,null,null,null,null,null,null,null,null,null,null,null,null,null,null,null,null,null,null,null,null,null,null,null,null,null,null,null,null,null,null,null,null,null,null,null,null,null,null,null,null,null,null,null,null,null,null,null,null,null,null,null,null,null,null,null,null,null,null,null,null,null,null,null,null,null,null,null,null,null,null,null,null,null,null,null,null,null,null,85,87,87,null,1,null,null,null,85,null,87,"(85)","(-)"]
["88 (86)","Thomas Dahl","Växjö",73.92307692307692,null,13,961,null,0,0,0,0,0,64,82,44,87,54,58,105,91,126,59,56,44,91,null,null,null,null,null,null,null,null,null,null,null,null,null,null,null,null,null,null,null,null,null,null,null,null,null,null,null,null,null,null,null,null,null,null,null,null,null,null,null,null,null,null,null,null,null,null,null,null,null,null,null,null,null,null,null,null,null,null,null,null,null,null,null,null,null,null,null,null,null,null,null,null,null,null,null,null,null,null,null,null,null,null,null,null,null,null,null,null,null,null,null,null,null,null,null,null,null,86,88,88,null,1,null,null,null,86,null,88,"(86)","(-)"]
["89 (87)","Karin Gullbrand","Värends Hsk",71.916666666666671,null,12,863,null,0,0,0,0,0,64,73,81,47,98,44,51,61,78,47,100,119,null,null,null,null,null,null,null,null,null,null,null,null,null,null,null,null,null,null,null,null,null,null,null,null,null,null,null,null,null,null,null,null,null,null,null,null,null,null,null,null,null,null,null,null,null,null,null,null,null,null,null,null,null,null,null,null,null,null,null,null,null,null,null,null,null,null,null,null,null,null,null,null,null,null,null,null,null,null,null,null,null,null,null,null,null,null,null,null,null,null,null,null,null,null,null,null,null,null,87,89,89,null,1,null,null,null,87,null,89,"(87)","(-)"]
["90 (88)","Anita Streliny","Tingsryd",71,null,5,355,null,0,0,0,0,0,45,77,82,111,40,null,null,null,null,null,null,null,null,null,null,null,null,null,null,null,null,null,null,null,null,null,null,null,null,null,null,null,null,null,null,null,null,null,null,null,null,null,null,null,null,null,null,null,null,null,null,null,null,null,null,null,null,null,null,null,null,null,null,null,null,null,null,null,null,null,null,null,null,null,null,null,null,null,null,null,null,null,null,null,null,null,null,null,null,null,null,null,null,null,null,null,null,null,null,null,null,null,null,null,null,null,null,null,null,null,88,90,90,null,1,null,null,null,88,null,90,"(88)","(-)"]
["91 (89)","Olle Nilsson","Tingsryd",68.375,null,8,547,null,0,0,0,0,0,70,99,57,71,54,68,41,87,null,null,null,null,null,null,null,null,null,null,null,null,null,null,null,null,null,null,null,null,null,null,null,null,null,null,null,null,null,null,null,null,null,null,null,null,null,null,null,null,null,null,null,null,null,null,null,null,null,null,null,null,null,null,null,null,null,null,null,null,null,null,null,null,null,null,null,null,null,null,null,null,null,null,null,null,null,null,null,null,null,null,null,null,null,null,null,null,null,null,null,null,null,null,null,null,null,null,null,null,null,null,89,91,91,null,1,null,null,null,89,null,91,"(89)","(-)"]
["92 (90)","Leif Danielsson","Korpen Nybro",64.25,null,4,257,null,0,0,0,0,0,71,85,37,64,null,null,null,null,null,null,null,null,null,null,null,null,null,null,null,null,null,null,null,null,null,null,null,null,null,null,null,null,null,null,null,null,null,null,null,null,null,null,null,null,null,null,null,null,null,null,null,null,null,null,null,null,null,null,null,null,null,null,null,null,null,null,null,null,null,null,null,null,null,null,null,null,null,null,null,null,null,null,null,null,null,null,null,null,null,null,null,null,null,null,null,null,null,null,null,null,null,null,null,null,null,null,null,null,null,null,90,92,92,null,1,null,null,null,112,null,92,"(90)","(-)"]
["93 (91)","Arne Blidh","Lanternan",60.84375,null,32,1947,null,0,0,0,0,0,21,100,112,46,58,65,92,76,128,50,39,71,17,33,37,58,97,14,57,54,84,67,67,38,47,38,64,31,73,60,81,72,null,null,null,null,null,null,null,null,null,null,null,null,null,null,null,null,null,null,null,null,null,null,null,null,null,null,null,null,null,null,null,null,null,null,null,null,null,null,null,null,null,null,null,null,null,null,null,null,null,null,null,null,null,null,null,null,null,null,null,null,null,null,null,null,null,null,null,null,null,null,null,null,null,null,null,null,null,null,91,93,93,null,1,null,null,null,90,null,93,"(91)","(-)"]
["94 (92)","Tommy Svensson","Värends Hsk",60,null,15,900,null,0,0,0,0,0,109,55,46,67,66,55,114,53,41,62,27,43,87,32,43,null,null,null,null,null,null,null,null,null,null,null,null,null,null,null,null,null,null,null,null,null,null,null,null,null,null,null,null,null,null,null,null,null,null,null,null,null,null,null,null,null,null,null,null,null,null,null,null,null,null,null,null,null,null,null,null,null,null,null,null,null,null,null,null,null,null,null,null,null,null,null,null,null,null,null,null,null,null,null,null,null,null,null,null,null,null,null,null,null,null,null,null,null,null,null,92,94,94,null,1,null,null,null,91,null,94,"(92)","(-)"]
["95 (93)","Alf Johansson","Värends Hsk",59.28,null,25,1482,null,0,0,0,0,0,35,102,45,79,70,67,58,49,54,34,71,50,21,51,66,9,72,17,111,72,61,35,91,61,101,null,null,null,null,null,null,null,null,null,null,null,null,null,null,null,null,null,null,null,null,null,null,null,null,null,null,null,null,null,null,null,null,null,null,null,null,null,null,null,null,null,null,null,null,null,null,null,null,null,null,null,null,null,null,null,null,null,null,null,null,null,null,null,null,null,null,null,null,null,null,null,null,null,null,null,null,null,null,null,null,null,null,null,null,null,93,95,95,null,1,null,null,null,92,null,95,"(93)","(-)"]
["- (-)","Niklas Berglund","Växjö",0,null,0,0,null,0,0,0,0,0,null,null,null,null,null,null,null,null,null,null,null,null,null,null,null,null,null,null,null,null,null,null,null,null,null,null,null,null,null,null,null,null,null,null,null,null,null,null,null,null,null,null,null,null,null,null,null,null,null,null,null,null,null,null,null,null,null,null,null,null,null,null,null,null,null,null,null,null,null,null,null,null,null,null,null,null,null,null,null,null,null,null,null,null,null,null,null,null,null,null,null,null,null,null,null,null,null,null,null,null,null,null,null,null,null,null,null,null,null,null,"-","-",96,null,1,null,null,null,63,null,"-","(-)","(-)"]
["96 (96)","Kerstin Svensson","Växjö",{"$f":"IF(F101>0.5,(G101/F101),0)","v":0},null,{"$f":"COUNT(N101:BO101)","v":0},{"$f":"SUM(N101:BO101)","v":0},null,{"$f":"COUNTIF(BQ101:DR101,2)","v":0},{"$f":"COUNTIF(BQ101:DR101,-2)","v":0},{"$f":"COUNTIF(BQ101:DR101,1)","v":0},{"$f":"COUNTIF(BQ101:DR101,-1)","v":0},{"$f":"IF(F101>0,(I101+K101)/(F101),0)","v":0},null,null,null,null,null,null,null,null,null,null,null,null,null,null,null,null,null,null,null,null,null,null,null,null,null,null,null,null,null,null,null,null,null,null,null,null,null,null,null,null,null,null,null,null,null,null,null,null,null,null,null,null,null,null,null,null,null,null,null,null,null,null,null,null,null,null,null,null,null,null,null,null,null,null,null,null,null,null,null,null,null,null,null,null,null,null,null,null,null,null,null,null,null,null,null,null,null,null,null,null,null,null,null,null,null,null,null,null,null,null,96,96,{"$f":"IF(DX101=1,ROW(97:97),\"-\")","v":97},null,1,null,null,null,93,null,{"$f":"IF(DX101=1,DU101,IF(DX101=\"\",DU101,\"\"))","v":96},{"$f":"IF(DX101=1,\"(\"&DT101&\")\",\"(\"&DV101&\")\")","v":"(96)"},"(-)"]
["96 (96)","Mats Mårtensson","Jämjö Hsk",0,null,0,0,null,0,0,0,0,0,null,null,null,null,null,null,null,null,null,null,null,null,null,null,null,null,null,null,null,null,null,null,null,null,null,null,null,null,null,null,null,null,null,null,null,null,null,null,null,null,null,null,null,null,null,null,null,null,null,null,null,null,null,null,null,null,null,null,null,null,null,null,null,null,null,null,null,null,null,null,null,null,null,null,null,null,null,null,null,null,null,null,null,null,null,null,null,null,null,null,null,null,null,null,null,null,null,null,null,null,null,null,null,null,null,null,null,null,null,null,96,96,98,null,1,null,null,null,94,null,96,"(96)","(-)"]
["96 (96)","Göran Persson","Dynapac",0,null,0,0,null,0,0,0,0,0,null,null,null,null,null,null,null,null,null,null,null,null,null,null,null,null,null,null,null,null,null,null,null,null,null,null,null,null,null,null,null,null,null,null,null,null,null,null,null,null,null,null,null,null,null,null,null,null,null,null,null,null,null,null,null,null,null,null,null,null,null,null,null,null,null,null,null,null,null,null,null,null,null,null,null,null,null,null,null,null,null,null,null,null,null,null,null,null,null,null,null,null,null,null,null,null,null,null,null,null,null,null,null,null,null,null,null,null,null,null,96,96,99,null,1,null,null,null,95,null,96,"(96)","(-)"]
["96 (96)","Kevin Rydell","Värends Hsk",0,null,0,0,null,0,0,0,0,0,null,null,null,null,null,null,null,null,null,null,null,null,null,null,null,null,null,null,null,null,null,null,null,null,null,null,null,null,null,null,null,null,null,null,null,null,null,null,null,null,null,null,null,null,null,null,null,null,null,null,null,null,null,null,null,null,null,null,null,null,null,null,null,null,null,null,null,null,null,null,null,null,null,null,null,null,null,null,null,null,null,null,null,null,null,null,null,null,null,null,null,null,null,null,null,null,null,null,null,null,null,null,null,null,null,null,null,null,null,null,96,96,100,null,1,null,null,null,96,null,96,"(96)","(-)"]
["97 (97)","Kerstin Magnusson","Växjö ",0,null,0,0,null,0,0,0,0,0,null,null,null,null,null,null,null,null,null,null,null,null,null,null,null,null,null,null,null,null,null,null,null,null,null,null,null,null,null,null,null,null,null,null,null,null,null,null,null,null,null,null,null,null,null,null,null,null,null,null,null,null,null,null,null,null,null,null,null,null,null,null,null,null,null,null,null,null,null,null,null,null,null,null,null,null,null,null,null,null,null,null,null,null,null,null,null,null,null,null,null,null,null,null,null,null,null,null,null,null,null,null,null,null,null,null,null,null,null,null,97,97,101,null,1,null,null,null,97,null,97,"(97)","(-)"]
["98 (98)","Mikael Bodi","Växjö",0,null,0,0,null,0,0,0,0,0,null,null,null,null,null,null,null,null,null,null,null,null,null,null,null,null,null,null,null,null,null,null,null,null,null,null,null,null,null,null,null,null,null,null,null,null,null,null,null,null,null,null,null,null,null,null,null,null,null,null,null,null,null,null,null,null,null,null,null,null,null,null,null,null,null,null,null,null,null,null,null,null,null,null,null,null,null,null,null,null,null,null,null,null,null,null,null,null,null,null,null,null,null,null,null,null,null,null,null,null,null,null,null,null,null,null,null,null,null,null,98,98,102,null,1,null,null,null,98,null,98,"(98)","(-)"]
["99 (99)","Allan Persson","Tingsryd",0,null,0,0,null,0,0,0,0,0,null,null,null,null,null,null,null,null,null,null,null,null,null,null,null,null,null,null,null,null,null,null,null,null,null,null,null,null,null,null,null,null,null,null,null,null,null,null,null,null,null,null,null,null,null,null,null,null,null,null,null,null,null,null,null,null,null,null,null,null,null,null,null,null,null,null,null,null,null,null,null,null,null,null,null,null,null,null,null,null,null,null,null,null,null,null,null,null,null,null,null,null,null,null,null,null,null,null,null,null,null,null,null,null,null,null,null,null,null,null,99,{"$f":"IF(AND(D107=D106,D107=D105,D107=D104,D107=D103),ROW(99:99),IF(AND(D107=D106,D107=D105,D107=D104),ROW(100:100),IF(AND(D107=D106,D107=D105),ROW(101:101),IF(D107=D106,ROW(102:102),IF(D107>1,ROW(103:103),\"-\")))))","v":99},103,null,1,null,null,null,99,null,99,"(99)","(-)"]
["100 (100)","Ulrika Strandahl","Växjö",0,null,0,0,null,0,0,0,0,0,null,null,null,null,null,null,null,null,null,null,null,null,null,null,null,null,null,null,null,null,null,null,null,null,null,null,null,null,null,null,null,null,null,null,null,null,null,null,null,null,null,null,null,null,null,null,null,null,null,null,null,null,null,null,null,null,null,null,null,null,null,null,null,null,null,null,null,null,null,null,null,null,null,null,null,null,null,null,null,null,null,null,null,null,null,null,null,null,null,null,null,null,null,null,null,null,null,null,null,null,null,null,null,null,null,null,null,null,null,null,100,100,104,null,1,null,null,null,100,null,100,"(100)","(-)"]
["101 (101)","Solveig Brincner","Värends Hsk",0,null,0,0,null,0,0,0,0,0,null,null,null,null,null,null,null,null,null,null,null,null,null,null,null,null,null,null,null,null,null,null,null,null,null,null,null,null,null,null,null,null,null,null,null,null,null,null,null,null,null,null,null,null,null,null,null,null,null,null,null,null,null,null,null,null,null,null,null,null,null,null,null,null,null,null,null,null,null,null,null,null,null,null,null,null,null,null,null,null,null,null,null,null,null,null,null,null,null,null,null,null,null,null,null,null,null,null,null,null,null,null,null,null,null,null,null,null,null,null,101,101,105,null,1,null,null,null,101,null,101,"(101)","(-)"]
["102 (102)",null,null,0,null,0,0,null,0,0,0,0,0,null,null,null,null,null,null,null,null,null,null,null,null,null,null,null,null,null,null,null,null,null,null,null,null,null,null,null,null,null,null,null,null,null,null,null,null,null,null,null,null,null,null,null,null,null,null,null,null,null,null,null,null,null,null,null,null,null,null,null,null,null,null,null,null,null,null,null,null,null,null,null,null,null,null,null,null,null,null,null,null,null,null,null,null,null,null,null,null,null,null,null,null,null,null,null,null,null,null,null,null,null,null,null,null,null,null,null,null,null,null,102,102,106,null,1,null,null,null,102,null,102,"(102)","(-)"]
["103 (103)",null,null,0,null,0,0,null,0,0,0,0,0,null,null,null,null,null,null,null,null,null,null,null,null,null,null,null,null,null,null,null,null,null,null,null,null,null,null,null,null,null,null,null,null,null,null,null,null,null,null,null,null,null,null,null,null,null,null,null,null,null,null,null,null,null,null,null,null,null,null,null,null,null,null,null,null,null,null,null,null,null,null,null,null,null,null,null,null,null,null,null,null,null,null,null,null,null,null,null,null,null,null,null,null,null,null,null,null,null,null,null,null,null,null,null,null,null,null,null,null,null,null,103,103,107,null,1,null,null,null,110,null,103,"(103)","(-)"]
["104 (104)",null,null,0,null,0,0,null,0,0,0,0,0,null,null,null,null,null,null,null,null,null,null,null,null,null,null,null,null,null,null,null,null,null,null,null,null,null,null,null,null,null,null,null,null,null,null,null,null,null,null,null,null,null,null,null,null,null,null,null,null,null,null,null,null,null,null,null,null,null,null,null,null,null,null,null,null,null,null,null,null,null,null,null,null,null,null,null,null,null,null,null,null,null,null,null,null,null,null,null,null,null,null,null,null,null,null,null,null,null,null,null,null,null,null,null,null,null,null,null,null,null,null,104,104,108,null,1,null,null,null,103,null,104,"(104)","(-)"]
["105 (105)",null,null,0,null,0,0,null,0,0,0,0,0,null,null,null,null,null,null,null,null,null,null,null,null,null,null,null,null,null,null,null,null,null,null,null,null,null,null,null,null,null,null,null,null,null,null,null,null,null,null,null,null,null,null,null,null,null,null,null,null,null,null,null,null,null,null,null,null,null,null,null,null,null,null,null,null,null,null,null,null,null,null,null,null,null,null,null,null,null,null,null,null,null,null,null,null,null,null,null,null,null,null,null,null,null,null,null,null,null,null,null,null,null,null,null,null,null,null,null,null,null,null,105,105,109,null,1,null,null,null,104,null,105,"(105)","(-)"]
["106 (106)",null,null,0,null,0,0,null,0,0,0,0,0,null,null,null,null,null,null,null,null,null,null,null,null,null,null,null,null,null,null,null,null,null,null,null,null,null,null,null,null,null,null,null,null,null,null,null,null,null,null,null,null,null,null,null,null,null,null,null,null,null,null,null,null,null,null,null,null,null,null,null,null,null,null,null,null,null,null,null,null,null,null,null,null,null,null,null,null,null,null,null,null,null,null,null,null,null,null,null,null,null,null,null,null,null,null,null,null,null,null,null,null,null,null,null,null,null,null,null,null,null,null,106,106,110,null,1,null,null,null,105,null,106,"(106)","(-)"]
["107 (107)",null,null,0,null,0,0,null,0,0,0,0,0,null,null,null,null,null,null,null,null,null,null,null,null,null,null,null,null,null,null,null,null,null,null,null,null,null,null,null,null,null,null,null,null,null,null,null,null,null,null,null,null,null,null,null,null,null,null,null,null,null,null,null,null,null,null,null,null,null,null,null,null,null,null,null,null,null,null,null,null,null,null,null,null,null,null,null,null,null,null,null,null,null,null,null,null,null,null,null,null,null,null,null,null,null,null,null,null,null,null,null,null,null,null,null,null,null,null,null,null,null,null,107,107,111,null,1,null,null,null,106,null,107,"(107)","(-)"]
["108 (108)",null,null,0,null,0,0,null,0,0,0,0,0,null,null,null,null,null,null,null,null,null,null,null,null,null,null,null,null,null,null,null,null,null,null,null,null,null,null,null,null,null,null,null,null,null,null,null,null,null,null,null,null,null,null,null,null,null,null,null,null,null,null,null,null,null,null,null,null,null,null,null,null,null,null,null,null,null,null,null,null,null,null,null,null,null,null,null,null,null,null,null,null,null,null,null,null,null,null,null,null,null,null,null,null,null,null,null,null,null,null,null,null,null,null,null,null,null,null,null,null,null,null,108,108,112,null,1,null,null,null,107,null,108,"(108)","(-)"]
["109 (109)",null,null,0,null,0,0,null,0,0,0,0,0,null,null,null,null,null,null,null,null,null,null,null,null,null,null,null,null,null,null,null,null,null,null,null,null,null,null,null,null,null,null,null,null,null,null,null,null,null,null,null,null,null,null,null,null,null,null,null,null,null,null,null,null,null,null,null,null,null,null,null,null,null,null,null,null,null,null,null,null,null,null,null,null,null,null,null,null,null,null,null,null,null,null,null,null,null,null,null,null,null,null,null,null,null,null,null,null,null,null,null,null,null,null,null,null,null,null,null,null,null,null,109,109,113,null,1,null,null,null,108,null,109,"(109)","(-)"]
["110 (110)",null,null,0,null,0,0,null,0,0,0,0,0,null,null,null,null,null,null,null,null,null,null,null,null,null,null,null,null,null,null,null,null,null,null,null,null,null,null,null,null,null,null,null,null,null,null,null,null,null,null,null,null,null,null,null,null,null,null,null,null,null,null,null,null,null,null,null,null,null,null,null,null,null,null,null,null,null,null,null,null,null,null,null,null,null,null,null,null,null,null,null,null,null,null,null,null,null,null,null,null,null,null,null,null,null,null,null,null,null,null,null,null,null,null,null,null,null,null,null,null,null,null,110,110,114,null,1,null,null,null,109,null,110,"(110)","(-)"]
["111 (111)",null,null,0,null,0,0,null,0,0,0,0,0,null,null,null,null,null,null,null,null,null,null,null,null,null,null,null,null,null,null,null,null,null,null,null,null,null,null,null,null,null,null,null,null,null,null,null,null,null,null,null,null,null,null,null,null,null,null,null,null,null,null,null,null,null,null,null,null,null,null,null,null,null,null,null,null,null,null,null,null,null,null,null,null,null,null,null,null,null,null,null,null,null,null,null,null,null,null,null,null,null,null,null,null,null,null,null,null,null,null,null,null,null,null,null,null,null,null,null,null,null,null,111,111,115,null,1,null,null,null,112,null,111,"(111)","(-)"]
["112 (112)",null,null,0,null,0,0,null,0,0,0,0,0,null,null,null,null,null,null,null,null,null,null,null,null,null,null,null,null,null,null,null,null,null,null,null,null,null,null,null,null,null,null,null,null,null,null,null,null,null,null,null,null,null,null,null,null,null,null,null,null,null,null,null,null,null,null,null,null,null,null,null,null,null,null,null,null,null,null,null,null,null,null,null,null,null,null,null,null,null,null,null,null,null,null,null,null,null,null,null,null,null,null,null,null,null,null,null,null,null,null,null,null,null,null,null,null,null,null,null,null,null,null,112,112,116,null,1,null,null,null,110,null,112,"(112)","(-)"]
["113 (113)",null,null,0,null,0,0,null,0,0,0,0,0,null,null,null,null,null,null,null,null,null,null,null,null,null,null,null,null,null,null,null,null,null,null,null,null,null,null,null,null,null,null,null,null,null,null,null,null,null,null,null,null,null,null,null,null,null,null,null,null,null,null,null,null,null,null,null,null,null,null,null,null,null,null,null,null,null,null,null,null,null,null,null,null,null,null,null,null,null,null,null,null,null,null,null,null,null,null,null,null,null,null,null,null,null,null,null,null,null,null,null,null,null,null,null,null,null,null,null,null,null,null,113,{"$f":"IF(AND(D121=D120,D121=D119,D121=D118,D121=D117),ROW(113:113),IF(AND(D121=D120,D121=D119,D121=D118),ROW(114:114),IF(AND(D121=D120,D121=D119),ROW(115:115),IF(D121=D120,ROW(116:116),IF(D121>1,ROW(117:117),\"-\")))))","v":113},{"$f":"IF(DX121=1,ROW(117:117),\"-\")","v":117},null,1,null,null,null,111,null,{"$f":"IF(DX121=1,DU121,IF(DX121=\"\",DU121,\"\"))","v":113},{"$f":"IF(DX121=1,\"(\"&DT121&\")\",\"(\"&DV121&\")\")","v":"(113)"},"(-)"]
["114 (114)",null,null,0,null,0,0,null,0,0,0,0,0,null,null,null,null,null,null,null,null,null,null,null,null,null,null,null,null,null,null,null,null,null,null,null,null,null,null,null,null,null,null,null,null,null,null,null,null,null,null,null,null,null,null,null,null,null,null,null,null,null,null,null,null,null,null,null,null,null,null,null,null,null,null,null,null,null,null,null,null,null,null,null,null,null,null,null,null,null,null,null,null,null,null,null,null,null,null,null,null,null,null,null,null,null,null,null,null,null,null,null,null,null,null,null,null,null,null,null,null,null,null,114,{"$f":"IF(AND(D122=D121,D122=D120,D122=D119,D122=D118),ROW(114:114),IF(AND(D122=D121,D122=D120,D122=D119),ROW(115:115),IF(AND(D122=D121,D122=D120),ROW(116:116),IF(D122=D121,ROW(117:117),IF(D122>1,ROW(118:118),\"-\")))))","v":114},{"$f":"IF(DX122=1,ROW(118:118),\"-\")","v":118},null,1,null,null,null,113,null,{"$f":"IF(DX122=1,DU122,IF(DX122=\"\",DU122,\"\"))","v":114},{"$f":"IF(DX122=1,\"(\"&DT122&\")\",\"(\"&DV122&\")\")","v":"(114)"},"(-)"]
["115 (115)",null,null,0,null,0,0,null,0,0,0,0,0,null,null,null,null,null,null,null,null,null,null,null,null,null,null,null,null,null,null,null,null,null,null,null,null,null,null,null,null,null,null,null,null,null,null,null,null,null,null,null,null,null,null,null,null,null,null,null,null,null,null,null,null,null,null,null,null,null,null,null,null,null,null,null,null,null,null,null,null,null,null,null,null,null,null,null,null,null,null,null,null,null,null,null,null,null,null,null,null,null,null,null,null,null,null,null,null,null,null,null,null,null,null,null,null,null,null,null,null,null,null,115,{"$f":"IF(AND(D123=D122,D123=D121,D123=D120,D123=D119),ROW(115:115),IF(AND(D123=D122,D123=D121,D123=D120),ROW(116:116),IF(AND(D123=D122,D123=D121),ROW(117:117),IF(D123=D122,ROW(118:118),IF(D123>1,ROW(119:119),\"-\")))))","v":115},{"$f":"IF(DX123=1,ROW(119:119),\"-\")","v":119},null,1,null,null,null,113,null,{"$f":"IF(DX123=1,DU123,IF(DX123=\"\",DU123,\"\"))","v":115},{"$f":"IF(DX123=1,\"(\"&DT123&\")\",\"(\"&DV123&\")\")","v":"(115)"},"(-)"]